Workbook

Sheet Compromisos CP PI (hidden)
F2: Vigencia 2015 | L2: Vigencia 2016
A3: Grupo Étnico con quien se suscribió el compromiso | B3: Responsable del compromiso | C3: Compromiso de Consulta Previa | D3: Eje Estratégico del PND | E3: Tipo de compromiso | F3: Código del Proyecto ( Ficha EBI o BPIN) | G3: Nombre del proyecto | H3: Recurso asignados durante la vigencia para el cumplimiento del acuerdo | I3: Recurso ejecutados durante la vigencia para el cumplimiento del acuerdo | J3: Población Beneficiada del compromiso (Indicar si son familias o personas) | K3: Zona de atención beneficiada con el compromiso | L3: Código del Proyecto ( Ficha EBI o BPIN) | M3: Nombre del proyecto | N3: Recurso destinado especificamente para el cumplimiento del acuerdo | O3: Población Beneficiaria del compromiso (Indicar si son familias o personas) | P3: Zona de atención beneficiada con el compromiso
A4: Pueblos Indigenas | B4: Ministerio de Transporte | C4: Elaboración de un estudio para identificar y priorizar, de manera concertada con los Pueblos y Organizaciones Indígenas, las vías en territorios indígenas (carreteras, caminos ancestrales, caminos veredales, puentes, vías peatonales, fluviales y pistas de aterrizaje), de acuerdo a la normatividad vigente, con el objetivo de reducir las brechas en materia de infraestructura vial. | D4: COMPETITIVIDAD E INFRAESTRUCTURA ESTRATÉGICA | E4: Especifico de la entidad
A5: Pueblos Indigenas | B5: Ministerio de Transporte | C5: Formulación, estructuración y ejecución de proyectos de infraestructura vial en territorios indígenas, conforme a la priorización realizada de manera concertada. | D5: COMPETITIVIDAD E INFRAESTRUCTURA ESTRATÉGICA | E5: Especifico de la entidad
A6: Pueblos Indigenas | B6: Ministerio de Transporte | C6: El INVIAS y la AEROCIVIL, podrá adelantar convenios interadministrativos con los cabildos, autoridades y sus organizaciones, a fin de garantizar el mantenimiento y la construcción de vías de comunicación, en concurso con los recursos de la Nación y los entes territoriales, en el marco de la normatividad vigente. | D6: COMPETITIVIDAD E INFRAESTRUCTURA ESTRATÉGICA | E6: Especifico de la entidad
A7: Pueblos Indigenas | B7: Ministerio de Transporte | C7: Construcción de obras de protección de orillas para la prevención de erosiones e inundaciones en comunidades indígenas ribereñas. | D7: COMPETITIVIDAD E INFRAESTRUCTURA ESTRATÉGICA | E7: Especifico de la entidad
A8: Pueblos Indigenas | B8: Ministerio de Comercio, Industria y Turismo | C8: Tramitar ante FONTUR proyectos de construcción y mejoramiento de centros de etno-turísticos. | D8: COMPETITIVIDAD E INFRAESTRUCTURA ESTRATÉGICA | E8: Especifico de la entidad
A9: Pueblos Indigenas | B9: Ministerio de Transporte | C9: Establecer mesas de trabajo con la participación de representantes de los Pueblos y Comunidades Indígenas y entidades públicas competentes para definir las estrategias que garanticen el transporte, conforme con la normatividad vigente. | D9: COMPETITIVIDAD E INFRAESTRUCTURA ESTRATÉGICA | E9: Especifico de la entidad
A10: Pueblos Indigenas | B10: Ministerio de las Tecnologías de la Información y las Comunicaciones | C10: Reducir brechas en acceso a las Tecnologías de la Información y las Comunicaciones en los sitios alejados geográficamente, y garantizar el acceso y uso efectivo de las TIC, a través de la conectividad al 100 % de cabeceras municipales que sean centros de influencia indígena. En los territorios indígenas se hará la conexión gradual, de acuerdo a los criterios técnicos que lo permitan. | D10: COMPETITIVIDAD E INFRAESTRUCTURA ESTRATÉGICA | E10: Especifico de la entidad
A11: Pueblos Indigenas | B11: Ministerio de las Tecnologías de la Información y las Comunicaciones | C11: Garantizar el acceso a Internet a través de la instalación, operación y administración de los centros de acceso comunitario a Internet que el Ministerio TIC proveerá a los territorios y/o zonas con influencia indígena, dentro de la cobertura establecida en el Proyecto de Conectividad de Alta Velocidad, con criterios de pertinencia cultural y contexto territorial, previamente acordados en la Mesa Permanente de Concertación. | D11: COMPETITIVIDAD E INFRAESTRUCTURA ESTRATÉGICA | E11: Especifico de la entidad
A12: Pueblos Indigenas | B12: Ministerio de las Tecnologías de la Información y las Comunicaciones | C12: Apropiar recursos del Ministerio de Tecnologías de la Información y las Comunicaciones para que los centros educativos de comunidades indígenas, accedan integralmente al uso de las TIC. | D12: COMPETITIVIDAD E INFRAESTRUCTURA ESTRATÉGICA | E12: Especifico de la entidad
A13: Pueblos Indigenas | B13: Ministerio de Minas y Energía | C13: Identificación concertada con las comunidades indígenas para la formulación, estructuración e implementación de proyectos de generación de energía eléctrica y redes de media y baja tensión para la energización rural sostenible. | D13: COMPETITIVIDAD E INFRAESTRUCTURA ESTRATÉGICA | E13: Especifico de la entidad
A14: Pueblos Indigenas | B14: Ministerio de Comercio, Industria y Turismo | C14: Desarrollar el Programa de Fortalecimiento productivo y empresarial de las economías propias de los Pueblos Indígenas en el que se desarrollen, bajo procesos de priorización y concertación previos, las siguientes líneas: • Identificación del estado de los procesos productivos y definición de planes de mejora en el marco de la cadena de valor. • Procesos de asesoría y asistencia técnica especializada y diferenciada para el fomento al desarrollo empresarial orientados a mejorar procesos de producción, trasformación, administración financiera, mercadeo y distribución así como procesos organizativos de las economías propias. • Promover el fortalecimiento productivo y empresarial de economías propias liderado por mujeres indígenas. • Apoyo para la formalización y certificación de productos y servicios de las economías propias de los pueblos indígenas. • Desarrollar acciones de gestión cogestión y autogestión que promuevan o fortalezcan capacidades instaladas para el desarrollo productivo y empresarial de los pueblos indígenas. • Desarrollar eventos comerciales regionales y nacionales de promoción e intercambio de las economías propias de los pueblos indígenas bajo un comercio justo y de oportunidad. • Desarrollo de acciones para el fomento a la innovación desde la práctica productiva de las economías propias. • Definición de estrategias de promoción y comercialización de productos de las economías propias de los pueblos indígenas y apertura de mercados a nivel local, regional, nacional e internacional de acuerdo a oportunidades y capacidades competitivas. | D14: COMPETITIVIDAD E INFRAESTRUCTURA ESTRATÉGICA | E14: Especifico de la entidad
A15: Pueblos Indigenas | B15: Ministerio del Interior | C15: Construcción concertada del marco normativo para la protección jurídica de los conocimientos ancestrales y tradicionales de los Pueblos indígenas como aportes al desarrollo científico e innovación tecnológica, a través de un instrumento consultado y concertado con los pueblos indígenas. | D15: COMPETITIVIDAD E INFRAESTRUCTURA ESTRATÉGICA | E15: Compartido con otra, o varias entidades del estado
A16: Pueblos Indigenas | B16: COLCIENCIAS | C16: Establecer un programa para la promoción y conformación de equipos indígenas para la investigación, ciencia y tecnología, por los propios pueblos indígenas. Los pueblos indígenas podrán concertar con Colciencias, Universidades y autoridades competentes para el desarrollo de este propósito. | D16: COMPETITIVIDAD E INFRAESTRUCTURA ESTRATÉGICA | E16: Especifico de la entidad
A17: Pueblos Indigenas | B17: COLCIENCIAS | C17: En la convocatoria general de formación de capital humano de alto nivel se incorporará un componente para pueblos indígenas, concertado con sus autoridades. | D17: COMPETITIVIDAD E INFRAESTRUCTURA ESTRATÉGICA | E17: Especifico de la entidad
A18: Pueblos Indigenas | B18: COLCIENCIAS | C18: Garantizar la participación efectiva y concertada de las comunidades y pueblos indígenas en el Fondo de Ciencia Tecnología e Innovación (FCTI) del Sistema General de Regalías con enfoque diferencial. | D18: COMPETITIVIDAD E INFRAESTRUCTURA ESTRATÉGICA | E18: Especifico de la entidad
A19: Pueblos Indigenas | B19: COLCIENCIAS | C19: Financiamiento de un programa de investigación sobre los recursos forestales, de flora, faunísticos y ambientales existentes en los territorios indígenas. | D19: COMPETITIVIDAD E INFRAESTRUCTURA ESTRATÉGICA | E19: Especifico de la entidad
A20: Pueblos Indigenas | B20: COLCIENCIAS | C20: Garantizar la financiación de proyectos interculturales de investigación sobre las propiedades botánicas y medicinales de las plantas en territorios indígenas. | D20: COMPETITIVIDAD E INFRAESTRUCTURA ESTRATÉGICA | E20: Especifico de la entidad
A21: Pueblos Indigenas | B21: Ministerio de las Tecnologías de la Información y las Comunicaciones | C21: Política pública de comunicación indígena. Las formas propias de comunicación contribuyen a conservar, revitalizar, fortalecer y dinamizar las formas de comunicación propia. | D21: MOVILIDAD SOCIAL | E21: Compartido con otra, o varias entidades del estado
A22: Pueblos Indigenas | B22: Autoridad Nacional de Televisión | C22: La ANTV en el marco del proceso de concertación del plan de televisión indígena, revisará, modificará o derogará el acuerdo CNTV 01 de 2005 para expedir una nueva reglamentación sobre televisión para pueblos indígenas. El Ministerio de las TIC realizará un estudio que permita establecer de manera concertada en la MPC la viabilidad, necesidad, y características jurídicas, técnicas y de programación que deberán tener las emisoras de las comunidades indígenas a fin de determinar la pertinencia de una categoría especial. | D22: MOVILIDAD SOCIAL | E22: Especifico de la entidad
A23: Pueblos Indigenas | B23: Autoridad Nacional de Televisión | C23: Fomentar la producción y emisión de contenidos propios de los pueblos indígenas en espacios de televisión pública. Realización concertada de los estudios para soluciones definitivas de acceso y participación de los Pueblos Indígenas al servicio de televisión. | D23: MOVILIDAD SOCIAL | E23: Especifico de la entidad
A24: Pueblos Indigenas | B24: Ministerio de las Tecnologías de la Información y las Comunicaciones | C24: El Ministerio de Tecnologías de la Información y las Comunicaciones desde la formulación de los proyectos de inversión que involucren como beneficiarios de los mismos a comunidades indígenas y/o pueblos indígenas, por cada vigencia fiscal, identificará y construirá la oferta institucional previamente concertada a través de la Mesa Permanente de Concertación. | D24: MOVILIDAD SOCIAL | E24: Especifico de la entidad
A25: Pueblos Indigenas | B25: Ministerio de las Tecnologías de la Información y las Comunicaciones | C25: En las estrategias de apropiación que implemente el Ministerio de Tecnologías de la Información y las Comunicaciones para los centros de acceso comunitario a Internet, se garantizarán contenidos con enfoque diferencial, que fortalezcan las iniciativas propias de las comunidades indígenas en relación con su comunicación propia e intercultural. | D25: MOVILIDAD SOCIAL | E25: Especifico de la entidad
A26: Pueblos Indigenas | B26: Autoridad Nacional de Televisión | C26: Implementar el Plan de Televisión Indígena concertado con el fin de promover el acceso y la participación en el servicio de televisión pública en el marco de la garantía de los derechos a la comunicación y la información de los Pueblos Indígenas. | D26: MOVILIDAD SOCIAL | E26: Especifico de la entidad
A27: Pueblos Indigenas | B27: Ministerio de Cultura | C27: Institucionalización de la semana de los Pueblos Indígenas. | D27: MOVILIDAD SOCIAL | E27: Especifico de la entidad
A28: Pueblos Indigenas | B28: Ministerio de Cultura | C28: Fortalecer y visibilizar la identidad cultural de los Pueblos Indígenas. | D28: MOVILIDAD SOCIAL | E28: Especifico de la entidad
A29: Pueblos Indigenas | B29: Ministerio de Cultura | C29: Procesos de revitalización y fortalecimiento del pensamiento mayor. | D29: MOVILIDAD SOCIAL | E29: Especifico de la entidad
A30: Pueblos Indigenas | B30: Ministerio de Cultura | C30: Adecuar de manera concertada con la MPC el programa para la promoción y fortalecimiento de festivales indígenas, celebraciones propias y muestras itinerantes de carácter local, regional y nacional, con proyección internacional; así como el fomento de puntos itinerantes y fijos de divulgación intercultural y cinematecas. | D30: MOVILIDAD SOCIAL | E30: Especifico de la entidad
A31: Pueblos Indigenas | B31: Ministerio de Cultura (Archivo General de la Nación) | C31: Recuperación, protección, digitalización y reproducción de materiales audiovisuales de los diferentes Pueblos Indígenas en Colombia. Identificación y adquisición de equipos, la formación del equipo del archivo, la recuperación local, regional y nacional la catalogación de la información digital, el alojamiento y organización de la información y el funcionamiento de los archivos de los Pueblos Indígenas. | D31: MOVILIDAD SOCIAL | E31: Especifico de la entidad
A32: Pueblos Indigenas | B32: COLDEPORTES | C32: Concertar con los pueblos y organizaciones indígenas los lineamientos de política pública dirigidos a los entes departamentales para el fomento de juegos tradicionales, autóctonos y populares, actividades deportivas y deporte convencional. Cofinanciar, a través de los entes departamentales, la realización de encuentros recreo-deportivos en territorios indígenas, en el marco de los lineamientos concertados | D32: MOVILIDAD SOCIAL | E32: Especifico de la entidad
A33: Pueblos Indigenas | B33: Ministerio de Educación Nacional | C33: Realización de la consulta previa del Sistema Educativo Indígena Propio (SEIP). Una vez se haya realizado, se expedirá la norma correspondiente. | D33: MOVILIDAD SOCIAL | E33: Especifico de la entidad
A34: Pueblos Indigenas | B34: Ministerio de Educación Nacional | C34: El Ministerio de Educación Nacional concentrará sus esfuerzos, acciones, planes, proyectos y recursos dirigidos a la educación para los Pueblos Indígenas, al desarrollo e implementación del Sistema Educativo Indígena Propio, para ello se concertará en la CONTCEPI un plan de acción y focalización. Además, se concertará y desarrollará un plan de acompañamiento situado para el fortalecimiento de los Pueblos Indígenas, sus autoridades tradicionales y estructuras de gobierno propio, en los componentes del SEIP con el fin que se puedan asumir la administración de la educación en sus territorios en el marco del Sistema Educativo Indígena Propio, el Decreto 1953 de 2014 y las demás normas pertinentes. | D34: MOVILIDAD SOCIAL | E34: Especifico de la entidad
A35: Pueblos Indigenas | B35: Ministerio de Educación Nacional | C35: Diseño e implementación de programas de formación docente y dinamizadores indígenas en el marco de la construcción e implementación del Sistema Educativo Indígena Propio – SEIP. | D35: MOVILIDAD SOCIAL | E35: Especifico de la entidad
A36: Pueblos Indigenas | B36: Ministerio de Cultura | C36: Formulación, concertación e implementación del plan decenal de lenguas nativas en el marco de la Ley 1381 de 2010. | D36: MOVILIDAD SOCIAL | E36: Compartido con otra, o varias entidades del estado
A37: Pueblos Indigenas | B37: Ministerio de Educación Nacional | C37: Concertar los lineamientos y mecanismos que permitan generar un diálogo de conocimientos para lograr incidencia del pensamiento indígena en la educación colombiana. | D37: MOVILIDAD SOCIAL | E37: Especifico de la entidad
A38: Pueblos Indigenas | B38: Ministerio de Educación Nacional | C38: El Ministerio de Educación Nacional continuará con el fortalecimiento de los espacios de diálogo, participación y concertación según lo establecido en el Decreto de 2406 del 2007, en este escenario se concentrará el trabajo hacia la coordinación con el Ministerio de Educación de los procesos educativos para la formulación, orientación, el acompañamiento y seguimiento en la implementación de la Política Publica Educativa para pueblos indígenas y la formulación concertada de las propuestas de reglamentación establecidas en la norma del SEIP, del Decreto 1953 del 2014 y las demás normas pertinentes. | D38: MOVILIDAD SOCIAL | E38: Especifico de la entidad
A39: Pueblos Indigenas | B39: Ministerio de Educación Nacional | C39: El MEN conjuntamente con el ICBF apoyará a los Pueblos indígenas para que asuman la administración de las semillas de vida, entretanto la atención de los niños indígenas de 0 a 5 años, se realizará aplicando las estrategias y acciones previstas en el artículo 42 del Decreto 1953 de 2014. | D39: MOVILIDAD SOCIAL | E39: Especifico de la entidad
A40: Pueblos Indigenas | B40: Ministerio de Educación Nacional | C40: El Ministerio de Educación Nacional garantizará el acompañamiento y la asistencia técnica a los Pueblos Indígenas para la formulación y presentación de los proyectos que permitan a los territorios indígenas acceder a los recursos establecidos en el Plan de Infraestructura Educativa. | D40: MOVILIDAD SOCIAL | E40: Especifico de la entidad
A41: Pueblos Indigenas | B41: Ministerio de Educación Nacional | C41: Establecimiento de tipologías especiales para el cumplimiento de los objetivos del SEIP, teniendo en cuenta las Necesidades Educativas Especiales de los Pueblos Indígenas, que correspondan a la diversidad y ubicación socio-geográfica dispersa en medio de desiertos, selvas, así como su entorno de desarrollo y brechas asociadas a infraestructura de transporte, vivienda, agua potable, salud y seguridad alimentaria. | D41: MOVILIDAD SOCIAL | E41: Especifico de la entidad
A42: Pueblos Indigenas | B42: Ministerio de Educación Nacional | C42: Apoyar y promover a los Territorios Indígenas, con el propósito que avancen en la creación y reconocimiento de Instituciones de Educación Indígenas Propias, en el marco del Capítulo VI, Título III del Decreto 1953 de 2014 y las demás normas que desarrollen el SEIP. | D42: MOVILIDAD SOCIAL | E42: Especifico de la entidad
A43: Pueblos Indigenas | B43: SENA | C43: Garantizar el acceso de miembros de los Pueblos Indígenas a la Educación Técnica y Tecnológica mediante la ampliación de cupos para el ingreso. | D43: MOVILIDAD SOCIAL | E43: Especifico de la entidad
A44: Pueblos Indigenas | B44: Ministerio de Educación Nacional | C44: Garantizar el acceso y permanencia de miembros de los Pueblos Indígenas en la Educación Superior, mediante la ampliación de cupos para el ingreso, fortalecimiento, revisión y restructuración concertada del Fondo de becas Alvaro Ulcué, para acceso y permanencia en programas académicos de pregrado y posgrado. Además de la transversalización de la variable indígena a los programas de becas y otras estrategias. Estas becas podrán dirigirse para garantizar el acceso y permanencia de estudiantes indígenas a Instituciones de Educación Superior Indígenas Propias. | D44: MOVILIDAD SOCIAL | E44: Especifico de la entidad
A45: Pueblos Indigenas | B45: Ministerio de Educación Nacional | C45: En el Plan de acción concertado en la CONTCEPI, se priorizará, entre otros, la formulación e implementación de un Programa de Educación Especial dirigido a personas indígenas con discapacidad y la realización de autodiagnósticos en educación indígena propia en cada uno de los Pueblos Indígenas, como base importante para la implementación del SEIP. | D45: MOVILIDAD SOCIAL | E45: Especifico de la entidad
A46: Pueblos Indigenas | B46: Ministerio de Educación Nacional | C46: Armonización y ajuste del Programa de Alimentación Escolar (PAE) con los principios, objetivos y estrategias establecidos en el Sistema Educativo Indígena Propio (SEIP) y las particularidades culturales de cada Pueblo indígena. Para ello, se realizará un diseño concertado de lineamientos técnicos y administrativos, con el propósito de lograr que en este proceso de transición hacia el SEIP los Cabildos, Autoridades tradicionales, asociación de autoridades tradicionales indígenas, y organizaciones representativa de los Pueblos Indígenas, realicen la atención de los niños, niñas, adolescentes y jóvenes beneficiarios del programa, a través de procesos de contratación. | D46: MOVILIDAD SOCIAL | E46: Especifico de la entidad
A47: Pueblos Indigenas | B47: Ministerio de Salud y Protección Social | C47: Evaluación integral del actual Sistema General de Seguridad Social en Salud para los Pueblos Indígenas, el modelo institucional, la cobertura y calidad del servicio, así como garantizar la atención integral con cobertura universal de la población indígena. | D47: MOVILIDAD SOCIAL | E47: Especifico de la entidad
A48: Pueblos Indigenas | B48: Ministerio de Salud y Protección Social | C48: Construir, desarrollar, implementar y consolidar el SISPI | D48: MOVILIDAD SOCIAL | E48: Especifico de la entidad
A49: Pueblos Indigenas | B49: Ministerio de Salud y Protección Social | C49: Fortalecimiento y apoyo al ejercicio de la medicina tradicional. | D49: MOVILIDAD SOCIAL | E49: Especifico de la entidad
A50: Pueblos Indigenas | B50: Ministerio de Salud y Protección Social | C50: Incorporar el enfoque intercultural y diferencial de atención integral en salud, en la formación y gestión del talento humano del sector | D50: MOVILIDAD SOCIAL | E50: Especifico de la entidad
A51: Pueblos Indigenas | B51: Ministerio de Salud y Protección Social | C51: Garantizar la protección jurídica de los conocimientos de las cualidades botánicas y medicinales de plantas en territorios indígenas y aplicaciones productivas. | D51: MOVILIDAD SOCIAL | E51: Especifico de la entidad
A52: Pueblos Indigenas | B52: Ministerio de Salud y Protección Social | C52: Formulación e implementación de estrategias y acciones para la salvaguarda del conocimiento ancestral aplicado a la medicina tradicional de las comunidades y pueblos indígenas. | D52: MOVILIDAD SOCIAL | E52: Especifico de la entidad
A53: Pueblos Indigenas | B53: Ministerio de Salud y Protección Social | C53: Fortalecimiento, operatividad y financiación de la subcomisión nacional de salud propia e intercultural. | D53: MOVILIDAD SOCIAL | E53: Especifico de la entidad
A54: Pueblos Indigenas | B54: Ministerio de Salud y Protección Social | C54: Realización de autodiagnósticos comunitarios de salud para construcción e implementación de los sistemas de salud propios e interculturales desde la cosmovisión de cada pueblo. | D54: MOVILIDAD SOCIAL | E54: Especifico de la entidad
A55: Pueblos Indigenas | B55: Ministerio de Salud y Protección Social | C55: Socialización y construcción de los componentes del SISPI. | D55: MOVILIDAD SOCIAL | E55: Especifico de la entidad
A56: Pueblos Indigenas | B56: Ministerio de Salud y Protección Social | C56: Garantizar el proceso de consulta previa a la reglamentación expedida en el marco de la implementación del Sistema Indígena de Salud Propia e Intercultural (SISPI). | D56: MOVILIDAD SOCIAL | E56: Especifico de la entidad
A57: Pueblos Indigenas | B57: Ministerio de Salud y Protección Social | C57: Desarrollo del Sistema Único de Información Indígena Nacional (SUIIN) que incorpore el seguimiento de la situación poblacional y de análisis de riesgos en salud que inciden en ella. | D57: MOVILIDAD SOCIAL | E57: Especifico de la entidad
A58: Pueblos Indigenas | B58: Ministerio de Salud y Protección Social | C58: Diseño del modelo propio de salud desde la cosmovisión propia de cada pueblo en el marco SISPI. | D58: MOVILIDAD SOCIAL | E58: Especifico de la entidad
A59: Pueblos Indigenas | B59: Ministerio de Salud y Protección Social | C59: Elaboración de un programa que permita a los pueblos indígenas diagnosticar y actuar sobre los factores que inciden en el incremento de los suicidios y otras expresiones de desarmonía espiritual. | D59: MOVILIDAD SOCIAL | E59: Especifico de la entidad
A60: Pueblos Indigenas | B60: Ministerio de Salud y Protección Social | C60: Construcción participativa del capítulo especial para pueblos indígenas en el Plan Decenal de Salud Pública. | D60: MOVILIDAD SOCIAL | E60: Especifico de la entidad
A61: Pueblos Indigenas | B61: Ministerio de Salud y Protección Social | C61: Construcción de casas de paso para atención de pacientes indígenas. | D61: MOVILIDAD SOCIAL | E61: Especifico de la entidad
A62: Pueblos Indigenas | B62: Ministerio de Salud y Protección Social | C62: Apoyo a la construcción e implementación del sistema de vigilancia comunitaria intercultural en el marco de la estructuración del SISPI. | D62: MOVILIDAD SOCIAL | E62: Especifico de la entidad
A63: Pueblos Indigenas | B63: Ministerio de Salud y Protección Social | C63: Garantizar los recursos humanos y financieros para que los pueblos y comunidades indígenas desarrollen procesos de diálogos intergeneracionales, atención y seguimiento a casos de mutilación genital femenina y prácticas nocivas que afectan a las mujeres y niñas de los pueblos indígenas, con el objeto de propiciar su erradicación. | D63: MOVILIDAD SOCIAL | E63: Especifico de la entidad
A64: Pueblos Indigenas | B64: Ministerio de Salud y Protección Social | C64: Construir lineamientos de manera concertada con los pueblos indígenas para la atención y promoción de la salud sexual y reproductiva con enfoque diferencial. | D64: MOVILIDAD SOCIAL | E64: Especifico de la entidad
A65: Pueblos Indigenas | B65: Ministerio de Salud y Protección Social | C65: Consultar y concertar con las autoridades indígenas todas las políticas públicas y actos administrativos de salud que afecten de manera directa a las entidades indígenas de salud. | D65: MOVILIDAD SOCIAL | E65: Especifico de la entidad
A66: Pueblos Indigenas | B66: Departamento Administrativo para la Prosperidad Social (DPS). | C66: Estrategias y programas diferenciales concertados e implementados para garantizar el acceso a la alimentación o en su defecto a la política pública sobre seguridad alimentaria y autonomía alimentaria. | D66: MOVILIDAD SOCIAL | E66: Especifico de la entidad
A67: Pueblos Indigenas | B67: Instituto Colombiano de Bienestar Familiar | C67: Construir concertadamente e implementar programas para los pueblos indígenas nómadas y semi-nómadas, soluciones a su situación nutricional respetando su sistema de organización tradicional. | D67: MOVILIDAD SOCIAL | E67: Especifico de la entidad
A68: Pueblos Indigenas | B68: Instituto Colombiano de Bienestar Familiar | C68: A partir de los diagnósticos comunitarios nutricionales, concertar con las organizaciones indígenas los planes de recuperación nutricional. | D68: MOVILIDAD SOCIAL | E68: Especifico de la entidad
A69: Pueblos Indigenas | B69: Departamento Administrativo para la Prosperidad Social (DPS). | C69: Promover los espacios, actividades y proyectos para la conservación, manejo e intercambio de semillas en el marco de programas de seguridad alimentaria. | D69: MOVILIDAD SOCIAL | E69: Especifico de la entidad
A70: Pueblos Indigenas | B70: Instituto Colombiano de Bienestar Familiar | C70: Implementar programas nutricionales con enfoque étnico e intercultural que garanticen el derecho a la vida en condiciones de dignidad de los niños y niñas indígenas. | D70: MOVILIDAD SOCIAL | E70: Especifico de la entidad
A71: Pueblos Indigenas | B71: Ministerio de Relaciones Exteriores | C71: Implementar de manera concertada con las comunidades, organizaciones y Pueblos Indígenas en zonas de fronteras proyectos de desarrollo social y económico, con pertinencia cultural. | D71: MOVILIDAD SOCIAL | E71: Especifico de la entidad
A72: Pueblos Indigenas | B72: Instituto Colombiano de Bienestar Familiar | C72: Programa para la recuperación de la armonía, a través del retorno digno y con garantía de derechos de las niñas, niños y jóvenes desvinculados de los actores armados. | D72: MOVILIDAD SOCIAL | E72: Especifico de la entidad
A73: Pueblos Indigenas | B73: Ministerio de Salud y Protección Social | C73: El enfoque diferencial para pueblos indígenas del Modelo Integral de Atención en Salud (MIAS) se construirá en el marco del SISPI. | D73: MOVILIDAD SOCIAL | E73: Especifico de la entidad
A74: Pueblos Indigenas | B74: Ministerio de Agricultura y Desarrollo Rural | C74: El Ministerio de Agricultura y Desarrollo Rural a través del INCODER construirá e implementará, junto con los pueblos y organizaciones indígenas, proyectos de producción agropecuaria tradicional. | D74: MOVILIDAD SOCIAL | E74: Especifico de la entidad
A75: Pueblos Indigenas | B75: Ministerio de Agricultura y Desarrollo Rural | C75: El Ministerio de Agricultura y Desarrollo Rural a través del INCODER apoyará la implementación de proyectos productivos con autonomía regional empoderando a los jóvenes indígenas rurales que contribuyan en la sostenibilidad de los territorios indígenas | D75: MOVILIDAD SOCIAL | E75: Especifico de la entidad
A76: Pueblos Indigenas | B76: Ministerio del Interior | C76: Proteger y garantizar los derechos territoriales colectivos de los pueblos en contacto inicial y en riesgo de exterminio físico y cultural no previstos en la Sentencia T-025 de 2009, acorde con la normatividad vigente. | D76: TRANSFORMACIÓN DEL CAMPO | E76: Especifico de la entidad
A77: Pueblos Indigenas | B77: Ministerio de Agricultura y Desarrollo Rural | C77: Demarcación y delimitación conforme a lo establecido en el Decreto 2333 de 2014. | D77: TRANSFORMACIÓN DEL CAMPO | E77: Especifico de la entidad
A78: Pueblos Indigenas | B78: Ministerio de Agricultura y Desarrollo Rural | C78: Constitución, ampliación y saneamiento de resguardos; adquisición de predios y mejoras; y adopción por parte del INCODER o la institución que haga sus veces, de un plan de titulaciones colectivas que permita terminar con los procesos pendientes, sin perjuicio de atender las nuevas solicitudes. | D78: TRANSFORMACIÓN DEL CAMPO | E78: Especifico de la entidad
A79: Pueblos Indigenas | B79: Ministerio de Agricultura y Desarrollo Rural | C79: Delimitación de los territorios indígenas conforme a lo establecido en el Decreto 1953 de 2014. | D79: TRANSFORMACIÓN DEL CAMPO | E79: Especifico de la entidad
A80: Pueblos Indigenas | B80: Ministerio de Agricultura y Desarrollo Rural | C80: Adelantar las actuaciones necesarias para garantizar la implementación de las instancias y las actividades contempladas en el decreto 2333 de 2014, para la protección jurídica de los territorios ancestrales. | D80: TRANSFORMACIÓN DEL CAMPO | E80: Compartido con otra, o varias entidades del estado
A81: Pueblos Indigenas | B81: Ministerio de Agricultura y Desarrollo Rural | C81: Adelantar las actuaciones necesarias para garantizar los procesos de clarificación de la vigencia legal de los títulos de resguardos de origen colonial y su respectiva reestructuración, cuando haya lugar. | D81: TRANSFORMACIÓN DEL CAMPO | E81: Especifico de la entidad
A82: Pueblos Indigenas | B82: Ministerio del Interior | C82: Modificación de la resolución de “Línea negra” amparando la integridad territorial y el desarrollo normativo concordante con la ley 21 de 1991. | D82: TRANSFORMACIÓN DEL CAMPO | E82: Especifico de la entidad
A83: Pueblos Indigenas | B83: Ministerio del Interior | C83: Protección territorial integral de los pueblos en aislamiento voluntario. | D83: TRANSFORMACIÓN DEL CAMPO | E83: Especifico de la entidad
A84: Pueblos Indigenas | B84: Ministerio de Cultura | C84: Diseño e implementación concertada de una política pública de protección de sitios sagrados y de alto valor cultural de los pueblos indígenas. | D84: TRANSFORMACIÓN DEL CAMPO | E84: Compartido con otra, o varias entidades del estado
A85: Pueblos Indigenas | B85: Ministerio de Agricultura y Desarrollo Rural | C85: Fortalecimiento y funcionamiento de la Comisión Nacional de Territorios Indígenas (CNTI) | D85: TRANSFORMACIÓN DEL CAMPO | E85: Especifico de la entidad
A86: Pueblos Indigenas | B86: Ministerio de Agricultura y Desarrollo Rural | C86: Caracterización de los territorios de los pueblos indígenas, acorde al Plan de Acción que establezca la Comisión Nacional de Territorios Indígenas. | D86: TRANSFORMACIÓN DEL CAMPO | E86: Especifico de la entidad
A87: Pueblos Indigenas | B87: Ministerio de Agricultura y Desarrollo Rural | C87: Acompañamiento en la resolución de conflictos interétnicos e intra-étnicos para la demarcación de linderos de los territorios de los pueblos indígenas, en el marco de las competencias institucionales respectivas. | D87: TRANSFORMACIÓN DEL CAMPO | E87: Compartido con otra, o varias entidades del estado
A88: Pueblos Indigenas | B88: Ministerio de Agricultura y Desarrollo Rural | C88: En el marco de la creación de la Autoridad Nacional de Tierras, previo a la expedición de la Ley, el Gobierno Nacional consultará dicha norma con los Pueblos y las Organizaciones Indígenas. | D88: TRANSFORMACIÓN DEL CAMPO | E88: Especifico de la entidad
A89: Pueblos Indigenas | B89: Ministerio de Comercio, Industria y Turismo | C89: Garantizar el acceso y la adecuación con enfoque diferencial, concertada con los Pueblos Indígenas, a los actuales programas con enfoque productivo y desarrollo empresarial del Ministerio de Agricultura y Desarrollo Rural, que tengan como objeto la producción, transformación, comercialización de bienes y servicios agropecuarios, por parte de las comunidades indígenas. | D89: TRANSFORMACIÓN DEL CAMPO | E89: Compartido con otra, o varias entidades del estado
A90: Pueblos Indigenas | B90: Ministerio de Agricultura y Desarrollo Rural | C90: En el marco del Fondo de Desarrollo Rural se priorizarán recursos para Pueblos y Comunidades Indígenas en las líneas de inversión que se establezcan. | D90: TRANSFORMACIÓN DEL CAMPO | E90: Especifico de la entidad
A91: Pueblos Indigenas | B91: Ministerio de Agricultura y Desarrollo Rural | C91: Garantizar el desarrollo de proyectos productivos que promuevan la generación de ingresos y la creación y fortalecimiento de iniciativas productivas propias. Los proyectos deberán ser técnica, económica, ambiental y culturalmente viables, con enfoque diferencial. | D91: TRANSFORMACIÓN DEL CAMPO | E91: Especifico de la entidad
A92: Pueblos Indigenas | B92: Ministerio de Agricultura y Desarrollo Rural | C92: El Ministerio de Agricultura y Desarrollo Rural, CORPOICA e ICA trabajarán conjuntamente con los Pueblos y Organizaciones Indígenas en la formulación y puesta en marcha del sistema de custodia de semillas tradicionales. | D92: TRANSFORMACIÓN DEL CAMPO | E92: Especifico de la entidad
A93: Pueblos Indigenas | B93: Ministerio de Agricultura y Desarrollo Rural | C93: El Ministerio de Agricultura y Desarrollo Rural construirá junto con los Pueblos y Comunidades Indígenas, una estrategia para la asistencia técnica en los territorios indígenas que incluya el establecimiento de proyectos productivos agropecuarios a través del fortalecimiento de sus prácticas ancestrales, con un enfoque agroecológico. | D93: TRANSFORMACIÓN DEL CAMPO | E93: Especifico de la entidad
A94: Pueblos Indigenas | B94: Ministerio de Agricultura y Desarrollo Rural | C94: Estrategias para la competitividad empresarial y apertura de mercados mediante la identificación de cadenas productivas de manera concertada con los Pueblos y Organizaciones Indígenas. | D94: TRANSFORMACIÓN DEL CAMPO | E94: Especifico de la entidad
A95: Pueblos Indigenas | B95: Ministerio de Agricultura y Desarrollo Rural | C95: Establecer programas apropiados según contextos regionales para apoyo a la agricultura y actividades pecuarias, pesca; programas de facilidades de acceso a maquinaria agrícola manual, asistencia técnica agrícola. | D95: TRANSFORMACIÓN DEL CAMPO | E95: Especifico de la entidad
A96: Pueblos Indigenas | B96: SENA | C96: Formación y capacitación en temas de manejo ambiental y técnicas agrícolas a los Pueblos Indígenas para su preservación física y cultural, de acuerdo a los usos y costumbres de cada pueblo. | D96: TRANSFORMACIÓN DEL CAMPO | E96: Especifico de la entidad
A97: Pueblos Indigenas | B97: Ministerio de Agricultura y Desarrollo Rural | C97: Garantizar los recursos para la ejecución de proyectos de VIS (Vivienda de Interés Social) rural con pertinencia cultural, acorde a los modelos arquitectónicos y la cosmovisión propia de los Pueblos Indígenas, diseñados de manera concertada con los Pueblos y Organizaciones Indígenas, y contratados de acuerdo a la normatividad vigente. | D97: TRANSFORMACIÓN DEL CAMPO | E97: Especifico de la entidad
A98: Pueblos Indigenas | B98: Ministerio de Vivienda, Ciudad y Territorio | C98: Apoyar la estructuración e implementación de planes y/o modelos para la provisión de agua potable y saneamiento básico para Pueblos y Comunidades Indígenas en sus territorios, con especial atención en zonas desérticas, incluyendo esquemas de gestión para la sostenibilidad y la construcción y/o optimización de infraestructura, acorde con su situación, y en coordinación con las entidades territoriales. | D98: TRANSFORMACIÓN DEL CAMPO | E98: Especifico de la entidad
A99: Pueblos Indigenas | B99: Ministerio de Comercio, Industria y Turismo | C99: Fortalecimiento de la producción de materias primas para la actividad artesanal de los Pueblos Indígenas. | D99: TRANSFORMACIÓN DEL CAMPO | E99: Especifico de la entidad
A100: Pueblos Indigenas | B100: Ministerio de Justicia y del Derecho | C100: Consulta previa y concertación del Proyecto de Ley Estatutaria que desarrolle el mandato del Artículo 246 de la Constitución Política, respecto de la coordinación entre los dos sistemas judiciales. | D100: SEGURIDAD, JUSTICIA Y DEMOCRACIA PARA LA CONSTRUCCIÓN DE PAZ | E100: Compartido con otra, o varias entidades del estado
A101: Pueblos Indigenas | B101: Consejo Superior de la Judicatura | C101: Financiación para el funcionamiento de la Comisión Nacional de Coordinación del Sistema Judicial Nacional y la Jurisdicción Especial Indígena. | D101: SEGURIDAD, JUSTICIA Y DEMOCRACIA PARA LA CONSTRUCCIÓN DE PAZ | E101: Especifico de la entidad
A102: Pueblos Indigenas | B102: Consejo Superior de la Judicatura | C102: Financiación, creación y fortalecimiento de las Escuelas de Derecho Propio, Ley de Origen y Derecho Mayor. | D102: SEGURIDAD, JUSTICIA Y DEMOCRACIA PARA LA CONSTRUCCIÓN DE PAZ | E102: Especifico de la entidad
A103: Pueblos Indigenas | B103: Consejo Superior de la Judicatura | C103: Fortalecimiento y generación de espacios para la elaboración de protocolos departamentales y regionales de coordinación entre la Jurisdicción Especial Indígena y las entidades del Sistema Judicial Nacional. | D103: SEGURIDAD, JUSTICIA Y DEMOCRACIA PARA LA CONSTRUCCIÓN DE PAZ | E103: Especifico de la entidad
A104: Pueblos Indigenas | B104: Ministerio de Justicia y del Derecho | C104: Apoyar proyectos para el fortalecimiento de la justicia propia para la protección de los derechos de la mujer, la juventud, la niñez y los mayores de los Pueblos Indígenas. | D104: SEGURIDAD, JUSTICIA Y DEMOCRACIA PARA LA CONSTRUCCIÓN DE PAZ | E104: Especifico de la entidad
A105: Pueblos Indigenas | B105: Ministerio de Justicia y del Derecho | C105: Apoyar proyectos para el fortalecimiento de los sistemas de justicia propia de los Pueblos Indígenas. | D105: SEGURIDAD, JUSTICIA Y DEMOCRACIA PARA LA CONSTRUCCIÓN DE PAZ | E105: Especifico de la entidad
A106: Pueblos Indigenas | B106: Ministerio de Justicia y del Derecho | C106: Diseño concertado de una política pública para la construcción y mantenimiento de actividades y espacios de resocialización de la población indígena privada de la libertad. | D106: SEGURIDAD, JUSTICIA Y DEMOCRACIA PARA LA CONSTRUCCIÓN DE PAZ | E106: Especifico de la entidad
A107: Pueblos Indigenas | B107: Ministerio de Justicia y del Derecho | C107: Realizar el proceso de Consulta Previa a los pueblos indígenas para la concertación y formulación del instrumento jurídico que regule las condiciones de reclusión de los indígenas privados de la libertad con enfoque diferencial. | D107: SEGURIDAD, JUSTICIA Y DEMOCRACIA PARA LA CONSTRUCCIÓN DE PAZ | E107: Especifico de la entidad
A108: Pueblos Indigenas | B108: Agencia Colombiana para la Reintegración (ACR) | C108: Coordinar con las entidades competentes la formulación e implementación de un programa de reintegración para desmovilizados indígenas en concertación con sus autoridades y organizaciones. | D108: SEGURIDAD, JUSTICIA Y DEMOCRACIA PARA LA CONSTRUCCIÓN DE PAZ | E108: Especifico de la entidad
A109: Pueblos Indigenas | B109: Ministerio del Interior (Dirección de Derechos Humanos) | C109: Fortalecimiento, financiación y funcionamiento permanente de la Comisión Nacional de Derechos Humanos de los Pueblos Indígenas. | D109: SEGURIDAD, JUSTICIA Y DEMOCRACIA PARA LA CONSTRUCCIÓN DE PAZ | E109: Especifico de la entidad
A110: Pueblos Indigenas | B110: Ministerio del Interior (Dirección de Derechos Humanos) | C110: Diseño, creación y funcionamiento del sistema de información de derechos humanos de los pueblos indígenas. | D110: SEGURIDAD, JUSTICIA Y DEMOCRACIA PARA LA CONSTRUCCIÓN DE PAZ | E110: Especifico de la entidad
A111: Pueblos Indigenas | B111: Ministerio del Interior (Dirección de Derechos Humanos) | C111: Creación, fortalecimiento, y garantía de funcionamiento de escuelas de formación en Liderazgo y Derechos Humanos, Derecho Internacional Humanitario, derechos fundamentales, individuales y colectivos. | D111: SEGURIDAD, JUSTICIA Y DEMOCRACIA PARA LA CONSTRUCCIÓN DE PAZ | E111: Especifico de la entidad
A112: Pueblos Indigenas | B112: Ministerio del Interior (Dirección de Derechos Humanos) | C112: Diseño e implementación de estrategias y acciones de visibilización de las afectaciones a los Derechos Humanos, Derecho Internacional Humanitario (DIH) y los derechos fundamentales, individuales y colectivos. | D112: SEGURIDAD, JUSTICIA Y DEMOCRACIA PARA LA CONSTRUCCIÓN DE PAZ | E112: Especifico de la entidad
A113: Pueblos Indigenas | B113: Departamento Administrativo para la Prosperidad Social (DPS). | C113: Adecuación concertada e implementación de la estrategia de desarrollo alternativo para comunidades indígenas, a partir de los acuerdos de consulta previa, en el marco de la Sentencia SU-383 de 2003, teniendo en cuenta el presupuesto definido en el presente PND. | D113: SEGURIDAD, JUSTICIA Y DEMOCRACIA PARA LA CONSTRUCCIÓN DE PAZ | E113: Especifico de la entidad
A114: Pueblos Indigenas | B114: Centro de Memoria Histórica | C114: Apoyar el diseño de observatorios de pensamiento y propiciar la articulación efectiva de estos con el Museo Nacional de la Memoria; apoyar técnica y financieramente los escenarios que garanticen la participación de los Pueblos Indígenas en el Museo Nacional de la Memoria y en el Archivo de DDHH. | D114: SEGURIDAD, JUSTICIA Y DEMOCRACIA PARA LA CONSTRUCCIÓN DE PAZ | E114: Compartido con otra, o varias entidades del estado
A115: Pueblos Indigenas | B115: Agencia Colombiana para la Reintegración (ACR) - Dirección para la Acción contra Minas Antipersonal | C115: Formular e implementar programas y proyectos con enfoque diferencial indígena, en prevención de accidentes y educación en el riesgo por Minas Antipersonal (MAP), municiones sin explotar (MUSE), y artefactos explosivos improvisados (AEI). | D115: SEGURIDAD, JUSTICIA Y DEMOCRACIA PARA LA CONSTRUCCIÓN DE PAZ | E115: Especifico de la entidad
A116: Pueblos Indigenas | B116: Agencia Colombiana para la Reintegración (ACR) - Dirección para la Acción contra Minas Antipersonal | C116: Realizar acciones de desminado de Minas Antipersonas (MAP), Municiones sin Explotar (MUSE) y Artefactos Explosivos Improvisados (AEI) que se encuentren en territorios indígenas afectados. | D116: SEGURIDAD, JUSTICIA Y DEMOCRACIA PARA LA CONSTRUCCIÓN DE PAZ | E116: Especifico de la entidad
A117: Pueblos Indigenas | B117: Ministerio del Interior (Dirección de Asuntos Indígenas, Rom y Minorías) | C117: Formulación e implementación de los Planes Integrales de Vida de los Pueblos Indígenas. | D117: SEGURIDAD, JUSTICIA Y DEMOCRACIA PARA LA CONSTRUCCIÓN DE PAZ | E117: Especifico de la entidad
A118: Pueblos Indigenas | B118: Ministerio del Interior (Dirección de Asuntos Indígenas, Rom y Minorías) | C118: Implementación de la política pública que garantiza el derecho fundamental a la autodeterminación de los pueblos en Aislamiento Voluntario, estableciendo medidas de no contacto, protección integral de sus territorios y la coordinación necesaria para la realización de las acciones pertinentes. | D118: SEGURIDAD, JUSTICIA Y DEMOCRACIA PARA LA CONSTRUCCIÓN DE PAZ | E118: Especifico de la entidad
A119: Pueblos Indigenas | B119: Ministerio del Interior (Dirección de Asuntos Indígenas, Rom y Minorías) | C119: Desarrollo de proyectos pedagógicos para la difusión de formas y conceptos ancestrales sobre convivencia respetuosa entre sociedades y el entorno natural en el marco de la resolución de conflictos. | D119: SEGURIDAD, JUSTICIA Y DEMOCRACIA PARA LA CONSTRUCCIÓN DE PAZ | E119: Especifico de la entidad
A120: Pueblos Indigenas | B120: Unidad para la Atención y Reparación Integral a las Víctimas (UARIV) | C120: Formulación concertada de los planes de retorno integrales. | D120: SEGURIDAD, JUSTICIA Y DEMOCRACIA PARA LA CONSTRUCCIÓN DE PAZ | E120: Compartido con otra, o varias entidades del estado
A121: Pueblos Indigenas | B121: Unidad para la Atención y Reparación Integral a las Víctimas (UARIV) | C121: Difusión permanente del Decreto Ley 4633 de 2011 | D121: SEGURIDAD, JUSTICIA Y DEMOCRACIA PARA LA CONSTRUCCIÓN DE PAZ | E121: Compartido con otra, o varias entidades del estado
A122: Pueblos Indigenas | B122: Unidad Administrativa Especial de Gestión de Restitución de Tierras Despojadas (URT) | C122: Elaboración de un plan de acción concertado con los pueblos indígenas, que permita dar cumplimiento al Decreto Ley 4633 de 2011. | D122: SEGURIDAD, JUSTICIA Y DEMOCRACIA PARA LA CONSTRUCCIÓN DE PAZ | E122: Compartido con otra, o varias entidades del estado
A123: Pueblos Indigenas | B123: Unidad para la Atención y Reparación Integral a las Víctimas (UARIV) | C123: Implementación efectiva e integral del Decreto Ley 4633 de 2011, en todos sus componentes. | D123: SEGURIDAD, JUSTICIA Y DEMOCRACIA PARA LA CONSTRUCCIÓN DE PAZ | E123: Compartido con otra, o varias entidades del estado
A124: Pueblos Indigenas | B124: Unidad para la Atención y Reparación Integral a las Víctimas (UARIV) | C124: Adecuación diferencial de las partidas de ayuda y atención humanitaria de emergencia para la atención de los Pueblos y Comunidades Indígenas. | D124: SEGURIDAD, JUSTICIA Y DEMOCRACIA PARA LA CONSTRUCCIÓN DE PAZ | E124: Especifico de la entidad
A125: Pueblos Indigenas | B125: Unidad para la Atención y Reparación Integral a las Víctimas (UARIV) | C125: Garantizar el funcionamiento del equipo técnico de la Comisión de seguimiento de las Organizaciones Indígenas de la MPC al decreto 4633 de 2011. | D125: SEGURIDAD, JUSTICIA Y DEMOCRACIA PARA LA CONSTRUCCIÓN DE PAZ | E125: Compartido con otra, o varias entidades del estado
A126: Pueblos Indigenas | B126: Centro de Memoria Histórica | C126: Programas de reconstrucción, fortalecimiento y revitalización de la memoria histórica de los Pueblos Indígenas de Colombia. | D126: SEGURIDAD, JUSTICIA Y DEMOCRACIA PARA LA CONSTRUCCIÓN DE PAZ | E126: Compartido con otra, o varias entidades del estado
A127: Pueblos Indigenas | B127: Ministerio de las Tecnologías de la Información y las Comunicaciones | C127: Programa de fortalecimiento de capacidades de las mujeres indígenas para el pleno ejercicio de sus derechos. | D127: SEGURIDAD, JUSTICIA Y DEMOCRACIA PARA LA CONSTRUCCIÓN DE PAZ | E127: Compartido con otra, o varias entidades del estado
A128: Pueblos Indigenas | B128: Ministerio de Justicia y del Derecho | C128: Creación de una ruta concertada de protección y atención para mujeres indígenas en desarrollo de la normatividad vigente. | D128: SEGURIDAD, JUSTICIA Y DEMOCRACIA PARA LA CONSTRUCCIÓN DE PAZ | E128: Especifico de la entidad
A129: Pueblos Indigenas | B129: Ministerio del Interior | C129: Programa de liderazgo de la mujer indígena | D129: SEGURIDAD, JUSTICIA Y DEMOCRACIA PARA LA CONSTRUCCIÓN DE PAZ | E129: Especifico de la entidad
A130: Pueblos Indigenas | B130: Ministerio del Interior | C130: Funcionamiento y fortalecimiento de la Comisión Nacional de Mujeres Indígenas. | D130: SEGURIDAD, JUSTICIA Y DEMOCRACIA PARA LA CONSTRUCCIÓN DE PAZ | E130: Especifico de la entidad
A131: Pueblos Indigenas | B131: Ministerio del Interior (Dirección de Consulta Previa), | C131: Consolidación de una propuesta para poner en funcionamiento las entidades territoriales indígenas. | D131: BUEN GOBIERNO | E131: Compartido con otra, o varias entidades del estado
A132: Pueblos Indigenas | B132: Ministerio del Interior (Dirección de Asuntos Indígenas, Rom y Minorías) | C132: Formular e implementar un plan de formación en liderazgo para mujeres y jóvenes indígenas. | D132: BUEN GOBIERNO | E132: Especifico de la entidad
A133: Pueblos Indigenas | B133: Ministerio del Interior (Dirección de Asuntos Indígenas, Rom y Minorías) | C133: Construcción, concertación, consulta e implementación del Decreto de áreas no municipalizadas. | D133: BUEN GOBIERNO | E133: Especifico de la entidad
A134: Pueblos Indigenas | B134: Instituto Colombiano de Bienestar Familiar | C134: Involucrar a las autoridades indígenas en las fases de la ruta PARD (Proceso Administrativo de Restablecimiento de Derechos) para la protección a NNA indígenas. | D134: BUEN GOBIERNO | E134: Especifico de la entidad
A135: Pueblos Indigenas | B135: Ministerio del Interior (Dirección de Asuntos Indígenas, Rom y Minorías) | C135: Fortalecimiento de los sistemas de gobierno propio de los Pueblos y Comunidades Indígenas mediante el apoyo al desarrollo de la infraestructura ceremonial requerida para su ejercicio. | D135: BUEN GOBIERNO | E135: Especifico de la entidad
A136: Pueblos Indigenas | B136: Ministerio del Interior (Dirección de Asuntos Indígenas, Rom y Minorías) | C136: Fortalecimiento de los espacios de concertación nacional (Mesa Permanente de Concertación con los Pueblos y Organizaciones Indígenas-MPC y Mesa Regional Amazónica-MRA). | D136: BUEN GOBIERNO | E136: Especifico de la entidad
A137: Pueblos Indigenas | B137: Ministerio del Interior (Dirección de Asuntos Indígenas, Rom y Minorías) | C137: Asignación de la Bolsa de Fomento para el Fortalecimiento de la institucionalidad de las organizaciones de los Pueblos indígenas. | D137: BUEN GOBIERNO | E137: Compartido con otra, o varias entidades del estado
A138: Pueblos Indigenas | B138: Ministerio del Interior (Dirección de Desarrollo Territorial y Dirección de Asuntos Indígenas Rom y Minorías) | C138: Financiamiento de proyectos para el ejercicio de la Gobernabilidad Indígena de acuerdo a la priorización que se haga en la Mesa Permanente de Concertación con los Pueblos y Organizaciones Indígenas-MPC. | D138: BUEN GOBIERNO | E138: Especifico de la entidad
A139: Pueblos Indigenas | B139: Departamento Administrativo Nacional de Estadística (DANE) | C139: Adecuar conjuntamente la producción estadística oficial para Pueblos Indígenas, basada en las buenas prácticas y estándares nacionales e internacionales sobre estadísticas, protegiendo la diversidad étnica y cultural. En los casos en que se realicen encuestas y/o módulos específicos para medir las realidades particulares de los Pueblos Indígenas se adelantarán procesos de concertación. | D139: BUEN GOBIERNO | E139: Especifico de la entidad
A140: Pueblos Indigenas | B140: Ministerio del Interior (Dirección de Asuntos Indígenas, Rom y Minorías) | C140: Realización del proceso de consulta y concertación con los Pueblos Indígenas para el XVIII Censo Nacional de Población y VII de Vivienda. | D140: BUEN GOBIERNO | E140: Compartido con otra, o varias entidades del estado
A141: Pueblos Indigenas | B141: Agencia Presidencial de Cooperación Internacional de Colombia (APC) | C141: Gestionar el apoyo de la cooperación internacional a iniciativas presentadas por las autoridades y organizaciones indígenas que respondan a la priorización geográfica y temática de la agenda de cooperación internacional. | D141: BUEN GOBIERNO | E141: Especifico de la entidad
A142: Pueblos Indigenas | B142: Ministerio del Interior (Dirección de Asuntos Indígenas, Rom y Minorías) | C142: Promover y fortalecer escenarios de coordinación interadministrativa entre las Autoridades indígenas y las autoridades departamentales y municipales. | D142: BUEN GOBIERNO | E142: Especifico de la entidad
A143: Pueblos Indigenas | B143: Ministerio del Interior | C143: Formulación e implementación concertada de la política pública de los derechos de poblaciones indígenas en contextos urbanos. | D143: BUEN GOBIERNO | E143: Especifico de la entidad
A144: Pueblos Indigenas | B144: Ministerio del Interior | C144: Proceso de socialización y apropiación local del Decreto 1953 de 2014 con la participación directa de las organizaciones indígenas. | D144: BUEN GOBIERNO | E144: Especifico de la entidad
A145: Pueblos Indigenas | B145: Ministerio del Interior (Dirección de Consulta Previa y Dirección de Asuntos Indígenas Rom y Minorías) | C145: Fortalecer el derecho fundamental a la consulta previa, libre e informada, mediante la realización de foros, espacios de diálogo y otros, con la sociedad colombiana, definidos conjuntamente entre las autoridades y organizaciones indígenas y el Gobierno Nacional. | D145: BUEN GOBIERNO | E145: Especifico de la entidad
A146: Pueblos Indigenas | B146: Departamento Nacional de Planeación (DNP) | C146: Construcción participativa de documentos CONPES que afecten directamente a Pueblos Indígenas. | D146: BUEN GOBIERNO | E146: Especifico de la entidad
A147: Pueblos Indigenas | B147: Departamento Nacional de Planeación (DNP) | C147: Dar continuidad al proceso de formulación del CONPES de política pública integral indígena, incorporando el tema de adecuación institucional. | D147: BUEN GOBIERNO | E147: Especifico de la entidad
A148: Pueblos Indigenas | B148: Ministerio de Ambiente y Desarrollo Sostenible | C148: Diseñar e implementar en concertación y coordinación con las autoridades indígenas programas ambientales que rescaten prácticas tradicionales de conservación ancestral en cuanto manejo ambiental de los recursos naturales. | D148: CRECIMIENTO VERDE | E148: Especifico de la entidad
A149: Pueblos Indigenas | B149: Ministerio de Ambiente y Desarrollo Sostenible | C149: Financiar las iniciativas propias de las comunidades indígenas para la realización de planes y proyectos de reforestación, regeneración natural de bosques, cuencas y de mejoramiento ambiental, las cuales podrán ser cofinanciadas por las diferentes autoridades ambientales. | D149: CRECIMIENTO VERDE | E149: Especifico de la entidad
A150: Pueblos Indigenas | B150: Ministerio de Ambiente y Desarrollo Sostenible | C150: Ordenamiento ambiental del territorio a partir de los sistemas de conocimiento indígena como instrumento base para la gestión ambiental en los territorios indígenas. | D150: CRECIMIENTO VERDE | E150: Especifico de la entidad
A151: Pueblos Indigenas | B151: Ministerio de Ambiente y Desarrollo Sostenible - Parques Nacionales Naturales | C151: Incluir en el proyecto de ley de áreas protegidas la creación de una categoría especial de manejo para los territorios indígenas, así como sus condiciones y características de conservación. | D151: CRECIMIENTO VERDE | E151: Especifico de la entidad
A152: Pueblos Indigenas | B152: Ministerio de Ambiente y Desarrollo Sostenible | C152: Construcción e implementación de programas diferenciados y específicos de restauración eco-sistémica, en territorios indígenas a partir de sus sistemas de ordenamiento ancestral. | D152: CRECIMIENTO VERDE | E152: Especifico de la entidad
A153: Pueblos Indigenas | B153: Ministerio de Ambiente y Desarrollo Sostenible | C153: Procesos de gestión integral del recurso hídrico y los sistemas de cuencas a partir de los conocimientos y el ordenamiento territorial y ancestral de los pueblos indígenas, de manera articulada con el Ministerio de Ambiente y las autoridades ambientales. | D153: CRECIMIENTO VERDE | E153: Especifico de la entidad
A154: Pueblos Indigenas | B154: Ministerio de Comercio, Industria y Turismo | C154: Creación de líneas de política concertadas para la promoción y desarrollo de programas de turismo desde las comunidades indígenas. | D154: CRECIMIENTO VERDE | E154: Especifico de la entidad
A155: Pueblos Indigenas | B155: Ministerio de Ambiente y Desarrollo Sostenible | C155: Realización de estudios hidrológicos y monitoreo de aguas en territorios indígenas afectados por la minería, en coordinación con las autoridades ambientales. | D155: CRECIMIENTO VERDE | E155: Especifico de la entidad
A156: Pueblos Indigenas | B156: Ministerio de Ambiente y Desarrollo Sostenible | C156: Creación de fondos de agua para la conservación de fuentes hidrográficas, en territorios indígenas y en coordinación con las autoridades ambientales. | D156: CRECIMIENTO VERDE | E156: Especifico de la entidad
A157: Pueblos Indigenas | B157: Ministerio de Ambiente y Desarrollo Sostenible | C157: Programa de restauración y conservación de ecosistemas ambiental y culturalmente sensibles. | D157: CRECIMIENTO VERDE | E157: Especifico de la entidad
A158: Pueblos Indigenas | B158: Ministerio del Interior | C158: Programa de fortalecimiento y recuperación de hitos culturales de los Pueblos Indígenas. | D158: CRECIMIENTO VERDE | E158: Compartido con otra, o varias entidades del estado
A159: Pueblos Indigenas | B159: IGAC y demás entidades del nivel nacional de acuerdo a sus competencias | C159: Creación y funcionamiento concertado de un sistema de información geográfico propio de la Comisión Nacional de Territorios Indígenas, articulado al Portal Geográfico Nacional. | D159: CRECIMIENTO VERDE | E159: Especifico de la entidad
A160: Pueblos Indigenas | B160: Ministerio de Ambiente y Desarrollo Sostenible | C160: Concertar e implementar acciones encaminadas a la mitigación y adaptación a las afectaciones generadas a raíz del cambio climático. | D160: CRECIMIENTO VERDE | E160: Especifico de la entidad
A161: Pueblos Indigenas | B161: Ministerio de Ambiente y Desarrollo Sostenible | C161: Adición al concepto en las bases del plan: Crecimiento verde entendido como la perpetuación de los sistemas de conocimiento, los territorios y los modelos de ordenamiento territorial indígena en la medida que sustentan la riqueza y el potencial ambiental estratégico del país. | D161: CRECIMIENTO VERDE | E161: Especifico de la entidad
A162: Pueblos Indigenas | B162: Ministerio de Ambiente y Desarrollo Sostenible | C162: Construcción e implementación de una agenda ambiental entre pueblos indígenas y Estado. Coordinación en la definición e implementación de la estrategia REDD+. | D162: CRECIMIENTO VERDE | E162: Especifico de la entidad
A163: Pueblos Indigenas | B163: Departamento Administrativo Nacional de Estadística (DANE) | C163: Realización del proceso de consulta y concertación con los Pueblos Indígenas para el XVIII Censo Nacional de Población y VII de Vivienda. | D163: BUEN GOBIERNO | E163: Compartido con otra, o varias entidades del estado
A164: Pueblos Indigenas | B164: Ministerio de Agricultura y Desarrollo Rural | C164: Garantizar el acceso y la adecuación con enfoque diferencial, concertada con los Pueblos Indígenas, a los actuales programas con enfoque productivo y desarrollo empresarial del Ministerio de Agricultura y Desarrollo Rural, que tengan como objeto la producción, transformación, comercialización de bienes y servicios agropecuarios, por parte de las comunidades indígenas. | D164: TRANSFORMACIÓN DEL CAMPO | E164: Compartido con otra, o varias entidades del estado
A165: Pueblos Indigenas | B165: Ministerio del Interior | C165: Adelantar las actuaciones necesarias para garantizar la implementación de las instancias y las actividades contempladas en el decreto 2333 de 2014, para la protección jurídica de los territorios ancestrales. | D165: TRANSFORMACIÓN DEL CAMPO | E165: Compartido con otra, o varias entidades del estado
A166: Pueblos Indigenas | B166: Ministerio del Interior | C166: Acompañamiento en la resolución de conflictos interétnicos e intra-étnicos para la demarcación de linderos de los territorios de los pueblos indígenas, en el marco de las competencias institucionales respectivas. | D166: TRANSFORMACIÓN DEL CAMPO | E166: Compartido con otra, o varias entidades del estado
A167: Pueblos Indigenas | B167: Unidad para la Atención y Reparación Integral a las Víctimas (UARIV) | C167: Apoyar el diseño de observatorios de pensamiento y propiciar la articulación efectiva de estos con el Museo Nacional de la Memoria; apoyar técnica y financieramente los escenarios que garanticen la participación de los Pueblos Indígenas en el Museo Nacional de la Memoria y en el Archivo de DDHH. | D167: SEGURIDAD, JUSTICIA Y DEMOCRACIA PARA LA CONSTRUCCIÓN DE PAZ | E167: Compartido con otra, o varias entidades del estado
A168: Pueblos Indigenas | B168: Unidad para la Atención y Reparación Integral a las Víctimas (UARIV) | C168: Programas de reconstrucción, fortalecimiento y revitalización de la memoria histórica de los Pueblos Indígenas de Colombia. | D168: SEGURIDAD, JUSTICIA Y DEMOCRACIA PARA LA CONSTRUCCIÓN DE PAZ | E168: Compartido con otra, o varias entidades del estado
A169: Pueblos Indigenas | B169: Ministerio del Interior | C169: Formulación concertada de los planes de retorno integrales. | D169: SEGURIDAD, JUSTICIA Y DEMOCRACIA PARA LA CONSTRUCCIÓN DE PAZ | E169: Compartido con otra, o varias entidades del estado
A170: Pueblos Indigenas | B170: Unidad Administrativa Especial de Gestión de Restitución de Tierras Despojadas (URT) | C170: Difusión permanente del Decreto Ley 4633 de 2011 | D170: SEGURIDAD, JUSTICIA Y DEMOCRACIA PARA LA CONSTRUCCIÓN DE PAZ | E170: Compartido con otra, o varias entidades del estado
A171: Pueblos Indigenas | B171: Unidad Administrativa Especial de Gestión de Restitución de Tierras Despojadas (URT) | C171: Implementación efectiva e integral del Decreto Ley 4633 de 2011, en todos sus componentes. | D171: SEGURIDAD, JUSTICIA Y DEMOCRACIA PARA LA CONSTRUCCIÓN DE PAZ | E171: Compartido con otra, o varias entidades del estado
A172: Pueblos Indigenas | B172: Unidad Administrativa Especial de Gestión de Restitución de Tierras Despojadas (URT) | C172: Garantizar el funcionamiento del equipo técnico de la Comisión de seguimiento de las Organizaciones Indígenas de la MPC al decreto 4633 de 2011. | D172: SEGURIDAD, JUSTICIA Y DEMOCRACIA PARA LA CONSTRUCCIÓN DE PAZ | E172: Compartido con otra, o varias entidades del estado
A173: Pueblos Indigenas | B173: Ministerio de Ambiente y Desarrollo Sostenible | C173: Construcción concertada del marco normativo para la protección jurídica de los conocimientos ancestrales y tradicionales de los Pueblos indígenas como aportes al desarrollo científico e innovación tecnológica, a través de un instrumento consultado y concertado con los pueblos indígenas. | D173: COMPETITIVIDAD E INFRAESTRUCTURA ESTRATÉGICA | E173: Compartido con otra, o varias entidades del estado
A174: Pueblos Indigenas | B174: Ministerio de Educación Nacional | C174: Formulación, concertación e implementación del plan decenal de lenguas nativas en el marco de la Ley 1381 de 2010. | D174: MOVILIDAD SOCIAL | E174: Compartido con otra, o varias entidades del estado
A175: Pueblos Indigenas | B175: Ministerio de Cultura | C175: Programa de fortalecimiento y recuperación de hitos culturales de los Pueblos Indígenas. | D175: CRECIMIENTO VERDE | E175: Compartido con otra, o varias entidades del estado
A176: Pueblos Indigenas | B176: ICANH | C176: Diseño e implementación concertada de una política pública de protección de sitios sagrados y de alto valor cultural de los pueblos indígenas. | D176: TRANSFORMACIÓN DEL CAMPO | E176: Compartido con otra, o varias entidades del estado
A177: Pueblos Indigenas | B177: Ministerio del Interior | C177: Diseño e implementación concertada de una política pública de protección de sitios sagrados y de alto valor cultural de los pueblos indígenas. | D177: TRANSFORMACIÓN DEL CAMPO | E177: Compartido con otra, o varias entidades del estado
A178: Pueblos Indigenas | B178: Ministerio del Interior | C178: Consulta previa y concertación del Proyecto de Ley Estatutaria que desarrolle el mandato del Artículo 246 de la Constitución Política, respecto de la coordinación entre los dos sistemas judiciales. | D178: SEGURIDAD, JUSTICIA Y DEMOCRACIA PARA LA CONSTRUCCIÓN DE PAZ | E178: Compartido con otra, o varias entidades del estado
A179: Pueblos Indigenas | B179: Ministerio del Interior | C179: Diseño e implementación concertada de una política pública de protección de sitios sagrados y de alto valor cultural de los pueblos indígenas. | D179: TRANSFORMACIÓN DEL CAMPO | E179: Compartido con otra, o varias entidades del estado
A180: Pueblos Indigenas | B180: ICANH | C180: Diseño e implementación concertada de una política pública de protección de sitios sagrados y de alto valor cultural de los pueblos indígenas. | D180: TRANSFORMACIÓN DEL CAMPO | E180: Compartido con otra, o varias entidades del estado
A181: Pueblos Indigenas | B181: Ministerio de Cultura | C181: Política pública de comunicación indígena. Las formas propias de comunicación contribuyen a conservar, revitalizar, fortalecer y dinamizar las formas de comunicación propia. | D181: MOVILIDAD SOCIAL | E181: Compartido con otra, o varias entidades del estado
A182: Pueblos Indigenas | B182: Departamento Nacional de Planeación (DNP) | C182: Asignación de la Bolsa de Fomento para el Fortalecimiento de la institucionalidad de las organizaciones de los Pueblos indígenas. | D182: BUEN GOBIERNO | E182: Compartido con otra, o varias entidades del estado
A183: Pueblos Indigenas | B183: Ministerio de Hacienda y Crédito Público | C183: Consolidación de una propuesta para poner en funcionamiento las entidades territoriales indígenas. | D183: BUEN GOBIERNO | E183: Compartido con otra, o varias entidades del estado
A184: Pueblos Indigenas | B184: Ministerio del Interior | C184: Programa de fortalecimiento de capacidades de las mujeres indígenas para el pleno ejercicio de sus derechos. | D184: SEGURIDAD, JUSTICIA Y DEMOCRACIA PARA LA CONSTRUCCIÓN DE PAZ | E184: Compartido con otra, o varias entidades del estado
A185: Pueblos Indigenas | B185: Unidad para la Atención y Reparación Integral a las Víctimas (UARIV) | C185: Elaboración de un plan de acción concertado con los pueblos indígenas, que permita dar cumplimiento al Decreto Ley 4633 de 2011. | D185: SEGURIDAD, JUSTICIA Y DEMOCRACIA PARA LA CONSTRUCCIÓN DE PAZ | E185: Compartido con otra, o varias entidades del estado
A186: Pueblos Indigenas | B186: Ministerio del Interior | C186: Elaboración de un plan de acción concertado con los pueblos indígenas, que permita dar cumplimiento al Decreto Ley 4633 de 2011. | D186: SEGURIDAD, JUSTICIA Y DEMOCRACIA PARA LA CONSTRUCCIÓN DE PAZ | E186: Compartido con otra, o varias entidades del estado
A187: Pueblos Indigenas | B187: INCODER | C187: El Ministerio de Agricultura y Desarrollo Rural a través del INCODER construirá e implementará, junto con los pueblos y organizaciones indígenas, proyectos de producción agropecuaria tradicional. | D187: MOVILIDAD SOCIAL | E187: Especifico de la entidad
A188: Pueblos Indigenas | B188: INCODER | C188: El Ministerio de Agricultura y Desarrollo Rural a través del INCODER apoyará la implementación de proyectos productivos con autonomía regional empoderando a los jóvenes indígenas rurales que contribuyan en la sostenibilidad de los territorios indígenas | D188: MOVILIDAD SOCIAL | E188: Especifico de la entidad
A189: Pueblos Indigenas | B189: INCODER | C189: Demarcación y delimitación conforme a lo establecido en el Decreto 2333 de 2014. | D189: TRANSFORMACIÓN DEL CAMPO | E189: Especifico de la entidad
A190: Pueblos Indigenas | B190: INCODER | C190: Constitución, ampliación y saneamiento de resguardos; adquisición de predios y mejoras; y adopción por parte del INCODER o la institución que haga sus veces, de un plan de titulaciones colectivas que permita terminar con los procesos pendientes, sin perjuicio de atender las nuevas solicitudes. | D190: TRANSFORMACIÓN DEL CAMPO | E190: Especifico de la entidad
A191: Pueblos Indigenas | B191: INCODER | C191: Delimitación de los territorios indígenas conforme a lo establecido en el Decreto 1953 de 2014. | D191: TRANSFORMACIÓN DEL CAMPO | E191: Especifico de la entidad
A192: Pueblos Indigenas | B192: INCODER | C192: Adelantar las actuaciones necesarias para garantizar la implementación de las instancias y las actividades contempladas en el decreto 2333 de 2014, para la protección jurídica de los territorios ancestrales. | D192: TRANSFORMACIÓN DEL CAMPO | E192: Compartido con otra, o varias entidades del estado
A193: Pueblos Indigenas | B193: INCODER | C193: Adelantar las actuaciones necesarias para garantizar los procesos de clarificación de la vigencia legal de los títulos de resguardos de origen colonial y su respectiva reestructuración, cuando haya lugar. | D193: TRANSFORMACIÓN DEL CAMPO | E193: Especifico de la entidad
A194: Pueblos Indigenas | B194: INCODER | C194: Fortalecimiento y funcionamiento de la Comisión Nacional de Territorios Indígenas (CNTI) | D194: TRANSFORMACIÓN DEL CAMPO | E194: Especifico de la entidad
A195: Pueblos Indigenas | B195: INCODER | C195: Caracterización de los territorios de los pueblos indígenas, acorde al Plan de Acción que establezca la Comisión Nacional de Territorios Indígenas. | D195: TRANSFORMACIÓN DEL CAMPO | E195: Especifico de la entidad
A196: Pueblos Indigenas | B196: INCODER | C196: Acompañamiento en la resolución de conflictos interétnicos e intra-étnicos para la demarcación de linderos de los territorios de los pueblos indígenas, en el marco de las competencias institucionales respectivas. | D196: TRANSFORMACIÓN DEL CAMPO | E196: Compartido con otra, o varias entidades del estado
A197: Pueblos Indigenas | B197: Entidades de la SNARIV | C197: Adecuación institucional que permita la implementación efectiva del Decreto Ley 4633 de 2011 en todos sus componentes, de manera integral. | D197: SEGURIDAD, JUSTICIA Y DEMOCRACIA PARA LA CONSTRUCCIÓN DE PAZ | E197: Transversal a todas las entidades del estado
A198: Pueblos Indigenas | B198: Transversal a todas las entidades del estado | C198: Apropiación presupuestal necesaria e implementación integral del Plan de Acción del Programa de Garantías de Derechos de los Pueblos Indígenas (Auto 004 de 2009). | D198: SEGURIDAD, JUSTICIA Y DEMOCRACIA PARA LA CONSTRUCCIÓN DE PAZ | E198: Transversal a todas las entidades del estado
A199: Pueblos Indigenas | B199: Entidades que integran el CISAN | C199: Construcción concertada y consulta de la política pública nacional de seguridad y autonomía alimentaria y nutricional para los pueblos indígenas, entre la Mesa Permanente de Concertación y la CISAN. | D199: MOVILIDAD SOCIAL | E199: Transversal a todas las entidades del estado
A200: Pueblos Indigenas | B200: Entidades que hacen parte del mecanismo de ruta étnica de protección de derechos territoriales, de acuerdo con sus competencias. | C200: Construir conjuntamente con los pueblos indígenas y sus organizaciones e implementar una estrategia para acelerar la aplicación de la ruta étnica de protección en el marco del Decreto Ley 4633 de 2011. | D200: SEGURIDAD, JUSTICIA Y DEMOCRACIA PARA LA CONSTRUCCIÓN DE PAZ | E200: Transversal a todas las entidades del estado
A201: Pueblos Indigenas | B201: Entidades que conforman el SNBF | C201: Formulación concertada con las autoridades y organizaciones indígenas de las acciones de prevención de explotación sexual y comercial de niños, niñas y adolescentes, y prevención de otras vulneraciones (abuso sexual). | D201: SEGURIDAD, JUSTICIA Y DEMOCRACIA PARA LA CONSTRUCCIÓN DE PAZ | E201: Transversal a todas las entidades del estado
... 79 more rows

Sheet analisis-INIDGENA (hidden)
B2: cd | C2: ct | D2: ce | E2: cf | F2: cg | G2: ch
B3: FUENTE DE FINANCIACIÓN | C3: REGIÓN DE INCIDENCIA | D3: DEPARTAMENTO | E3: EJE DEL PLAN NACIONAL DE DESARROLLO | F3: SECTOR DEL GOBIERNO NACIONAL | G3: ENTIDAD DEL GOBIERNO NACIONAL
A4: El presupuesto ejecutado en proyectos de inversión para pueblo indígena en la vigencia 2015 fue por un valor $ 2307833 millones de pesos. Dicha asignación se desagrega con las fuentes de financiación Recursos PGN por valor de $ 855749 millones de pesos, así mismo con Recursos SGP por valor de $ 1229286 millones de pesos y Recursos SGR con una participación absoluta de $ 2749 millones de pesos. | B4: Consolidado | C4: NO APLICA | D4: NO APLICA | E4: NO APLICA | F4: NO APLICA | G4: NO APLICA | H4: =+IF(AND(cd=B4,ct=C4,ce=D4,cf=E4,cg=F4,ch=G4),I4&J4&K4&L4&M4&N4&O4&P4&Q4) -> FALSE | I4: EL PRESUPUESTO EJECUTADO EN PROYECTOS DE INVERSIÓN PARA PUEBLO INDÍGENA EN LA VIGENCIA 2015 FUE POR UN VALOR $ | J4: =+ROUNDDOWN('PUEBLO INDIGENA'!B35/1000000,0) -> 1244268 | K4: MILLONES DE PESOS. DICHA ASIGNACIÓN SE DESAGREGA CON LAS FUENTES DE FINANCIACIÓN RECURSOS PGN POR VALOR DE $ | L4: =+ROUNDDOWN('PUEBLO INDIGENA'!B36/1000000,0) ->  | M4: MILLONES DE PESOS, ASÍ MISMO CON RECURSOS SGP POR VALOR DE $ | N4: =+ROUNDDOWN('PUEBLO INDIGENA'!B45/1000000,0) ->  | O4: MILLONES DE PESOS Y RECURSOS SGR CON UNA PARTICIPACIÓN ABSOLUTA DE $ | P4: =+ROUNDDOWN('PUEBLO INDIGENA'!B37/1000000,0) ->  | Q4: MILLONES DE PESOS.
A5: Los Recursos PGN ejecutados en proyectos de inversión para Pueblo indígena fueron de $ 855750 millones de pesos, con una inversión realizada por la entidad Icbf por valor de $ 149643 millones de pesos. | B5: Recursos PGN | C5: NIVEL NACIONAL | E5: Consolidado | F5: Consolidado | H5: =+IF(AND(cd=B5,ct=C5,cf=E5,cg=F5),I5&J5&K5&L5&M5&N5&O5&P5&Q5) -> FALSE | I5: LOS | J5: =+cd -> RECURSOS PGN | K5: EJECUTADOS EN PROYECTOS DE INVERSIÓN PARA PUEBLO INDÍGENA FUERON DE $ | L5: =+ROUNDDOWN('PUEBLO INDIGENA'!B40/1000000,0) -> 855749 | M5: MILLONES DE PESOS, CON UNA INVERSIÓN REALIZADA POR LA ENTIDAD | N5: =+ch -> 0 | O5: POR VALOR DE $ | P5: =+ROUNDDOWN('PUEBLO INDIGENA'!B38/1000000,0) ->  | Q5: MILLONES DE PESOS.
A6: Los Recursos PGN ejecutados en proyectos de inversión para Pueblo indígena fueron de $ 855750 millones de pesos con una participación en el sector Inclusión Social y Reconciliación por valor de $ 308462 millones de pesos y así mismo para la entidad Icbf una participación absoluta por valor de $ 149643 millones de pesos. | B6: RECURSOS PGN | C6: NIVEL NACIONAL | H6: =+IF(AND(cd=B6,ct=C6),I6&J6&K6&L6&M6&N6&O6&P6&Q6&R6&S6&T6&U6) -> FALSE | I6: LOS | J6: =+cd -> RECURSOS PGN | K6: EJECUTADOS EN PROYECTOS DE INVERSIÓN PARA PUEBLO INDÍGENA FUERON DE $ | L6: =+ROUNDDOWN('PUEBLO INDIGENA'!B40/1000000,0) -> 855749 | M6: MILLONES DE PESOS CON UNA PARTICIPACIÓN EN EL SECTOR | N6: =+cg -> 0 | O6: POR VALOR DE $ | P6: =+ROUNDDOWN('PUEBLO INDIGENA'!B37/1000000,0) ->  | Q6: MILLONES DE PESOS Y ASÍ MISMO PARA LA ENTIDAD | R6: =+ch -> 0 | S6: UNA PARTICIPACIÓN ABSOLUTA POR VALOR DE $ | T6: =+ROUNDDOWN('PUEBLO INDIGENA'!B38/1000000,0) ->  | U6: MILLONES DE PESOS.
A7: La asignación especial distribuida para los resguardos indígenas (AESGPRI) en las doce doceavas de la vigencia 2015 para proyectos de inversión, corresponde a Recursos SGP por valor de $ 165.724 millones de pesos, con una participación absoluta en la región EJE CAFETERO por $ 11.913 millones de pesos y así mismo una ejecución en el departamento Antioquia por valor de $ 2866 millones de pesos. | B7: Recursos SGP | H7: =+IF(AND(cd=B7),I7&J7&K7&L7&M7&N7&O7&P7&Q7&R7&S7&T7&U7) -> FALSE | I7: LA ASIGNACIÓN ESPECIAL DISTRIBUIDA PARA LOS RESGUARDOS INDÍGENAS (AESGPRI) EN LAS DOCE DOCEAVAS DE LA VIGENCIA 2015 PARA PROYECTOS DE INVERSIÓN, CORRESPONDE A | J7: =+cd -> RECURSOS PGN | K7: POR VALOR DE $ | L7: =+ROUNDDOWN('PUEBLO INDIGENA'!B40/1000000,0) -> 855749 | M7: MILLONES DE PESOS, CON UNA PARTICIPACIÓN ABSOLUTA EN LA REGIÓN | N7: =+ct -> 0 | O7: POR $ | P7: =+ROUNDDOWN('PUEBLO INDIGENA'!B36/1000000,0) ->  | Q7: MILLONES DE PESOS Y ASÍ MISMO UNA EJECUCIÓN EN EL DEPARTAMENTO | R7: =+ce -> 0 | S7: POR VALOR DE $ | T7: =+ROUNDDOWN('PUEBLO INDIGENA'!B37/1000000,0) ->  | U7: MILLONES DE PESOS.
A8: El presupuesto ejecutado en proyectos de inversión para pueblo indígena asignado con Recursos SGR fue por valor de $ 222794 millones de pesos EN LA VIGENCIA 2015, con una participación absoluta en la región EJE CAFETERO por valor $ 47390 millones de pesos y así mismo una ejecución en el departamento Antioquia por valor de $ 710 millones de pesos. | B8: RECURSOS SGR | H8: =+IF(cd=B8,I8&J8&K8&L8&M8&N8&O8&P8&Q8&R8&S8&T8&U8) -> FALSE | I8: EL PRESUPUESTO EJECUTADO EN PROYECTOS DE INVERSIÓN PARA PUEBLO INDÍGENA ASIGNADO CON | J8: =+cd -> RECURSOS PGN | K8: FUE POR VALOR DE $ | L8: =+ROUNDDOWN('PUEBLO INDIGENA'!B40/1000000,0) -> 855749 | M8: MILLONES DE PESOS EN LA VIGENCIA 2015, CON UNA PARTICIPACIÓN ABSOLUTA EN LA REGIÓN | N8: =+ct -> 0 | O8: POR VALOR $ | P8: =+ROUNDDOWN('PUEBLO INDIGENA'!B36/1000000,0) ->  | Q8: MILLONES DE PESOS Y ASÍ MISMO UNA EJECUCIÓN EN EL DEPARTAMENTO | R8: =+ce -> 0 | S8: POR VALOR DE $ | T8: =+ROUNDDOWN('PUEBLO INDIGENA'!B37/1000000,0) ->  | U8: MILLONES DE PESOS.
A11: FALSE
A12: =+IF(H4<>$A$11,H4,IF(H5<>$A$11,H5,IF(H6<>$A$11,H6,IF(H7<>$A$11,H7,H8)))) -> FALSE

Sheet Tab Pres PI (hidden)
A2: Base para busqueda 1 | E2: ok
A3: Grupo étnico | B3: Fuente de financiación | C3: area de incidencia | E3: Total
A4: Pueblo indígena | B4: Recursos PGN | C4: Nivel Nacional | D4: =+A4&B4&C4 -> Pueblo indígenaRecursos PGNNivel Nacional | E4: 8.557490318e+11 | G4: 1050422352565 | H4: 8.557490318e+11
A5: Pueblo indígena | B5: Recursos PGN | C5: Consolidado | D5: =+A5&B5&C5 -> Pueblo indígenaRecursos PGNConsolidado | E5: 8.557490318e+11 | G5: 1050422352565
A6: Pueblo indígena | B6: Recursos SGP | C6: AMAZONAS | D6: Pueblo indígenaRecursos SGPAMAZONAS | E6: 9086379432 | F6: 4169231504 | G6: 9086379432
A7: Pueblo indígena | B7: Recursos SGP | C7: ANTIOQUIA | D7: Pueblo indígenaRecursos SGPANTIOQUIA | E7: 2866347189 | F7: 2866347189 | G7: 2866347189
A8: Pueblo indígena | B8: Recursos SGP | C8: ARAUCA | D8: Pueblo indígenaRecursos SGPARAUCA | E8: 630480993 | F8: 630480993 | G8: 630480993
A9: Pueblo indígena | B9: Recursos SGP | C9: Boyacá | D9: Pueblo indígenaRecursos SGPBoyacá | E9: 654498039 | F9: 654498039 | G9: 654498039
A10: Pueblo indígena | B10: Recursos SGP | C10: CALDAS | D10: Pueblo indígenaRecursos SGPCALDAS | E10: 6822585231 | F10: 6822585231 | G10: 6822585231
A11: Pueblo indígena | B11: Recursos SGP | C11: Caquetá | D11: Pueblo indígenaRecursos SGPCaquetá | E11: 1245263694 | F11: 1245263694 | G11: 1245263694
A12: Pueblo indígena | B12: Recursos SGP | C12: CASANARE | D12: Pueblo indígenaRecursos SGPCASANARE | E12: 967352231 | F12: 967352231 | G12: 967352231
A13: Pueblo indígena | B13: Recursos SGP | C13: CAUCA | D13: Pueblo indígenaRecursos SGPCAUCA | E13: 33240026504 | F13: 33240026504 | G13: 33240026504
A14: Pueblo indígena | B14: Recursos SGP | C14: CESAR | D14: Pueblo indígenaRecursos SGPCESAR | E14: 6118174675 | F14: 6118174675 | G14: 6118174675
A15: Pueblo indígena | B15: Recursos SGP | C15: CHOCO | D15: Pueblo indígenaRecursos SGPCHOCO | E15: 8018587220 | F15: 8018587220 | G15: 8018587220
A16: Pueblo indígena | B16: Recursos SGP | C16: CORDOBA | D16: Pueblo indígenaRecursos SGPCORDOBA | E16: 7757103239 | F16: 7757103239 | G16: 7757103239
A17: Pueblo indígena | B17: Recursos SGP | C17: CUNDINAMARCA | D17: Pueblo indígenaRecursos SGPCUNDINAMARCA | E17: 121829483 | F17: 121829483 | G17: 121829483
A18: Pueblo indígena | B18: Recursos SGP | C18: Guainía | D18: Pueblo indígenaRecursos SGPGuainía | E18: 5053111215 | F18: 2405749339 | G18: 5053111215
A19: Pueblo indígena | B19: Recursos SGP | C19: GUAVIARE | D19: Pueblo indígenaRecursos SGPGUAVIARE | E19: 1487446751 | F19: 1487446751 | G19: 1487446751
A20: Pueblo indígena | B20: Recursos SGP | C20: HUILA | D20: Pueblo indígenaRecursos SGPHUILA | E20: 951423861 | F20: 951423861 | G20: 951423861
A21: Pueblo indígena | B21: Recursos SGP | C21: LA GUAJIRA | D21: Pueblo indígenaRecursos SGPLA GUAJIRA | E21: 37709981904 | F21: 37709981904 | G21: 37709981904
A22: Pueblo indígena | B22: Recursos SGP | C22: MAGDALENA | D22: Pueblo indígenaRecursos SGPMAGDALENA | E22: 1281356349 | F22: 1281356349 | G22: 1281356349
A23: Pueblo indígena | B23: Recursos SGP | C23: META | D23: Pueblo indígenaRecursos SGPMETA | E23: 1593980463 | F23: 1593980463 | G23: 1593980463
A24: Pueblo indígena | B24: Recursos SGP | C24: N. DE SANTANDER | D24: Pueblo indígenaRecursos SGPN. DE SANTANDER | E24: 18221984903 | F24: 705483946 | G24: 18221984903
A25: Pueblo indígena | B25: Recursos SGP | C25: NARIÑO | D25: Pueblo indígenaRecursos SGPNARIÑO | E25: 705483946 | F25: 18221984903 | G25: 705483946
A26: Pueblo indígena | B26: Recursos SGP | C26: PUTUMAYO | D26: Pueblo indígenaRecursos SGPPUTUMAYO | E26: 4011249152 | F26: 4011249152 | G26: 4011249152
A27: Pueblo indígena | B27: Recursos SGP | C27: QUINDIO | D27: Pueblo indígenaRecursos SGPQUINDIO | E27: 31128238 | F27: 31128238 | G27: 31128238
A28: Pueblo indígena | B28: Recursos SGP | C28: RISARALDA | D28: Pueblo indígenaRecursos SGPRISARALDA | E28: 1473224366 | F28: 1473224366 | G28: 1473224366
A29: Pueblo indígena | B29: Recursos SGP | C29: SANTANDER | D29: Pueblo indígenaRecursos SGPSANTANDER | E29: 133905093 | F29: 133905093 | G29: 133905093
A30: Pueblo indígena | B30: Recursos SGP | C30: SUCRE | D30: Pueblo indígenaRecursos SGPSUCRE | E30: 2510385055 | F30: 2510385055 | G30: 2510385055
A31: Pueblo indígena | B31: Recursos SGP | C31: TOLIMA | D31: Pueblo indígenaRecursos SGPTOLIMA | E31: 3882174303 | F31: 3882174303 | G31: 3882174303
A32: Pueblo indígena | B32: Recursos SGP | C32: VALLE DEL CAUCA | D32: Pueblo indígenaRecursos SGPVALLE DEL CAUCA | E32: 1476589231 | F32: 1476589231 | G32: 1476589231
A33: Pueblo indígena | B33: Recursos SGP | C33: Vaupés | D33: Pueblo indígenaRecursos SGPVaupés | E33: 3268123870 | F33: 2790624862 | G33: 3268123870
A34: Pueblo indígena | B34: Recursos SGP | C34: VICHADA | D34: Pueblo indígenaRecursos SGPVICHADA | E34: 4404377327 | F34: 4404377327 | G34: 4404377327
A35: Pueblo indígena | B35: Recursos SGP | C35: Consolidado | D35: Pueblo indígenaRecursos SGPConsolidado | E35: 165724553957 | F35: =SUM(F6:F34) -> 157682545145 | G35: =SUM(G6:G34) -> 165724553957
A36: Pueblo indígena | B36: Recursos SGR | C36: AMAZONAS | D36: Pueblo indígenaRecursos SGRAMAZONAS | E36: 54226370235
A37: Pueblo indígena | B37: Recursos SGR | C37: ANTIOQUIA | D37: Pueblo indígenaRecursos SGRANTIOQUIA | E37: 1050218837
A38: Pueblo indígena | B38: Recursos SGR | C38: ARAUCA | D38: Pueblo indígenaRecursos SGRARAUCA | E38: 1412144495
A39: Pueblo indígena | B39: Recursos SGR | C39: Boyacá | D39: Pueblo indígenaRecursos SGRBoyacá | E39: 8315510
A40: Pueblo indígena | B40: Recursos SGR | C40: CALDAS | D40: Pueblo indígenaRecursos SGRCALDAS | E40: 800000000
A41: Pueblo indígena | B41: Recursos SGR | C41: Caquetá | D41: Pueblo indígenaRecursos SGRCaquetá | E41: 669231696.5
A42: Pueblo indígena | B42: Recursos SGR | C42: CASANARE | D42: Pueblo indígenaRecursos SGRCASANARE | E42: 8668269905
A43: Pueblo indígena | B43: Recursos SGR | C43: CAUCA | D43: Pueblo indígenaRecursos SGRCAUCA | E43: 30321248086
A44: Pueblo indígena | B44: Recursos SGR | C44: CESAR | D44: Pueblo indígenaRecursos SGRCESAR | E44: 304721230
A45: Pueblo indígena | B45: Recursos SGR | C45: CHOCO | D45: Pueblo indígenaRecursos SGRCHOCO | E45: 710651865
A46: Pueblo indígena | B46: Recursos SGR | C46: CORDOBA | D46: Pueblo indígenaRecursos SGRCORDOBA | E46: 3388677111
A47: Pueblo indígena | B47: Recursos SGR | C47: CORPORACIONES | D47: Pueblo indígenaRecursos SGRCORPORACIONES | E47: 2024176703
A48: Pueblo indígena | B48: Recursos SGR | C48: Guainía | D48: Pueblo indígenaRecursos SGRGuainía | E48: 16430718476
A49: Pueblo indígena | B49: Recursos SGR | C49: GUAVIARE | D49: Pueblo indígenaRecursos SGRGUAVIARE | E49: 6005911559
A50: Pueblo indígena | B50: Recursos SGR | C50: HUILA | D50: Pueblo indígenaRecursos SGRHUILA | E50: 1550159180
A51: Pueblo indígena | B51: Recursos SGR | C51: LA GUAJIRA | D51: Pueblo indígenaRecursos SGRLA GUAJIRA | E51: 4.088547838e+10
A52: Pueblo indígena | B52: Recursos SGR | C52: MAGDALENA | D52: Pueblo indígenaRecursos SGRMAGDALENA | E52: 1537620000
A53: Pueblo indígena | B53: Recursos SGR | C53: META | D53: Pueblo indígenaRecursos SGRMETA | E53: 2.535589681e+10
A54: Pueblo indígena | B54: Recursos SGR | C54: N. DE SANTANDER | D54: Pueblo indígenaRecursos SGRN. DE SANTANDER | E54: 449985432
A55: Pueblo indígena | B55: Recursos SGR | C55: NARIÑO | D55: Pueblo indígenaRecursos SGRNARIÑO | E55: 1.616618705e+10
A56: Pueblo indígena | B56: Recursos SGR | C56: PUTUMAYO | D56: Pueblo indígenaRecursos SGRPUTUMAYO | E56: 8515676742
A57: Pueblo indígena | B57: Recursos SGR | C57: RISARALDA | D57: Pueblo indígenaRecursos SGRRISARALDA | E57: 30826014.4
A58: Pueblo indígena | B58: Recursos SGR | C58: SUCRE | D58: Pueblo indígenaRecursos SGRSUCRE | E58: 1947662165
A59: Pueblo indígena | B59: Recursos SGR | C59: TOLIMA | D59: Pueblo indígenaRecursos SGRTOLIMA | E59: 141798876 | G59: =+E62+E61 -> 1.467062958e+12
A60: Pueblo indígena | B60: Recursos SGR | C60: VALLE DEL CAUCA | D60: Pueblo indígenaRecursos SGRVALLE DEL CAUCA | E60: 192739758
A61: Pueblo indígena | B61: Recursos SGR | C61: Consolidado | D61: Pueblo indígenaRecursos SGRConsolidado | E61: 2.227946861e+11 | G61: =+E61+E68 -> 1.244268272e+12 | H61: =+E62+E63 -> 1244268271858
A62: Pueblo Indígena | B62: Consolidado | C62: Consolidado | D62: Pueblo IndígenaConsolidadoConsolidado | E62: 1244268271858 | F62: =+E35+E4 -> 1.021473586e+12 | G62: =+mas sgr -> 
F66: =+E62+E65 -> 1244268271858 | G66: =+E66+E65 -> 0
F67: =+E66+E61 -> 2.227946861e+11
A68: Base para busqueda 2 | E68: 1021473585741 | H68: =+G80+G103+G118+G180+G199+G213 -> 855749028784
A69: Grupo étnico | B69: Fuente de financiación | C69: Eje | D69: Sector | E69: Entidad | G69: Total
A70: Pueblo indígena | B70: Recursos PGN | C70: BUEN GOBIERNO | D70: Hacienda | E70: MINISTERIO DE HACIENDA | F70: =+A70&B70&C70&D70&E70 -> Pueblo indígenaRecursos PGNBUEN GOBIERNOHaciendaMINISTERIO DE HACIENDA | G70: 0
A71: Pueblo indígena | B71: Recursos PGN | C71: BUEN GOBIERNO | D71: Hacienda | E71: Consolidado | F71: =+A71&B71&C71&D71&E71 -> Pueblo indígenaRecursos PGNBUEN GOBIERNOHaciendaConsolidado | G71: 0
A72: Pueblo indígena | B72: Recursos PGN | C72: BUEN GOBIERNO | D72: Inclusión Social Y Reconciliación | E72: ICBF | F72: Pueblo indígenaRecursos PGNBUEN GOBIERNOInclusión Social Y ReconciliaciónICBF | G72: 0
A73: Pueblo indígena | B73: Recursos PGN | C73: BUEN GOBIERNO | D73: Inclusión Social Y Reconciliación | E73: Consolidado | F73: Pueblo indígenaRecursos PGNBUEN GOBIERNOInclusión Social Y ReconciliaciónConsolidado | G73: 0
A74: Pueblo indígena | B74: Recursos PGN | C74: BUEN GOBIERNO | D74: Información Estadística | E74: DANE | F74: Pueblo indígenaRecursos PGNBUEN GOBIERNOInformación EstadísticaDANE | G74: 900000000 | H74: 900000000
A75: Pueblo indígena | B75: Recursos PGN | C75: BUEN GOBIERNO | D75: Información Estadística | E75: Consolidado | F75: Pueblo indígenaRecursos PGNBUEN GOBIERNOInformación EstadísticaConsolidado | G75: 900000000 | H75: 900000000
A76: Pueblo indígena | B76: Recursos PGN | C76: BUEN GOBIERNO | D76: Interior | E76: MININTERIOR | F76: Pueblo indígenaRecursos PGNBUEN GOBIERNOInteriorMININTERIOR | G76: 0
A77: Pueblo indígena | B77: Recursos PGN | C77: BUEN GOBIERNO | D77: Interior | E77: Consolidado | F77: Pueblo indígenaRecursos PGNBUEN GOBIERNOInteriorConsolidado | G77: 0
A78: Pueblo indígena | B78: Recursos PGN | C78: BUEN GOBIERNO | D78: Relaciones exteriores | E78: FONRELACIONES | F78: Pueblo indígenaRecursos PGNBUEN GOBIERNORelaciones exterioresFONRELACIONES | G78: 1570250868 | H78: 1570250868
A79: Pueblo indígena | B79: Recursos PGN | C79: BUEN GOBIERNO | D79: Relaciones exteriores | E79: Consolidado | F79: Pueblo indígenaRecursos PGNBUEN GOBIERNORelaciones exterioresConsolidado | G79: 1570250868 | H79: 1570250868
A80: Pueblo indígena | B80: Recursos PGN | C80: BUEN GOBIERNO | D80: Consolidado | E80: Consolidado | F80: Pueblo indígenaRecursos PGNBUEN GOBIERNOConsolidadoConsolidado | G80: 2470250868 | H80: 2470250868 | I80: =+H79+H75 -> 2470250868
A81: Pueblo indígena | B81: Recursos PGN | C81: Competitividad e infraestructura estratégicas | D81: Ambiente Y Desarrollo Sostenible | E81: MINISTERIO DE AMBIENTE | F81: Pueblo indígenaRecursos PGNCompetitividad e infraestructura estratégicasAmbiente Y Desarrollo SostenibleMINISTERIO DE AMBIENTE | G81: 0
A82: Pueblo indígena | B82: Recursos PGN | C82: Competitividad e infraestructura estratégicas | D82: Ambiente Y Desarrollo Sostenible | E82: Consolidado | F82: Pueblo indígenaRecursos PGNCompetitividad e infraestructura estratégicasAmbiente Y Desarrollo SostenibleConsolidado | G82: 0
A83: Pueblo indígena | B83: Recursos PGN | C83: Competitividad e infraestructura estratégicas | D83: Ciencia y Tecnología | E83: COLCIENCIAS | F83: Pueblo indígenaRecursos PGNCompetitividad e infraestructura estratégicasCiencia y TecnologíaCOLCIENCIAS | G83: 0
A84: Pueblo indígena | B84: Recursos PGN | C84: Competitividad e infraestructura estratégicas | D84: Ciencia y Tecnología | E84: Consolidado | F84: Pueblo indígenaRecursos PGNCompetitividad e infraestructura estratégicasCiencia y TecnologíaConsolidado | G84: 0
A85: Pueblo indígena | B85: Recursos PGN | C85: Competitividad e infraestructura estratégicas | D85: Comercio, Industria Y Turismo | E85: MINCOMERCIO | F85: Pueblo indígenaRecursos PGNCompetitividad e infraestructura estratégicasComercio, Industria Y TurismoMINCOMERCIO | G85: 1380000000 | H85: 1380000000
A86: Pueblo indígena | B86: Recursos PGN | C86: Competitividad e infraestructura estratégicas | D86: Comercio, Industria Y Turismo | E86: Consolidado | F86: Pueblo indígenaRecursos PGNCompetitividad e infraestructura estratégicasComercio, Industria Y TurismoConsolidado | G86: 1380000000 | H86: 1380000000
A87: Pueblo indígena | B87: Recursos PGN | C87: Competitividad e infraestructura estratégicas | D87: Comunicaciones | E87: FONDO DE TECNOLOGIAS DE LA INFO. Y LAS COMUN. - FONTIC | F87: Pueblo indígenaRecursos PGNCompetitividad e infraestructura estratégicasComunicacionesFONDO DE TECNOLOGIAS DE LA INFO. Y LAS COMUN. - FONTIC | G87: 34362170897 | H87: 34362170897
A88: Pueblo indígena | B88: Recursos PGN | C88: Competitividad e infraestructura estratégicas | D88: Comunicaciones | E88: Consolidado | F88: Pueblo indígenaRecursos PGNCompetitividad e infraestructura estratégicasComunicacionesConsolidado | G88: 34362170897 | H88: 34362170897
A89: Pueblo indígena | B89: Recursos PGN | C89: Competitividad e infraestructura estratégicas | D89: Inclusión Social Y Reconciliación | E89: DPS | F89: Pueblo indígenaRecursos PGNCompetitividad e infraestructura estratégicasInclusión Social Y ReconciliaciónDPS | G89: 0
A90: Pueblo indígena | B90: Recursos PGN | C90: Competitividad e infraestructura estratégicas | D90: Inclusión Social Y Reconciliación | E90: Consolidado | F90: Pueblo indígenaRecursos PGNCompetitividad e infraestructura estratégicasInclusión Social Y ReconciliaciónConsolidado | G90: 0
A91: Pueblo indígena | B91: Recursos PGN | C91: Competitividad e infraestructura estratégicas | D91: Interior | E91: MININTERIOR | F91: Pueblo indígenaRecursos PGNCompetitividad e infraestructura estratégicasInteriorMININTERIOR | G91: 0
A92: Pueblo indígena | B92: Recursos PGN | C92: Competitividad e infraestructura estratégicas | D92: Interior | E92: Consolidado | F92: Pueblo indígenaRecursos PGNCompetitividad e infraestructura estratégicasInteriorConsolidado | G92: 0
A93: Pueblo indígena | B93: Recursos PGN | C93: Competitividad e infraestructura estratégicas | D93: Minas Y Energía | E93: MinMinas | F93: Pueblo indígenaRecursos PGNCompetitividad e infraestructura estratégicasMinas Y EnergíaMinMinas | G93: 1520000000 | H93: 1520000000
A94: Pueblo indígena | B94: Recursos PGN | C94: Competitividad e infraestructura estratégicas | D94: Minas Y Energía | E94: Consolidado | F94: Pueblo indígenaRecursos PGNCompetitividad e infraestructura estratégicasMinas Y EnergíaConsolidado | G94: 1520000000 | H94: 1520000000
A95: Pueblo indígena | B95: Recursos PGN | C95: Competitividad e infraestructura estratégicas | D95: Transporte | E95: MINISTERIO DE TRANSPORTE | F95: Pueblo indígenaRecursos PGNCompetitividad e infraestructura estratégicasTransporteMINISTERIO DE TRANSPORTE | G95: 0
A96: Pueblo indígena | B96: Recursos PGN | C96: Competitividad e infraestructura estratégicas | D96: Transporte | E96: Consolidado | F96: Pueblo indígenaRecursos PGNCompetitividad e infraestructura estratégicasTransporteConsolidado | G96: 0
A97: Pueblo indígena | B97: Recursos PGN | C97: Competitividad e infraestructura estratégicas | D97: Minas Y Energía | E97: AGENCIA NACIONAL DE MINERIA | F97: Pueblo indígenaRecursos PGNCompetitividad e infraestructura estratégicasMinas Y EnergíaAGENCIA NACIONAL DE MINERIA | G97: 65161376 | H97: 65161376
A98: Pueblo indígena | B98: Recursos PGN | C98: Competitividad e infraestructura estratégicas | D98: Minas Y Energía | E98: Consolidado | F98: Pueblo indígenaRecursos PGNCompetitividad e infraestructura estratégicasMinas Y EnergíaConsolidado | G98: 65161376 | H98: 65161376
A99: Pueblo indígena | B99: Recursos PGN | C99: Competitividad e infraestructura estratégicas | D99: Transporte | E99: INVIAS | F99: Pueblo indígenaRecursos PGNCompetitividad e infraestructura estratégicasTransporteINVIAS | G99: 129546303882 | H99: 129546303882
A100: Pueblo indígena | B100: Recursos PGN | C100: Competitividad e infraestructura estratégicas | D100: Transporte | E100: Consolidado | F100: Pueblo indígenaRecursos PGNCompetitividad e infraestructura estratégicasTransporteConsolidado | G100: 129546303882 | H100: 129546303882
A101: Pueblo indígena | B101: Recursos PGN | C101: Competitividad e infraestructura estratégicas | D101: Comercio, Industria Y Turismo | E101: ARTESANIAS DE COLOMBIA | F101: Pueblo indígenaRecursos PGNCompetitividad e infraestructura estratégicasComercio, Industria Y TurismoARTESANIAS DE COLOMBIA | G101: 25758560 | H101: 25758560
A102: Pueblo indígena | B102: Recursos PGN | C102: Competitividad e infraestructura estratégicas | D102: Comercio, Industria Y Turismo | E102: Consolidado | F102: Pueblo indígenaRecursos PGNCompetitividad e infraestructura estratégicasComercio, Industria Y TurismoConsolidado | G102: 25758560 | H102: 25758560
A103: Pueblo indígena | B103: Recursos PGN | C103: Competitividad e infraestructura estratégicas | D103: Consolidado | E103: Consolidado | F103: Pueblo indígenaRecursos PGNCompetitividad e infraestructura estratégicasConsolidadoConsolidado | G103: 166899394715 | H103: =+H102+H100+H98+H94++H88+H86 -> 166899394715
G104: 0
G105: 0
A106: Pueblo indígena | B106: Recursos PGN | C106: CRECIMIENTO VERDE | D106: Cultura | E106: MINCULTURA | F106: Pueblo indígenaRecursos PGNCRECIMIENTO VERDECulturaMINCULTURA | G106: 0
A107: Pueblo indígena | B107: Recursos PGN | C107: CRECIMIENTO VERDE | D107: Cultura | E107: Consolidado | F107: Pueblo indígenaRecursos PGNCRECIMIENTO VERDECulturaConsolidado | G107: 0
A108: Pueblo indígena | B108: Recursos PGN | C108: CRECIMIENTO VERDE | D108: Información Estadística | E108: IGAC | F108: Pueblo indígenaRecursos PGNCRECIMIENTO VERDEInformación EstadísticaIGAC | G108: 0
A109: Pueblo indígena | B109: Recursos PGN | C109: CRECIMIENTO VERDE | D109: Información Estadística | E109: Consolidado | F109: Pueblo indígenaRecursos PGNCRECIMIENTO VERDEInformación EstadísticaConsolidado | G109: 0
A110: Pueblo indígena | B110: Recursos PGN | C110: CRECIMIENTO VERDE | D110: Interior | E110: MININTERIOR | F110: Pueblo indígenaRecursos PGNCRECIMIENTO VERDEInteriorMININTERIOR | G110: 0
A111: Pueblo indígena | B111: Recursos PGN | C111: CRECIMIENTO VERDE | D111: Interior | E111: Consolidado | F111: Pueblo indígenaRecursos PGNCRECIMIENTO VERDEInteriorConsolidado | G111: 0
A112: Pueblo indígena | B112: Recursos PGN | C112: CRECIMIENTO VERDE | D112: Ambiente Y Desarrollo Sostenible | E112: CORPOR. AUTONOMA REGIONAL PARA EL DES. CHOCO - CODECHOCO | F112: Pueblo indígenaRecursos PGNCRECIMIENTO VERDEAmbiente Y Desarrollo SostenibleCORPOR. AUTONOMA REGIONAL PARA EL DES. CHOCO - CODECHOCO | G112: 50000000 | I112: 50000000
A113: Pueblo indígena | B113: Recursos PGN | C113: CRECIMIENTO VERDE | D113: Ambiente Y Desarrollo Sostenible | E113: Consolidado | F113: Pueblo indígenaRecursos PGNCRECIMIENTO VERDEAmbiente Y Desarrollo SostenibleConsolidado | G113: 50000000
A114: Pueblo indígena | B114: Recursos PGN | C114: CRECIMIENTO VERDE | D114: Interior | E114: NASA KI WE | F114: Pueblo indígenaRecursos PGNCRECIMIENTO VERDEInteriorNASA KI WE | G114: 9781920283 | H114: =+G116+G112 -> 2324444971 | I114: 9781920283
A115: Pueblo indígena | B115: Recursos PGN | C115: CRECIMIENTO VERDE | D115: Interior | E115: Consolidado | F115: Pueblo indígenaRecursos PGNCRECIMIENTO VERDEInteriorConsolidado | G115: 9781920283
A116: Pueblo indígena | B116: Recursos PGN | C116: CRECIMIENTO VERDE | D116: Ambiente Y Desarrollo Sostenible | E116: UAE. Sistema de Parques Nal Naturales | F116: Pueblo indígenaRecursos PGNCRECIMIENTO VERDEAmbiente Y Desarrollo SostenibleUAE. Sistema de Parques Nal Naturales | G116: 2274444971 | I116: 2274444971
A117: Pueblo indígena | B117: Recursos PGN | C117: CRECIMIENTO VERDE | D117: Ambiente Y Desarrollo Sostenible | E117: Consolidado | F117: Pueblo indígenaRecursos PGNCRECIMIENTO VERDEAmbiente Y Desarrollo SostenibleConsolidado | G117: 2274444971
A118: Pueblo indígena | B118: Recursos PGN | C118: CRECIMIENTO VERDE | D118: Consolidado | E118: Consolidado | F118: Pueblo indígenaRecursos PGNCRECIMIENTO VERDEConsolidadoConsolidado | G118: 12106365254 | H118: =+G116+G114+G112 -> 12106365254
A119: Pueblo indígena | B119: Recursos PGN | C119: Inversiones adicionales | D119: Agropecuario | E119: INCODER | F119: Pueblo indígenaRecursos PGNInversiones adicionalesAgropecuarioINCODER | G119: 0
A120: Pueblo indígena | B120: Recursos PGN | C120: Inversiones adicionales | D120: Agropecuario | E120: MinAgricultura | F120: Pueblo indígenaRecursos PGNInversiones adicionalesAgropecuarioMinAgricultura | G120: 0
A121: Pueblo indígena | B121: Recursos PGN | C121: Inversiones adicionales | D121: Agropecuario | E121: Consolidado | F121: Pueblo indígenaRecursos PGNInversiones adicionalesAgropecuarioConsolidado | G121: 0
A122: Pueblo indígena | B122: Recursos PGN | C122: Inversiones adicionales | D122: Ambiente Y Desarrollo Sostenible | E122: CODECHOCO | F122: Pueblo indígenaRecursos PGNInversiones adicionalesAmbiente Y Desarrollo SostenibleCODECHOCO | G122: 0
A123: Pueblo indígena | B123: Recursos PGN | C123: Inversiones adicionales | D123: Ambiente Y Desarrollo Sostenible | E123: MINISTERIO DE AMBIENTE | F123: Pueblo indígenaRecursos PGNInversiones adicionalesAmbiente Y Desarrollo SostenibleMINISTERIO DE AMBIENTE | G123: 0
A124: Pueblo indígena | B124: Recursos PGN | C124: Inversiones adicionales | D124: Ambiente Y Desarrollo Sostenible | E124: Consolidado | F124: Pueblo indígenaRecursos PGNInversiones adicionalesAmbiente Y Desarrollo SostenibleConsolidado | G124: 0
A125: Pueblo indígena | B125: Recursos PGN | C125: Inversiones adicionales | D125: Comercio, Industria Y Turismo | E125: ARTESANIAS DE COLOMBIA | F125: Pueblo indígenaRecursos PGNInversiones adicionalesComercio, Industria Y TurismoARTESANIAS DE COLOMBIA | G125: 0
A126: Pueblo indígena | B126: Recursos PGN | C126: Inversiones adicionales | D126: Comercio, Industria Y Turismo | E126: Consolidado | F126: Pueblo indígenaRecursos PGNInversiones adicionalesComercio, Industria Y TurismoConsolidado | G126: 0
A127: Pueblo indígena | B127: Recursos PGN | C127: Inversiones adicionales | D127: Comunicaciones | E127: MINISTERIO DE LAS TIC | F127: Pueblo indígenaRecursos PGNInversiones adicionalesComunicacionesMINISTERIO DE LAS TIC | G127: 0
A128: Pueblo indígena | B128: Recursos PGN | C128: Inversiones adicionales | D128: Comunicaciones | E128: Consolidado | F128: Pueblo indígenaRecursos PGNInversiones adicionalesComunicacionesConsolidado | G128: 0
A129: Pueblo indígena | B129: Recursos PGN | C129: Inversiones adicionales | D129: Cultura | E129: MINCULTURA | F129: Pueblo indígenaRecursos PGNInversiones adicionalesCulturaMINCULTURA | G129: 0
A130: Pueblo indígena | B130: Recursos PGN | C130: Inversiones adicionales | D130: Cultura | E130: Consolidado | F130: Pueblo indígenaRecursos PGNInversiones adicionalesCulturaConsolidado | G130: 0
A131: Pueblo indígena | B131: Recursos PGN | C131: Inversiones adicionales | D131: Educación | E131: MinEducación | F131: Pueblo indígenaRecursos PGNInversiones adicionalesEducaciónMinEducación | G131: 0
A132: Pueblo indígena | B132: Recursos PGN | C132: Inversiones adicionales | D132: Educación | E132: Consolidado | F132: Pueblo indígenaRecursos PGNInversiones adicionalesEducaciónConsolidado | G132: 0
A133: Pueblo indígena | B133: Recursos PGN | C133: Inversiones adicionales | D133: Inclusión Social Y Reconciliación | E133: DPS | F133: Pueblo indígenaRecursos PGNInversiones adicionalesInclusión Social Y ReconciliaciónDPS | G133: 0
A134: Pueblo indígena | B134: Recursos PGN | C134: Inversiones adicionales | D134: Inclusión Social Y Reconciliación | E134: ICBF | F134: Pueblo indígenaRecursos PGNInversiones adicionalesInclusión Social Y ReconciliaciónICBF | G134: 0
A135: Pueblo indígena | B135: Recursos PGN | C135: Inversiones adicionales | D135: Inclusión Social Y Reconciliación | E135: UNIDAD DE VÍCTIMAS | F135: Pueblo indígenaRecursos PGNInversiones adicionalesInclusión Social Y ReconciliaciónUNIDAD DE VÍCTIMAS | G135: 0
A136: Pueblo indígena | B136: Recursos PGN | C136: Inversiones adicionales | D136: Inclusión Social Y Reconciliación | E136: Consolidado | F136: Pueblo indígenaRecursos PGNInversiones adicionalesInclusión Social Y ReconciliaciónConsolidado | G136: 0
A137: Pueblo indígena | B137: Recursos PGN | C137: Inversiones adicionales | D137: Interior | E137: MININTERIOR | F137: Pueblo indígenaRecursos PGNInversiones adicionalesInteriorMININTERIOR | G137: 0
A138: Pueblo indígena | B138: Recursos PGN | C138: Inversiones adicionales | D138: Interior | E138: Consolidado | F138: Pueblo indígenaRecursos PGNInversiones adicionalesInteriorConsolidado | G138: 0
A139: Pueblo indígena | B139: Recursos PGN | C139: Inversiones adicionales | D139: Justicia Y Del Derecho | E139: MinJusticia | F139: Pueblo indígenaRecursos PGNInversiones adicionalesJusticia Y Del DerechoMinJusticia | G139: 0
A140: Pueblo indígena | B140: Recursos PGN | C140: Inversiones adicionales | D140: Justicia Y Del Derecho | E140: Consolidado | F140: Pueblo indígenaRecursos PGNInversiones adicionalesJusticia Y Del DerechoConsolidado | G140: 0
A141: Pueblo indígena | B141: Recursos PGN | C141: Inversiones adicionales | D141: Minas Y Energía | E141: AGENCIA NACIONAL DE MINERIA | F141: Pueblo indígenaRecursos PGNInversiones adicionalesMinas Y EnergíaAGENCIA NACIONAL DE MINERIA | G141: 0
A142: Pueblo indígena | B142: Recursos PGN | C142: Inversiones adicionales | D142: Minas Y Energía | E142: MinMinas | F142: Pueblo indígenaRecursos PGNInversiones adicionalesMinas Y EnergíaMinMinas | G142: 0
A143: Pueblo indígena | B143: Recursos PGN | C143: Inversiones adicionales | D143: Minas Y Energía | E143: Consolidado | F143: Pueblo indígenaRecursos PGNInversiones adicionalesMinas Y EnergíaConsolidado | G143: 0
A144: Pueblo indígena | B144: Recursos PGN | C144: Inversiones adicionales | D144: Registraduria | E144: Registraduría General de la Nación | F144: Pueblo indígenaRecursos PGNInversiones adicionalesRegistraduriaRegistraduría General de la Nación | G144: 0
A145: Pueblo indígena | B145: Recursos PGN | C145: Inversiones adicionales | D145: Registraduria | E145: Consolidado | F145: Pueblo indígenaRecursos PGNInversiones adicionalesRegistraduriaConsolidado | G145: 0
A146: Pueblo indígena | B146: Recursos PGN | C146: Inversiones adicionales | D146: Trabajo | E146: MINTRABAJO | F146: Pueblo indígenaRecursos PGNInversiones adicionalesTrabajoMINTRABAJO | G146: 0
A147: Pueblo indígena | B147: Recursos PGN | C147: Inversiones adicionales | D147: Trabajo | E147: Consolidado | F147: =+A147&B147&C147&D147&E147 -> Pueblo indígenaRecursos PGNInversiones adicionalesTrabajoConsolidado | G147: 0
A148: Pueblo indígena | B148: Recursos PGN | C148: Inversiones adicionales | D148: Transporte | E148: INVIAS | F148: Pueblo indígenaRecursos PGNInversiones adicionalesTransporteINVIAS | G148: 0
A149: Pueblo indígena | B149: Recursos PGN | C149: Inversiones adicionales | D149: Transporte | E149: Consolidado | F149: Pueblo indígenaRecursos PGNInversiones adicionalesTransporteConsolidado | G149: 0
A150: Pueblo indígena | B150: Recursos PGN | C150: Inversiones adicionales | D150: Consolidado | E150: Consolidado | F150: Pueblo indígenaRecursos PGNInversiones adicionalesConsolidadoConsolidado | G150: 0
A151: Pueblo indígena | B151: Recursos PGN | C151: MOVILIDAD SOCIAL | D151: Deporte Y Recreación | E151: INCODER | F151: Pueblo indígenaRecursos PGNMOVILIDAD SOCIALDeporte Y RecreaciónINCODER | G151: 0 | H151: 1702358891 | I151: 1702358891 | J151: COLDEPORTES
A152: Pueblo indígena | B152: Recursos PGN | C152: MOVILIDAD SOCIAL | D152: Deporte Y Recreación | E152: Consolidado | F152: Pueblo indígenaRecursos PGNMOVILIDAD SOCIALDeporte Y RecreaciónConsolidado | G152: 0 | H152: 1702358891 | I152: 1702358891 | J152: Consolidado
A153: Pueblo indígena | B153: Recursos PGN | C153: MOVILIDAD SOCIAL | D153: Comunicaciones | E153: ANTV | F153: Pueblo indígenaRecursos PGNMOVILIDAD SOCIALComunicacionesANTV | G153: 0 | H153: 0 | I153: 0 | J153: ANTV
A154: Pueblo indígena | B154: Recursos PGN | C154: MOVILIDAD SOCIAL | D154: Comunicaciones | E154: MINISTERIO DE LAS TIC | F154: Pueblo indígenaRecursos PGNMOVILIDAD SOCIALComunicacionesMINISTERIO DE LAS TIC | G154: 0 | H154: 0 | I154: 0 | J154: MINISTERIO DE LAS TIC
A155: Pueblo indígena | B155: Recursos PGN | C155: MOVILIDAD SOCIAL | D155: Comunicaciones | E155: Consolidado | F155: Pueblo indígenaRecursos PGNMOVILIDAD SOCIALComunicacionesConsolidado | G155: 0 | H155: 0 | I155: 0 | J155: Consolidado
A156: Pueblo indígena | B156: Recursos PGN | C156: MOVILIDAD SOCIAL | D156: Cultura | E156: MINCULTURA | F156: Pueblo indígenaRecursos PGNMOVILIDAD SOCIALCulturaMINCULTURA | G156: 9295537598 | H156: 9295537598 | I156: 9295537598 | J156: MINCULTURA
A157: Pueblo indígena | B157: Recursos PGN | C157: MOVILIDAD SOCIAL | D157: Cultura | E157: Consolidado | F157: Pueblo indígenaRecursos PGNMOVILIDAD SOCIALCulturaConsolidado | G157: 9295537598 | H157: 9295537598 | I157: 9295537598 | J157: Consolidado
A158: Pueblo indígena | B158: Recursos PGN | C158: MOVILIDAD SOCIAL | D158: Deporte Y Recreación | E158: COLDEPORTES | F158: Pueblo indígenaRecursos PGNMOVILIDAD SOCIALDeporte Y RecreaciónCOLDEPORTES | G158: 1702358891 | H158: 0 | I158: 0 | J158: COLDEPORTES
A159: Pueblo indígena | B159: Recursos PGN | C159: MOVILIDAD SOCIAL | D159: Deporte Y Recreación | E159: Consolidado | F159: Pueblo indígenaRecursos PGNMOVILIDAD SOCIALDeporte Y RecreaciónConsolidado | G159: 1702358891 | H159: 0 | I159: 0 | J159: Consolidado
A160: Pueblo indígena | B160: Recursos PGN | C160: MOVILIDAD SOCIAL | D160: Educación | E160: MinEducación | F160: Pueblo indígenaRecursos PGNMOVILIDAD SOCIALEducaciónMinEducación | G160: 62301264053 | H160: 62301264053 | I160: 62301264053 | J160: MinEducación
A161: Pueblo indígena | B161: Recursos PGN | C161: MOVILIDAD SOCIAL | D161: Educación | E161: Consolidado | F161: Pueblo indígenaRecursos PGNMOVILIDAD SOCIALEducaciónConsolidado | G161: 62301264053 | H161: 62301264053 | I161: 62301264053 | J161: Consolidado
A162: Pueblo indígena | B162: Recursos PGN | C162: MOVILIDAD SOCIAL | D162: Inclusión Social Y Reconciliación | E162: DPS | F162: Pueblo indígenaRecursos PGNMOVILIDAD SOCIALInclusión Social Y ReconciliaciónDPS | G162: 141315292863 | H162: 141315292863 | I162: 141315292863 | J162: DPS
A163: Pueblo indígena | B163: Recursos PGN | C163: MOVILIDAD SOCIAL | D163: Inclusión Social Y Reconciliación | E163: ICBF | F163: Pueblo indígenaRecursos PGNMOVILIDAD SOCIALInclusión Social Y ReconciliaciónICBF | G163: 149643221205
A164: Pueblo indígena | B164: Recursos PGN | C164: MOVILIDAD SOCIAL | D164: Inclusión Social Y Reconciliación | E164: ANSPE | F164: Pueblo indígenaRecursos PGNMOVILIDAD SOCIALInclusión Social Y ReconciliaciónANSPE | G164: 15481298463 | H164: 15481298463 | I164: 15481298463 | J164: ANSPE
A165: Pueblo indígena | B165: Recursos PGN | C165: MOVILIDAD SOCIAL | D165: Inclusión Social Y Reconciliación | E165: UNIDAD DE VÍCTIMAS | F165: Pueblo indígenaRecursos PGNMOVILIDAD SOCIALInclusión Social Y ReconciliaciónUNIDAD DE VÍCTIMAS | G165: 0
A166: Pueblo indígena | B166: Recursos PGN | C166: MOVILIDAD SOCIAL | D166: Inclusión Social Y Reconciliación | E166: UAE. PARA LA CONSOLIDACIÓN TERRITORIAL | F166: Pueblo indígenaRecursos PGNMOVILIDAD SOCIALInclusión Social Y ReconciliaciónUAE. PARA LA CONSOLIDACIÓN TERRITORIAL | G166: 2022570576 | H166: 2022570576 | I166: 2022570576 | J166: UAE. PARA LA CONSOLIDACIÓN TERRITORIAL
A167: Pueblo indígena | B167: Recursos PGN | C167: MOVILIDAD SOCIAL | D167: Inclusión Social Y Reconciliación | E167: Consolidado | F167: Pueblo indígenaRecursos PGNMOVILIDAD SOCIALInclusión Social Y ReconciliaciónConsolidado | G167: 308462383107 | H167: 158819161902 | I167: =+I166+I164+I162 -> 158819161902 | J167: Consolidado
A168: Pueblo indígena | B168: Recursos PGN | C168: MOVILIDAD SOCIAL | D168: Relaciones exteriores | E168: MINISTERIO DE RELACIONES EXTERIORES | F168: Pueblo indígenaRecursos PGNMOVILIDAD SOCIALRelaciones exterioresMINISTERIO DE RELACIONES EXTERIORES | G168: 0
A169: Pueblo indígena | B169: Recursos PGN | C169: MOVILIDAD SOCIAL | D169: Relaciones exteriores | E169: Consolidado | F169: Pueblo indígenaRecursos PGNMOVILIDAD SOCIALRelaciones exterioresConsolidado | G169: 0
A170: Pueblo indígena | B170: Recursos PGN | C170: MOVILIDAD SOCIAL | D170: Saludy Protección Social | E170: MINISTERIO DE SALUD | F170: Pueblo indígenaRecursos PGNMOVILIDAD SOCIALSaludy Protección SocialMINISTERIO DE SALUD | G170: 0
A171: Pueblo indígena | B171: Recursos PGN | C171: MOVILIDAD SOCIAL | D171: Saludy Protección Social | E171: Consolidado | F171: Pueblo indígenaRecursos PGNMOVILIDAD SOCIALSaludy Protección SocialConsolidado | G171: 0
A172: Pueblo indígena | B172: Recursos PGN | C172: MOVILIDAD SOCIAL | D172: Cultura | E172: ARCHIVO GENERAL DE LA NACIÓN | F172: Pueblo indígenaRecursos PGNMOVILIDAD SOCIALCulturaARCHIVO GENERAL DE LA NACIÓN | G172: 124725955 | H172: 124725955 | I172: 124725955 | J172: ARCHIVO GENERAL DE LA NACIÓN
A173: Pueblo indígena | B173: Recursos PGN | C173: MOVILIDAD SOCIAL | D173: Cultura | E173: INSTITUTO CARO Y CUERVO | F173: Pueblo indígenaRecursos PGNMOVILIDAD SOCIALCulturaINSTITUTO CARO Y CUERVO | G173: 180250000
A174: Pueblo indígena | B174: Recursos PGN | C174: MOVILIDAD SOCIAL | D174: Cultura | E174: Consolidado | F174: Pueblo indígenaRecursos PGNMOVILIDAD SOCIALCulturaConsolidado | G174: 304975955 | H174: 124725955 | I174: 124725955 | J174: Consolidado
A175: Pueblo indígena | B175: Recursos PGN | C175: MOVILIDAD SOCIAL | D175: Educación | E175: INSOR | F175: Pueblo indígenaRecursos PGNMOVILIDAD SOCIALEducaciónINSOR | G175: 16900000 | H175: 16900000 | I175: 16900000 | J175: INSOR
A176: Pueblo indígena | B176: Recursos PGN | C176: MOVILIDAD SOCIAL | D176: Educación | E176: Consolidado | F176: Pueblo indígenaRecursos PGNMOVILIDAD SOCIALEducaciónConsolidado | G176: 16900000 | H176: 16900000 | I176: 16900000 | J176: Consolidado
A177: Pueblo indígena | B177: Recursos PGN | C177: MOVILIDAD SOCIAL | D177: Trabajo | E177: MINTRABAJO | F177: Pueblo indígenaRecursos PGNMOVILIDAD SOCIALTrabajoMINTRABAJO | G177: 2.566053173e+10 | H177: 2.566053173e+10 | I177: 2.566053173e+10 | J177: MINTRABAJO
A178: Pueblo indígena | B178: Recursos PGN | C178: MOVILIDAD SOCIAL | D178: Trabajo | E178: SENA | F178: Pueblo indígenaRecursos PGNMOVILIDAD SOCIALTrabajoSENA | G178: 0
A179: Pueblo indígena | B179: Recursos PGN | C179: MOVILIDAD SOCIAL | D179: Trabajo | E179: Consolidado | F179: Pueblo indígenaRecursos PGNMOVILIDAD SOCIALTrabajoConsolidado | G179: 25660531728 | H179: 2.566053173e+10 | I179: 2.566053173e+10 | J179: Consolidado
A180: Pueblo indígena | B180: Recursos PGN | C180: MOVILIDAD SOCIAL | D180: Consolidado | E180: Consolidado | F180: Pueblo indígenaRecursos PGNMOVILIDAD SOCIALConsolidadoConsolidado | G180: 407743951332
A181: Pueblo indígena | B181: Recursos PGN | C181: SEGURIDAD, JUSTICIA Y DEMOCRACIA | D181: Agropecuario | E181: MinAgricultura | F181: Pueblo indígenaRecursos PGNSEGURIDAD, JUSTICIA Y DEMOCRACIA AgropecuarioMinAgricultura | G181: 0 | H181: 0 | J181: INSOR
A182: Pueblo indígena | B182: Recursos PGN | C182: SEGURIDAD, JUSTICIA Y DEMOCRACIA | D182: Agropecuario | E182: Unidad Administrativa Especial de Gestión de Restitución de Tierras Despojadas (URT) | F182: Pueblo indígenaRecursos PGNSEGURIDAD, JUSTICIA Y DEMOCRACIA AgropecuarioUnidad Administrativa Especial de Gestión de Restitución de Tierras Despojadas (URT) | G182: 0 | H182: 0 | J182: Consolidado
A183: Pueblo indígena | B183: Recursos PGN | C183: SEGURIDAD, JUSTICIA Y DEMOCRACIA | D183: Agropecuario | E183: Consolidado | F183: Pueblo indígenaRecursos PGNSEGURIDAD, JUSTICIA Y DEMOCRACIA AgropecuarioConsolidado | G183: 0 | H183: 0 | J183: INSTITUTO CARO Y CUERVO
A184: Pueblo indígena | B184: Recursos PGN | C184: SEGURIDAD, JUSTICIA Y DEMOCRACIA | D184: Comunicaciones | E184: MINISTERIO DE LAS TIC | F184: Pueblo indígenaRecursos PGNSEGURIDAD, JUSTICIA Y DEMOCRACIA ComunicacionesMINISTERIO DE LAS TIC | G184: 0 | H184: 0 | J184: Consolidado
A185: Pueblo indígena | B185: Recursos PGN | C185: SEGURIDAD, JUSTICIA Y DEMOCRACIA | D185: Comunicaciones | E185: Consolidado | F185: Pueblo indígenaRecursos PGNSEGURIDAD, JUSTICIA Y DEMOCRACIA ComunicacionesConsolidado | G185: 0 | H185: 0 | J185: ICBF
A186: Pueblo indígena | B186: Recursos PGN | C186: SEGURIDAD, JUSTICIA Y DEMOCRACIA | D186: Inclusión Social Y Reconciliación | E186: CENTRO DE MEMORIA HISTÓRICA | F186: Pueblo indígenaRecursos PGNSEGURIDAD, JUSTICIA Y DEMOCRACIA Inclusión Social Y ReconciliaciónCENTRO DE MEMORIA HISTÓRICA | G186: 419896207 | H186: 419896207 | J186: Consolidado
A187: Pueblo indígena | B187: Recursos PGN | C187: SEGURIDAD, JUSTICIA Y DEMOCRACIA | D187: Inclusión Social Y Reconciliación | E187: DPS | F187: Pueblo indígenaRecursos PGNSEGURIDAD, JUSTICIA Y DEMOCRACIA Inclusión Social Y ReconciliaciónDPS | G187: 21782213940 | H187: 21782213940 | J187: MININTERIOR
A188: Pueblo indígena | B188: Recursos PGN | C188: SEGURIDAD, JUSTICIA Y DEMOCRACIA | D188: Inclusión Social Y Reconciliación | E188: UNIDAD DE VÍCTIMAS | F188: Pueblo indígenaRecursos PGNSEGURIDAD, JUSTICIA Y DEMOCRACIA Inclusión Social Y ReconciliaciónUNIDAD DE VÍCTIMAS | G188: 23531317663 | H188: 23531317663 | J188: Consolidado
A189: Pueblo indígena | B189: Recursos PGN | C189: SEGURIDAD, JUSTICIA Y DEMOCRACIA | D189: Inclusión Social Y Reconciliación | E189: Consolidado | F189: Pueblo indígenaRecursos PGNSEGURIDAD, JUSTICIA Y DEMOCRACIA Inclusión Social Y ReconciliaciónConsolidado | G189: 45733427810 | H189: =+H188+H187+H186 -> 45733427810
A190: Pueblo indígena | B190: Recursos PGN | C190: SEGURIDAD, JUSTICIA Y DEMOCRACIA | D190: Interior | E190: MININTERIOR | F190: Pueblo indígenaRecursos PGNSEGURIDAD, JUSTICIA Y DEMOCRACIA InteriorMININTERIOR | G190: 3790999010 | H190: 3790999010
A191: Pueblo indígena | B191: Recursos PGN | C191: SEGURIDAD, JUSTICIA Y DEMOCRACIA | D191: Interior | E191: Consolidado | F191: Pueblo indígenaRecursos PGNSEGURIDAD, JUSTICIA Y DEMOCRACIA InteriorConsolidado | G191: 3790999010 | H191: 3790999010
A192: Pueblo indígena | B192: Recursos PGN | C192: SEGURIDAD, JUSTICIA Y DEMOCRACIA | D192: Justicia Y Del Derecho | E192: MinJusticia | F192: Pueblo indígenaRecursos PGNSEGURIDAD, JUSTICIA Y DEMOCRACIA Justicia Y Del DerechoMinJusticia | G192: 223186137 | H192: 223186137
A193: Pueblo indígena | B193: Recursos PGN | C193: SEGURIDAD, JUSTICIA Y DEMOCRACIA | D193: Justicia Y Del Derecho | E193: Consolidado | F193: Pueblo indígenaRecursos PGNSEGURIDAD, JUSTICIA Y DEMOCRACIA Justicia Y Del DerechoConsolidado | G193: 223186137 | H193: 223186137
A194: Pueblo indígena | B194: Recursos PGN | C194: SEGURIDAD, JUSTICIA Y DEMOCRACIA | D194: Justicia Y Del Derecho | E194: ACR | F194: Pueblo indígenaRecursos PGNSEGURIDAD, JUSTICIA Y DEMOCRACIA Justicia Y Del DerechoACR | G194: 0 | H194: 0
A195: Pueblo indígena | B195: Recursos PGN | C195: SEGURIDAD, JUSTICIA Y DEMOCRACIA | D195: Presidencia De La Republica | E195: PRESIDENCIA | F195: Pueblo indígenaRecursos PGNSEGURIDAD, JUSTICIA Y DEMOCRACIA Presidencia De La RepublicaPRESIDENCIA | G195: 120000000 | H195: 120000000
A196: Pueblo indígena | B196: Recursos PGN | C196: SEGURIDAD, JUSTICIA Y DEMOCRACIA | D196: Presidencia De La Republica | E196: Consolidado | F196: Pueblo indígenaRecursos PGNSEGURIDAD, JUSTICIA Y DEMOCRACIA Presidencia De La RepublicaConsolidado | G196: 120000000 | H196: 120000000
A197: Pueblo indígena | B197: Recursos PGN | C197: SEGURIDAD, JUSTICIA Y DEMOCRACIA | D197: Rama Judicial | E197: Consejo Superior de la Judicatura | F197: Pueblo indígenaRecursos PGNSEGURIDAD, JUSTICIA Y DEMOCRACIA Rama JudicialConsejo Superior de la Judicatura | G197: 0 | H197: 0
A198: Pueblo indígena | B198: Recursos PGN | C198: SEGURIDAD, JUSTICIA Y DEMOCRACIA | D198: Rama Judicial | E198: Consolidado | F198: Pueblo indígenaRecursos PGNSEGURIDAD, JUSTICIA Y DEMOCRACIA Rama JudicialConsolidado | G198: 0 | H198: 0
A199: Pueblo indígena | B199: Recursos PGN | C199: SEGURIDAD, JUSTICIA Y DEMOCRACIA | D199: Consolidado | E199: Consolidado | F199: Pueblo indígenaRecursos PGNSEGURIDAD, JUSTICIA Y DEMOCRACIA ConsolidadoConsolidado | G199: 49867612957 | H199: 49867612957
A200: Pueblo indígena | B200: Recursos PGN | C200: TRANSFORMACIÓN DEL CAMPO | D200: Agropecuario | E200: INCODER | F200: Pueblo indígenaRecursos PGNTRANSFORMACIÓN DEL CAMPOAgropecuarioINCODER | G200: 39776716812 | H200: 39776716812
A201: Pueblo indígena | B201: Recursos PGN | C201: TRANSFORMACIÓN DEL CAMPO | D201: Agropecuario | E201: MinAgricultura | F201: Pueblo indígenaRecursos PGNTRANSFORMACIÓN DEL CAMPOAgropecuarioMinAgricultura | G201: 176884736846 | H201: 176884736846
A202: Pueblo indígena | B202: Recursos PGN | C202: TRANSFORMACIÓN DEL CAMPO | D202: Agropecuario | E202: Consolidado | F202: Pueblo indígenaRecursos PGNTRANSFORMACIÓN DEL CAMPOAgropecuarioConsolidado | G202: 216661453658 | H202: 216661453658
A203: Pueblo indígena | B203: Recursos PGN | C203: TRANSFORMACIÓN DEL CAMPO | D203: Comercio, Industria Y Turismo | E203: MINCOMERCIO | F203: Pueblo indígenaRecursos PGNTRANSFORMACIÓN DEL CAMPOComercio, Industria Y TurismoMINCOMERCIO | G203: 0 | H203: 0
A204: Pueblo indígena | B204: Recursos PGN | C204: TRANSFORMACIÓN DEL CAMPO | D204: Comercio, Industria Y Turismo | E204: Consolidado | F204: Pueblo indígenaRecursos PGNTRANSFORMACIÓN DEL CAMPOComercio, Industria Y TurismoConsolidado | G204: 0 | H204: 0
... 304 more rows

Sheet CONTENIDO
C2: INFORME DE SEGUIMIENTO A COMPROMISOS CONSULTA PREVIA GRUPOS ÉTNICOS PND 2014-2018
C5: PERIODO: 1 DE ENERO A 31 DE DICIEMBRE DE 2015
A8: SEGUIMIENTO PRESUPUESTAL PUEBLO INDIGENA | G8: INSTRUCTIVO PUEBLO INDIGENA
A10: SEGUIMIENTO PRESUPUESTAL PUEBLO RROM | G10: INSTRUCTIVO PUEBLO RROM
A12: SEGUIMIENTO PRESUPUESTAL COMNIDADES NARP | G12: INSTRUCTIVO COMUNIDADES NARP
E15: INDICE DE ENTIDADES
D19: METODOLOGIA PUEBLOS INDIGENAS | F19: METODOLOGIA PUEBLOS INDIGENAS'!A1
D21: METODOLOGIA PUEBLO RROM
D23: METODOLOGIA COMUNIDADES NARP

Sheet Indice de Entidades
A2: INFORME SEGUIMIENTO PND 2014 - 2018 (VIGENCIA 2015)
I3: VOLVER AL CONTENIDO
A4: CONSOLIDADO POR EJE
A5: SEGURIDAD, JUSTICIA Y DEMOCRACIA PARA LA CONSTRUCCIÓN DE PAZ
A6: MOVILIDAD SOCIAL
A7: BUEN GOBIERNO
A8: COMPETITIVIDAD E INFRAESTRUCTURA ESTRATÉGICA
A9: TRANSFORMACIÓN DEL CAMPO
A10: CRECIMIENTO VERDE
A12: RESUMEN PRESUPUESTO
A13: Seguimiento Presupuestal Pueblos Indígenas Vigencia 2015
A14: Seguimiento Presupuestal Pueblos Rrom Vigencia 2015
A15: Seguimiento Presupuestal Comunidades NARP Vigencia 2015
C16: Compromisos transversales a todas las entidades del estado
A17: INFORMACIÓN POR ENTIDAD
A18: AGENCIA NACIONAL MINERIA - ANM
A19: AGENCIA NACIONAL DE LA POBREZA EXTREMA (ANSPE)
A20: AGENCIA NACIONAL DE TIERRAS (ANT)
A21: ARCHIVO GENERAL DE LA NACION (AGN) | C21: Ejecución SPI 2015
A22: ARTESANIAS DE COLOMBIA
A23: CENTRO NACIONAL DE MEMORIA HISTÓRICA
A24: CORPORACION AUTONOMA REGIONAL PARA EL DESARROLLO SOSTENIBLE DEL CHOCO (CODECHOCO)
A25: COLCIENCIAS
A26: COLDEPORTES
A27: CONSEJO SUPERIOR DE LA JUDICATURA
A28: DEPARTAMENTO ADMINISTRATIVO NACIONAL DE ESTADÍSTICA (DANE)
A29: DEPARTAMENTO ADMINISTRATIVO PARA LA PROSPERIDAD SOCIAL (DPS).
A30: FONDO DE TECNOLOGIAS DE LA INFO. Y LAS COMUN. - FONTIC
A31: FONRELACIONES
A32: ICANH
A33: INSTITUTO COLOMBIANO DE BIENESTAR FAMILIAR (ICBF)
A34: INCODER
A35: INSTITUTO NACIONAL PARA SORDOS (INSOR)
A36: INSTITUTO CARO Y CUERVO
A37: INVIAS
A38: MINISTERIO DE AMBIENTE
A39: MINISTERIO DE COMERCIO, INDUSTRIA Y TURISMO
A40: MINISTERIO DE CULTURA
A41: MINISTERIO DE EDUCACION
A42: MINISTERIO DE HACIENDA
A43: MINISTERIO DE SALUD
A44: MINISTERIO DE TRABAJO
A45: MINISTERIO DE TRANSPORTE
A46: MINISTERIO DEL INTERIOR
A47: MINISTERIO RELACIONES EXTERIORES
A48: MINISTERIO DE LAS TIC
A49: MINISTERIO DE JUSTICIA Y DEL DERECHO
A50: MINISTERIO DE MINAS Y ENERGÍA
A51: Ministerio de Agricultura
A52: NSA KIWE
A53: PRESIDENCIA
A54: REGISTRADURIA
A55: SENA
A56: PARQUES NACIONALES NATURALES (UAE - SIETMA DE PARQUES NAT.)
A57: UNIDAD ADMINISTRATIVA ESPECIAL DE GESTIÓN DE RESTITUCIÓN DE TIERRAS DESPOJADAS (URT)
A58: UNIDAD PARA LA ATENCIÓN Y REPARACIÓN INTEGRAL A LAS VÍCTIMAS - UARIV
A59: UNIDAD ADMINISTRATIVA ESPECIAL PARA LA CONSOLIDACIÓN TERRITORIAL (UAE - CONSOLIDACION TIERRAS)

Sheet PUEBLO INDIGENA
B2: INFORME DE SEGUIMIENTO CUMPLIMIENTO DE COMPROMISOS DE CONSULTA PREVIA AL PND 2014 - 2018 - PUEBLOS INDIGENAS VIGENCIA 2015
A3: DEPARTAMENTO NACIONAL DE PLANEACIÓN
A6: GRUPO ÉTNICO | B6: PUEBLO INDÍGENA | K6: =+cd&ct -> RECURSOS PGN
A7: FUENTE DE FINANCIACIÓN | B7: RECURSOS PGN | K7: =+K6&B9 -> RECURSOS PGN
A8: REGIÓN DE INCIDENCIA | K8: =+K7&B10 -> RECURSOS PGN
A9: DEPARTAMENTO | K9: =+K8&B11 -> RECURSOS PGN
A10: EJE DEL PLAN NACIONAL DE DESARROLLO
A11: SECTOR DEL GOBIERNO NACIONAL
A12: ENTIDAD DEL GOBIERNO NACIONAL
A13: ANÁLISIS DE LA INFORMACIÓN | B13: =+'analisis-INIDGENA'!A12 -> FALSE
A15: INFORMACIÓN PRESUPUESTAL PUEBLOS INDIGENAS 2015
G29: =+ IF(cd=con,"", IF(B7=E139,"GRÁFICA 2. PARTICIPACIÓN DE LO INVERTIDO EN EL EJE CON RESPECTO AL RESTO DE LA INVERSIÓN DE PGN",IF(B7=E140,"GRÁFICA 2. PARTICIPACIÓN DE LA ASIGNACIÓN AESGPRI EN LA REGIÓN CON RESPECTO AL RESTO DEL PAÍS POR SGP","GRÁFICA 2. PARTICIPACIÓN DE LA ASIGNACIÓN EN LA REGIÓN CON RESPECTO AL RESTO DEL PAÍS POR SGR"))) -> GRÁFICA 2. PARTICIPACIÓN DE LO INVERTIDO EN EL EJE CON RESPECTO AL RESTO DE LA INVERSIÓN DE PGN
G30: =+IF(cd=con,"", IF(B7=B317,"GRÁFICA 3. PARTICIPACIÓN DE LA ASIGNACIÓN EN EN EL DEPARTAMENTO CON RESPECTO AL RESTO DE LA REGIÓN POR SGR", IF(B7=B316,"GRÁFICA 3. PARTICIPACIÓN DE LA ASIGNACION AESGPRI DEL DEPARTAMENTO EN LA REGION ", IF(A159="","",IF(A159=E142,"GRÁFICA 3. PARTICIPACIÓN DEL SECTOR EN LA INVERSIÓN REALIZADA EN EL EJE","GRÁFICA 3. PARTICIPACIÓN DE LA ASIGNACIÓN EN EN EL DEPARTAMENTO CON RESPECTO AL RESTO DE LA REGIÓN POR SGP"))))) -> 
A35: =+IF(B6="","","RECURSOS TOTALES EJECUTADOS PUEBLO INDÍGENA:") -> RECURSOS TOTALES EJECUTADOS PUEBLO INDÍGENA: | B35: =+IF(A35="","", IF((OR(AND(B6="Consolidado",B7="Consolidado"),AND(B6="Consolidado",B7="Recursos SGP"),AND(B6="Pueblo Indígena",B7="Recursos SGP"),AND(B6="Pueblo Indígena",B7="Consolidado"))), IFERROR((VLOOKUP($B6,'Tab Pres PI'!$A$62:$E$66,5,0)+B41+B42+B43),0),IFERROR(VLOOKUP($B6,'Tab Pres PI'!$A$62:$E$66,5,0),0))) -> 1244268271858 | D35: =+IF(A148="","","GRÁFICA 1. INVERSIÓN 2015 PUEBLO INDÍGENA POR FUENTE DE FINANCIACIÓN") -> GRÁFICA 1. INVERSIÓN 2015 PUEBLO INDÍGENA POR FUENTE DE FINANCIACIÓN
A36: =+IF(cd=con, ( IF(B7="RECURSOS SGR","RECURSOS TOTALES EJECUTADOS POR SGR", IF(B7="RECURSOS SGP","RECURSOS TOTALES EJECUTADOS POR SGP - AESGPRI", IF(B7="CONSOLIDADO","RECURSOS TOTALES EJECUTADOS POR PGN", IF(B7="","",IF(B6&B7=B309&B314,"RECURSOS PGN","RECURSOS TOTALES EJECUTADOS POR EL TIPO DE RECURSO SEÑALADO:"))))) ), ( IF(B7="RECURSOS SGR","RECURSOS TOTALES EJECUTADOS POR SGR-REGION", IF(B7="RECURSOS SGP","RECURSOS TOTALES EJECUTADOS POR SGP- AESGPRI / REGION", IF(B6&B7=B309&B314,"RECURSOS SGR",IF(B8="","",IF(OR(B7=B316,B7="CONSOLIDADO"),"RECURSOS TOTALES EJECUTADOS POR SGP-AESGPRI",IF(B7=B317,"ASIGNACIÓN SGR A LA REGIÓN",IF(B10="","","INVERSIÓN TOTAL - EJE DEL PND"))))))) ) ) ->  | B36: =+IF(cd=con, ( IF(B7="Consolidado",'Tab Pres PI'!E5, IF(D40="","",IF(D40="Recursos PGN",'Tab Pres PI'!F391,VLOOKUP(B6&B7,$D$308:$E$315,2,0)))) ), ( IF(B7="Consolidado",'Tab Pres PI'!E35, IF(F40="Asignación SGR a la región",(VLOOKUP('PUEBLO INDIGENA'!B8,'Tab Pres PI'!$B$528:$C$534,2,0)), IF(F40="","",IF(F40="Recursos SGR",'Tab Pres PI'!F395,IF(B7=B316,VLOOKUP(B8,'Tab Pres PI'!$B$439:$C$444,2,0),IF(B7=B317,VLOOKUP(B8,'Tab Pres PI'!$B$528:$C$534,2,0),(IF(B6=B309,VLOOKUP(B7&B10&"Consolidado"&"Consolidado",'Tab Pres PI'!$E$246:$F$395,2,0),IFERROR(VLOOKUP(B6&B7&B10&B314&B314,'Tab Pres PI'!$F$70:$G$240,2,0),0))))))))) ) ) ->  | D36: =+IF(cd=B565,(IF(OR(AND(cd<>"",ct="",B9="",B10="",B11=""),AND(cd<>"",ct<>"",B9="",B10="",B11=""),AND(cd<>"",ct<>"",B9<>"",B10="",B11=""),AND(cd<>"",ct<>"",B9<>"",B10<>"",B11="")),"",G29)), IF(OR(cd=RSGP,cd=RSGR),(IF(OR(cd&ct=RSGP,cd&ct=RSGR),"",G29)), IF(cd=con,"", IF(B7=E139,"GRÁFICA 2. PARTICIPACIÓN DE LO INVERTIDO EN EL EJE CON RESPECTO AL RESTO DE LA INVERSIÓN DE PGN",IF(B7=E140,"GRÁFICA 2. PARTICIPACIÓN DE LA ASIGNACIÓN AESGPRI EN LA REGIÓN CON RESPECTO AL RESTO DEL PAÍS POR SGP","GRÁFICA 2. PARTICIPACIÓN DE LA ASIGNACIÓN EN LA REGIÓN CON RESPECTO AL RESTO DEL PAÍS POR SGR"))))) -> 
A37: =++IF(B7="RECURSOS SGR","RECURSOS TOTALES EJECUTADOS POR SGR-DEPARTAMENTO", IF(B7="RECURSOS SGP","RECURSOS TOTALES EJECUTADOS POR SGP- AESGPRI / DEPARTAMENTO", IF(B7="CONSOLIDADO","RECURSOS TOTALES EJECUTADOS POR SGR", IF(B7=B317,"ASIGNACIÓN SGR AL DEPARTAMENTO", IF(B6&B7=B309&B314,"RECURSOS SGP",IF(B9="","",IF(D40=E139,"",IF(B8=PGN,IF(B9="","",IF(B11="","",IF(B10="","","INVERSIÓN TOTAL - SECTOR"))),"SGP-AESGPGRI AL DEPARTAMENTO")))))))) ->  | B37: =+IF(B7="Consolidado",'Tab Pres PI'!E61, IFERROR(( IF(B7=E143,VLOOKUP(ce,'Tab Pres PI'!A490:C522,3,0),IF(A37="","",IF(A37="Recursos SGP",'Tab Pres PI'!E61,IFERROR(IF(B6&B7=B309&B315,VLOOKUP(B7&B10&B11&"Consolidado",'Tab Pres PI'!$E$246:$F$399,2,0),IF(A37=E142,SUMIF('Tab Pres PI'!F70:F223,B6&B7&B10&B11&"Consolidado",'Tab Pres PI'!G70:G223),VLOOKUP($B$9,'Tab Pres PI'!$A$403:$C$435,3,0))),0))))),"")) ->  | D37: =+ IF(OR(cd=RSGP,cd=RSGR),(IF(ce="","",G30)), IF(cd=con,"", IF(B7=B317,"GRÁFICA 3. PARTICIPACIÓN DE LA ASIGNACIÓN EN EN EL DEPARTAMENTO CON RESPECTO AL RESTO DE LA REGIÓN POR SGR", IF(B7=B316,"GRÁFICA 3. PARTICIPACIÓN DE LA ASIGNACION AESGPRI DEL DEPARTAMENTO EN LA REGION ", IF(A159="","",IF(A159=E142,"GRÁFICA 3. PARTICIPACIÓN DEL SECTOR EN LA INVERSIÓN REALIZADA EN EL EJE","GRÁFICA 3. PARTICIPACIÓN DE LA ASIGNACIÓN EN EN EL DEPARTAMENTO CON RESPECTO AL RESTO DE LA REGIÓN POR SGP")))))) -> 
A38: =+IF(B7="Recursos SGP","", IF(AND(B6="Pueblo Indígena",B7="Consolidado"),"", IF(AND(B6="consolidado",B7="consolidado"),"", IF(B7=B317,"", IF(B12="","",IF(A37="ASIGNACIÓN SGP AL DEPARTAMENTO","","INVERSION TOTAL - ENTIDAD")))))) ->  | B38: =+IF(AND(B7="Recursos PGN",B11="Consolidado"),SUMIF('Tab Pres PI'!E69:E223,'PUEBLO INDIGENA'!B12,'Tab Pres PI'!G69:G223), IF(A38="","",IFERROR(IF(B6&B7=B309&B315,VLOOKUP(B7&B10&B11&B12,'Tab Pres PI'!$E$246:$F$395,2,0),IF(F40="Inversión total - Eje del PND",VLOOKUP(B6&B7&B10&B11&B12,'Tab Pres PI'!$F$70:$G$240,2,0),VLOOKUP($B$8,'Tab Pres PI'!$C$6:$E$35,3,0))),0))) ->  | D38: =+ +IF(OR(AND(ct=""),AND(cd<>"",ct="",B9="",B10="",B11="",B12=""),AND(cd<>"",ct<>"",B9="",B10="",B11="",B12=""),AND(cd<>"",ct<>"",B9<>"",B10="",B11="",B12=""),AND(cd<>"",ct<>"",B9<>"",B10<>"",B11="",B12=""),AND(cd<>"",ct<>"",B9<>"",B10<>"",B11<>"",B12="")),"", +IF(cd=con,"", IF(B7=B316,"", IF(B7=B317,"", IF(A160="","","GRÁFICA 4. PARTICIPACIÓN DE LA ENTIDAD EN LA INVERSIÓN REALIZADA POR EL SECTOR"))))) -> 
D39: =+IF(A1="","",IF(B7=B317,"", IF(A171="","","GRÁFICA 5. COMPARACIÓN INVERTIDO EN EL 2015 CON RESPECTO AL PISO DEL PND."))) -> 
A40: =+IF(cd=con, ( IF(B7="RECURSOS SGR","RECURSOS TOTALES EJECUTADOS POR SGR-REGION", IF(B7="RECURSOS SGP","RECURSOS TOTALES EJECUTADOS POR SGP- AESGPRI / REGION", IF(B6&B7=B309&B314,"RECURSOS SGR",IF(B8="","",IF(OR(B7=B316,B7="CONSOLIDADO"),"RECURSOS TOTALES EJECUTADOS POR SGP-AESGPRI",IF(B7=B317,"ASIGNACIÓN SGR A LA REGIÓN",IF(B10="","","INVERSIÓN TOTAL - EJE DEL PND"))))))) ), (IF(B7="RECURSOS SGR","RECURSOS TOTALES EJECUTADOS POR SGR", IF(B7="RECURSOS SGP","RECURSOS TOTALES EJECUTADOS POR SGP - AESGPRI", IF(B7="CONSOLIDADO","RECURSOS TOTALES EJECUTADOS POR PGN", IF(B7="","",IF(B6&B7=B309&B314,"RECURSOS PGN","RECURSOS TOTALES EJECUTADOS POR LA FUENTE DE FINANCIACIÓN PGN:"))))) ) ) -> RECURSOS TOTALES EJECUTADOS POR LA FUENTE DE FINANCIACIÓN PGN: | B40: =+IF(cd=con, ( IF(B7="Consolidado",'Tab Pres PI'!E35, IF(F40="Asignación SGR a la región",(VLOOKUP('PUEBLO INDIGENA'!B8,'Tab Pres PI'!$B$528:$C$534,2,0)), IF(F40="","",IF(F40="Recursos SGR",'Tab Pres PI'!F395,IF(B7=B316,VLOOKUP(B8,'Tab Pres PI'!$B$439:$C$444,2,0),IF(B7=B317,VLOOKUP(B8,'Tab Pres PI'!$B$528:$C$534,2,0),(IF(B6=B309,VLOOKUP(B7&B10&"Consolidado"&"Consolidado",'Tab Pres PI'!$E$246:$F$395,2,0),IFERROR(VLOOKUP(B6&B7&B10&B314&B314,'Tab Pres PI'!$F$70:$G$240,2,0),0))))))))) ), ( IF(B7="Consolidado",'Tab Pres PI'!E5, IF(D40="","",IF(D40="Recursos PGN",'Tab Pres PI'!F391,VLOOKUP(B6&B7,$D$308:$E$315,2,0)))) ) ) -> 855749031784 | D40: =+IF(B7="Recursos SGR","Recursos Totales Ejecutados por SGR", IF(B7="Recursos SGP","Recursos Totales Ejecutados por SGP - AESGPRI", IF(B7="Consolidado","Recursos totales ejecutados por PGN", IF(B7="","",IF(B6&B7=B309&B314,"Recursos PGN","Recursos totales ejecutados por el tipo de recurso señalado:"))))) -> Recursos totales ejecutados por el tipo de recurso señalado: | E40: =+IF(B7="Consolidado",'Tab Pres PI'!E5, IF(A36="","",IF(A36="Recursos PGN",'Tab Pres PI'!F391,VLOOKUP(B6&B7,$D$308:$E$315,2,0)))) ->  | F40: =+IF(B7="Recursos SGR","Recursos Totales Ejecutados por SGR-Region", IF(B7="Recursos SGP","Recursos Totales Ejecutados por SGP- AESGPRI / Region", IF(B6&B7=B309&B314,"Recursos SGR",IF(B8="","",IF(OR(B7=B316,B7="Consolidado"),"Recursos totales ejecutados por SGP-AESGPRI",IF(B7=B317,"Asignación SGR a la región",IF(B10="","","Inversión total - Eje del PND"))))))) ->  | G40: =+IF(B7="Consolidado",'Tab Pres PI'!E35, IF(A37="Asignación SGR a la región",(VLOOKUP('PUEBLO INDIGENA'!B8,'Tab Pres PI'!$B$528:$C$534,2,0)), IF(A37="","",IF(A37="Recursos SGR",'Tab Pres PI'!F395,IF(B7=B316,VLOOKUP(B8,'Tab Pres PI'!$B$439:$C$444,2,0),IF(B7=B317,VLOOKUP(B8,'Tab Pres PI'!$B$528:$C$534,2,0),(IF(B6=B309,VLOOKUP(B7&B10&"Consolidado"&"Consolidado",'Tab Pres PI'!$E$246:$F$395,2,0),IFERROR(VLOOKUP(B6&B7&B10&B314&B314,'Tab Pres PI'!$F$70:$G$240,2,0),0))))))))) -> 
A41: =+IF(OR(B7="RECURSOS SGP",B7="CONSOLIDADO"),"RECURSOS EJECUTADOS SGP SALUD","") ->  | B41: =+IF(A41="","",D41) ->  | D41: 699666609301
A42: =+IF(OR(B7="RECURSOS SGP",B7="CONSOLIDADO"),"RECURSOS EJECUTADOS SGP EDUCACION","") ->  | B42: =+IF(A42="","",D42) ->  | D42: 325599062358
A43: =+IF(OR(B7="RECURSOS SGP",B7="CONSOLIDADO"),"RECURSOS EJECUTADOS SGP APSB","") ->  | B43: =+IF(A43="","",D43) ->  | D43: 38299000000
A45: =IF(OR(B7="CONSOLIDADO",B7="RECURSOS SGP"),"TOTAL RECURSOS SGP","") ->  | B45: =IF(OR(B7="Consolidado",B7="Recursos SGP"),B43+B42+B41+B40,"") -> 
A46: AVANCE EN LOS INDICADORES
A47: =+IF(B6=B311,"","Nota: Los indicadores con los pueblos indígenas están en proceso de concertación") -> Nota: Los indicadores con los pueblos indígenas están en proceso de concertación
A49: =+IF(B6=B310,"",IF(B7=B316,"",IF(B12="","Nota indicadores pueblo rrom: Seleccione entidad para ver indicadores de pueblos rrom","Indicadores pueblos rrom "&B12))) -> 
A51: =+IF(B6=B310,"",IF(B7=B316,"",IF(B12="","","Indicador:"))) ->  | B51: Proyectos para el fortalecimiento y visibilización de la identidad cultural de los pueblos indígenas financiados.
A52: =+IF(B51="","","Meta 2015:") -> Meta 2015: | B52: =++IF(B51="","",IFERROR(VLOOKUP(B$51,'Indicadores Rrom'!$E$3:$AA$20,12,0),0)) -> 0
A53: =+IF(B51="","","Meta Cuatrienio:") -> Meta Cuatrienio: | B53: =++IF(B51="","",IFERROR(VLOOKUP(B$51,'Indicadores Rrom'!$E$3:$AA$20,16,0),0)) -> 0
A54: =+IF(B51="","","Avance anual:") -> Avance anual: | B54: =+IF(B51="","",IFERROR(VLOOKUP(B$51,'Indicadores Rrom'!$E$3:$AA$20,17,0),0)) -> 0
A55: =+IF(B51="","","Porcentaje Avance Cuatrienio:") -> Porcentaje Avance Cuatrienio: | B55: =+IF(B51="","",IFERROR(VLOOKUP(B$51,'Indicadores Rrom'!$E$3:$AA$20,20,0),0)) -> 0 | C55: =100-B55 -> 100
A56: =+IF(B51="","","Avance Cualitativo:") -> Avance Cualitativo: | B56: =+IF(B51="","",IFERROR(VLOOKUP(B$51,'Indicadores Rrom'!$E$3:$AA$20,23,0),0)) -> 0
A59: Ver detalle del eje
A60: Ver detalle de la entidad
A135: =+IF(B51="","","Porcentaje de avance en el cuatrienio") -> Porcentaje de avance en el cuatrienio
A139: =+A35 -> RECURSOS TOTALES EJECUTADOS PUEBLO INDÍGENA: | B139: 1244268271858 | D139: A | E139: Recursos PGN
A140: =+D40 -> Recursos totales ejecutados por el tipo de recurso señalado: | B140: =+E40 ->  | D140: B | E140: Recursos SGP
A141: =+F40 ->  | B141: =+G40 ->  | D141: C | E141: Inversión total eje del PND | F141: Asignación a la región
A142: =+A37 ->  | B142: =+B37 ->  | D142: D | E142: Inversión total - Sector | F142: Asignación al departamento
A143: =+A38 ->  | B143: =+B38 ->  | D143: E | E143: Recursos SGR
A146: GRAFICO 1 - CONSOLIDADO
A148: =IF(B7="","","RECURSOS PGN") -> RECURSOS PGN | B148: =IF(A148="","",'Tab Pres PI'!E5) -> 8.557490318e+11 | C148: =+IF(OR(D148="",D148=0),"",A148) -> RECURSOS PGN | D148: =+IF(OR(B148="",B148=0),"",B148/SUM($B$148:$B$150)) -> 0.6877528353 | E148: =+IF(AND((OR(D148="",D148=0)),(OR(D149="",D149=0)),(OR(D150="",D150=0))),"",D35) -> GRÁFICA 1. INVERSIÓN 2015 PUEBLO INDÍGENA POR FUENTE DE FINANCIACIÓN | F148: =C148 -> RECURSOS PGN | G148: =+IF(OR(B148="",B148=0),"",B148) -> 8.557490318e+11 | H148: =+D148 -> 0.6877528353
A149: =IF(B6="PUEBLO RROM","",IF(B7="","","RECURSOS SGP")) -> RECURSOS SGP | B149: =+IF((OR(AND(B6="Consolidado",B7="Consolidado"),AND(B6="Consolidado",B7="Recursos SGP"),AND(B6="Pueblo Indígena",B7="Recursos SGP"),AND(B6="Pueblo Indígena",B7="Consolidado"))),'Tab Pres PI'!F395+B41+B42+B43, IF(A149="","",'Tab Pres PI'!F395)) -> 165724553957 | C149: =+IF(OR(D149="",D149=0),"",A149) -> RECURSOS SGP | D149: =+IF(OR(B149="",B149=0),"",B149/SUM($B$148:$B$150)) -> 0.133190372 | F149: RECURSOS SGP | G149: =+IF(OR(B149="",B149=0),"",B149) -> 165724553957 | H149: =+D149 -> 0.133190372
A150: =IF(B6="PUEBLO RROM","",IF(B7="","","RECURSOS SGR")) -> RECURSOS SGR | B150: =+IF(A149="","",'Tab Pres PI'!F399) -> 222794686117 | C150: RECURSOS SGR | D150: 0.1790567928 | F150: RECURSOS SGR | G150: =+IF(OR(B150="",B150=0),"",B150) -> 222794686117 | H150: 0.1790567928
A152: GRAFICO 2 - EJE / REGIÓN
A154: =+IF(OR(B7=E140,B7=E143),"INVERSIÓN EN LA REGIÓN", IF(A141="","",IF(A141=E140,"",IF(A141=F141,"ASIGNADO A LA REGIÓN",E141)))) ->  | B154: =+IFERROR((IF(A154="","",B141)),"") ->  | C154: =+IF(OR(cd&ct&B9&B10&B11&B12=B570,cd&ct=B571,cd&ct&B9=B572,cd&ct&B9&B10=B573,cd&ct&B9&B10&B11=B574),"",IF(OR(D154="",D154=0),"",A154)) ->  | D154: =+IF(OR(cd&ct&B9&B10&B11&B12=B570,cd&ct&B9&B10&B11&B12="Consolidado",cd&ct=B571,cd&ct&B9=B572,cd&ct&B9&B10=B573,cd&ct&B9&B10&B11=B574),"",IF(OR(B154="",B154=0),"",B154/SUM($B$154:$B$155))) ->  | E154: =+IF(AND((OR(D154="",D154=0)),(OR(D155="",D155=0))),"",D36) ->  | F154: =C154 ->  | G154: =+IF(OR(cd&ct&B9&B10&B11&B12=B570,cd&ct&B9&B10&B11&B12="Consolidado",cd&ct=B571,cd&ct&B9=B572,cd&ct&B9&B10=B573,cd&ct&B9&B10&B11=B574),"",IF(OR(B154="",B154=0),"",B154)) ->  | H154: =+D154 -> 
A155: =+IF(OR(B7=E140,B7=E143),"INVERSIÓN EN OTRAS REGIONES", IF(A154="","",IF(A141=F141,"INVERSIÓN RESTO DEL PAÍS","INVERSIÓN OTROS EJES DEL PND"))) ->  | B155: =+IFERROR(IF(A155="","",B140-B154),"") ->  | C155: =+IF(OR(cd&ct&B9&B10&B11&B12=B570,cd&ct=B571,cd&ct&B9=B572,cd&ct&B9&B10=B573,cd&ct&B9&B10&B11=B574),"",IF(OR(D155="",D155=0),"",A155)) ->  | D155: =+IF(OR(cd&ct&B9&B10&B11&B12=B570,cd&ct&B9&B10&B11&B12="Consolidado",cd&ct=B571,cd&ct&B9=B572,cd&ct&B9&B10=B573,cd&ct&B9&B10&B11=B574),"",IFERROR((IF(OR(B155="",B155=0),"",B155/SUM($B$154:$B$155))),"")) ->  | G155: =+IF(OR(cd&ct&B9&B10&B11&B12=B570,cd&ct&B9&B10&B11&B12="Consolidado",cd&ct=B571,cd&ct&B9=B572,cd&ct&B9&B10=B573,cd&ct&B9&B10&B11=B574),"",IFERROR((IF(OR(B155="",B155=0),"",B155)),"")) ->  | H155: =+D155 -> 
A157: Grafico 3 - Sector / Departamento
A159: =+IF(AND(B6="CONSOLIDADO",B7="CONSOLIDADO"),"", IF(OR(B7=E140,B7=E143),"INVERSIÓN POR DEPARTAMENTO", IF(A142="","",IF(A142="RECURSOS SGR","",IF(A142=F142,"ASIGNADO AL DEPARTAMENTO",E142))))) ->  | B159: =+IF(A159="","",B142) ->  | C159: =+IF(OR(cd&ct&B9&B10&B11&B12=B570,cd&ct=B571,cd&ct&B9=B572,cd&ct&B9&B10=B573,cd&ct&B9&B10&B11=B574),"",IF(OR(D159="",D159=0),"",A159)) ->  | D159: =+IF(OR(cd&ct&B9&B10&B11&B12=B570,cd&ct&B9&B10&B11&B12="Consolidado",cd&ct=B571,cd&ct&B9=B572,cd&ct&B9&B10=B573,cd&ct&B9&B10&B11=B574),"",IFERROR((IF(OR(B159="",B159=0),"",B159/SUM($B$159:$B$161))),"")) ->  | E159: =+IF(AND((OR(D159="",D159=0)),(OR(D160="",D160=0))),"",D37) ->  | F159: =C159 ->  | G159: =+IF(OR(cd&ct&B9&B10&B11&B12=B570,cd&ct&B9&B10&B11&B12="Consolidado",cd&ct=B571,cd&ct&B9=B572,cd&ct&B9&B10=B573,cd&ct&B9&B10&B11=B574),"",IFERROR((IF(OR(B159="",B159=0),"",B159)),"")) ->  | H159: =+D159 -> 
A160: =+IF(OR(B7=E140,B7=E143),"INVERSIÓN EN OTROS DEPARTAMENTOS", IF(A159="","",IF(A142=F142,"ASIGNADO A OTROS DEPARTAMENTOS EN LA REGIÓN","INVERSIÓN DE OTROS SECTORES"))) ->  | B160: =+IF(OR(A160="",B159=0),"",B141-B159) ->  | C160: =+IF(OR(cd&ct&B9&B10&B11&B12=B570,cd&ct=B571,cd&ct&B9=B572,cd&ct&B9&B10=B573,cd&ct&B9&B10&B11=B574),"",IF(OR(D160="",D160=0,C159=""),"",A160)) ->  | D160: =+IF(OR(cd&ct&B9&B10&B11&B12=B570,cd&ct&B9&B10&B11&B12="Consolidado",cd&ct=B571,cd&ct&B9=B572,cd&ct&B9&B10=B573,cd&ct&B9&B10&B11=B574),"",IFERROR((IF(OR(B160="",B160=0),"",B160/SUM($B$159:$B$161))),"")) ->  | G160: =+IF(OR(cd&ct&B9&B10&B11&B12=B570,cd&ct&B9&B10&B11&B12="Consolidado",cd&ct=B571,cd&ct&B9=B572,cd&ct&B9&B10=B573,cd&ct&B9&B10&B11=B574),"",IFERROR((IF(OR(B160="",B160=0),"",B160)),"")) -> 
A163: Grafico 4 - Entidad
A165: =+IF(A154="","",IF(B159=0,"",IF(A38="","",IF(A38=B309,"","INVERTIDO POR LA ENTIDAD EN EL SECTOR")))) ->  | B165: =+IF(A165="","",B143) ->  | C165: =+IF(OR(D165="",D165=0),"",A165) ->  | D165: =+IFERROR((IF(OR(B165="",B165=0),"",B165/SUM($B$165:$B$166))),"") ->  | E165: =+IF(AND((OR(D165="",D165=0)),(OR(D166="",D166=0))),"",D38) ->  | F165: =C165 ->  | G165: =+IFERROR((IF(OR(B165="",B165=0),"",B165)),"") ->  | H165: =+D165 -> 
A166: =+IF(A165="","",IF(B159=0,"",IF(A38="","",IF(A38=B309,"","INVERTIDO POR OTRAS ENTIDADES EN EL SECTOR")))) ->  | B166: =+IF(A166="","",B142-B143) ->  | D166: =+IFERROR((IF(OR(B166="",B166=0),"",B166/SUM($B$165:$B$166))),"") ->  | G166: =+IFERROR((IF(OR(B166="",B166=0),"",B166)),"") ->  | L166: =+B171+B172 -> 
A167: Entidad del Gobierno Nacional | B167: =+SUMIF('Tab Pres PI'!E69:E223,'PUEBLO INDIGENA'!B12,'Tab Pres PI'!G69:G223) -> 0 | H167: 0
A169: Grafico 5 - Pueblos Indígenas
A171: =+IF(A165="","",IF(B6=B310,"Invertido en el eje","")) ->  | B171: =+IF(A171="","",B165) ->  | C171: =+IF(OR(D171="",D171=0),"",A171) ->  | D171: =+IFERROR((IF(OR(B171="",B171=0),"",B171/SUM($B$171:$B$173))),"") ->  | E171: =+IF(AND((OR(D171="",D171=0)),(OR(D172="",D172=0)),(OR(D173="",D173=0))),"",D39) ->  | F171: =C171 ->  | G171: =+IFERROR((IF(OR(B171="",B171=0),"",B171)),"") ->  | H171: =+D171 -> 
A172: =+IF(A171="","","Inversion 2015 PGN, SGP, SGR") ->  | B172: =+ IF(A172="","",B148+B149+B150+D41+D42+D43-B171) ->  | D172: =+IFERROR((IF(OR(B172="",B172=0),"",B172/SUM($B$171:$B$173))),"") ->  | G172: =+IFERROR((IF(OR(B172="",B172=0),"",B172)),"") -> 
A173: =+IF(A172="","","Por invertir 2016 -2018 (Piso PND)") ->  | B173: =+IF(A173="","",B178-B171-B172) ->  | D173: =+IFERROR((IF(OR(B173="",B173=0),"",B173/SUM($B$171:$B$173))),"") ->  | G173: =+IFERROR((IF(OR(B173="",B173=0),"",B173)),"") -> 
A178: Piso pND | B178: 8000000000000
A300: RECURSOS TOTALES DESTINADOS AL GRUPO ÉTNICO:
A301: INVERSIÓN TOTAL - EJE DEL PND
A302: INVERSIÓN TOTAL - SECTOR | F302: 1023975553741 | G302: =+E315 -> 2.227946861e+11
A303: INVERSIÓN TOTAL - ENTIDAD | E303: 855749031784 | F303: =+F302+G302 -> 1.24677024e+12
E306: 858250999784
B307: NO APLICA
D308: =+B309&B317 -> ConsolidadoRECURSOS SGR | E308: 2.227946861e+11
A309: Grupo Étnico | B309: Consolidado | D309: =+B309&B315 -> ConsolidadoRECURSOS PGN | E309: 858250999784 | F309: 1050422352565
B310: Pueblo Indígena | D310: =+B309&B316 -> ConsolidadoRECURSOS SGP | E310: 165724553957
B311: Pueblo Rrom | D311: =+B310&B314 -> Pueblo IndígenaCONSOLIDADO | E311: 1244268271858 | F311: 1216146906522 | G311: No hay Rroom para el 2015.. Se quito.
D312: =+B310&B315 -> Pueblo IndígenaRECURSOS PGN | E312: 855749031784 | F312: =+E312+E314 -> 858250999784
D313: =+B310&B316 -> Pueblo IndígenaRECURSOS SGP | E313: 165724553957 | F313: 858250999784 | G313: Rrom y Pueblo indígena - SGP
A314: Fuente de financiación | B314: CONSOLIDADO | D314: =+B311&B315 -> Pueblo RromRECURSOS PGN | E314: 2501968000
B315: RECURSOS PGN | D315: =+B310&B317 -> Pueblo IndígenaRECURSOS SGR | E315: 2.227946861e+11 | F315: =+E313+E312 -> 1021473585741 | G315: Total de RROM+pi DE PUEBLOS INDIGENAS+ SGP-AESPGRI+SGR
B316: RECURSOS SGP | E316: =+E311-E314 -> 1241766303858 | F316: 2501968000 | G316: Ficha de Rrom - Seguimiento
B317: RECURSOS SGR | F317: 8.557490318e+11 | G317: Lo ejecutado como obligado en política.
F318: 1021473585741
A319: Área de Incidencia | B319: CONSOLIDADO
B320: NIVEL NACIONAL
B321: TOTAL SGP
A322: CARIBE | B322: ATLÁNTICO | E322: CENTRO SUR
A323: CARIBE | B323: BOLIVAR | E323: CENTRO ORIENTE
A324: CARIBE | B324: CESAR | E324: EJE CAFETERO
A325: CARIBE | B325: CÓRDOBA | E325: LLANOS
A326: CARIBE | B326: LA GUAJIRA | E326: PACÍFICO
A327: CARIBE | B327: MAGDALENA | E327: CARIBE
A328: CARIBE | B328: SAN ANDRÉS Y PROVIDENCIA | E328: =IF($B$7=$B$314,$B$307,IF($B$7=$B$315,$B$307,IF($B$8=$E$322,$B$322:$B$323,IF(B8=$E$323,$B$324:$B$328,IF(B8=E324,B329:B335,IF(B8=E325,B336:B342,IF(B8=E326,B343:B350,#REF!))))))) -> NO APLICA
A329: CARIBE | B329: SUCRE
A330: CENTRO SUR | B330: AMAZONAS
A331: CENTRO SUR | B331: CAQUETA
A332: CENTRO SUR | B332: PUTUMAYO
A333: CENTRO SUR | B333: HUILA
A334: CENTRO SUR | B334: TOLIMA
A335: CENTRO ORIENTE | B335: BOGOTÁ
A336: CENTRO ORIENTE | B336: BOYACA
A337: CENTRO ORIENTE | B337: CUNDINAMARCA
A338: CENTRO ORIENTE | B338: NORTE DE SANTANDER
A339: CENTRO ORIENTE | B339: SANTANDER
A340: EJE CAFETERO | B340: ANTIOQUIA
A341: EJE CAFETERO | B341: CALDAS
A342: EJE CAFETERO | B342: QUINDIO
A343: EJE CAFETERO | B343: RISARALDA
A344: LLANOS | B344: ARAUCA
A345: LLANOS | B345: CASANARE
A346: LLANOS | B346: GUAINIA
A347: LLANOS | B347: GUAVIARE
A348: LLANOS | B348: META
A349: LLANOS | B349: VAUPES | E349: =IF(B11=B307,B307,IF(B11=B355,B355,IF(B11=D365,Agr,IF(B11=D369,Amb,IF(B11=D373,E373:E375,IF(B11=D379,Cul,IF(B11=D385,IS,IF(B11=D391,Info,IF(B11=D396,ME,IF(B11=D399,Pre,IF(B11=D407,Tbj,IF(B11=D410,Trp,IF(B11=D376,TIC,E350))))))))))))) -> 
A350: LLANOS | B350: VICHADA | E350: =+VLOOKUP($B11,$D$365:$E$415,2,0) -> 
A351: PACÍFICO | B351: CAUCA
A352: PACÍFICO | B352: CHOCO
A353: PACÍFICO | B353: NARIÑO
A354: PACÍFICO | B354: VALLE DEL CAUCA
A355: Eje del Plan Nacional de Desarrollo | B355: BUEN GOBIERNO | E355: Eje del Plan Nacional de Desarrollo | F355: Consolidado
A356: Pueblos indígenas | B356: COMPETITIVIDAD E INFRAESTRUCTURA ESTRATÉGICAS | E356: Pueblos rrom | F356: Movilidad Social
B357: CONSOLIDADO | F357: Buen Gobierno
B358: CRECIMIENTO VERDE | F358: Competitividad E Infraestructura Estratégica
B359: MOVILIDAD SOCIAL
B360: SEGURIDAD, JUSTICIA Y DEMOCRACIA
B361: TRANSFORMACIÓN DEL CAMPO | C361: =+UPPER(B361) -> TRANSFORMACIÓN DEL CAMPO
E363: =IF($B$11=$B$307,$B$307,IF($B$11=B355,B355,IF($B$11=$D$365,Agr,IF($B$11=$D$369,Amb,IF($B$11=$D$372,$E$372,IF($B$11=$D$373,$E$373:$E$375,IF($B$11=$D$379,Cul,IF($B$11=$D$382,$E$382,IF($B$11=$D$383,$E$383,IF($B$11=$D$384,$E$384,IF($B$11=$D$385,IS,IF($B$11=D391,Info,IF($B$11=D394,E394,IF($B$11=D395,E395,IF($B$11=D396,ME,IF($B$11=D399,Pre,IF($B$11=D403,E403,IF($B$11=D404,E404,IF($B$11=D405,E405,IF($B$11=D406,E406,IF($B$11=D407,Tbj,IF($B$11=D410,Trp,IF($B$11=D376,TIC,E413))))))))))))))))))))))) -> MINISTERIO DE VIVIENDA
A364: Eje | B364: Sector | D364: Sector | E364: Entidad
A365: BUEN GOBIERNO | B365: Ambiente Y Desarrollo Sostenible | D365: Agropecuario | E365: Consolidado
B366: Consolidado | E366: INCODER
B367: Cultura | E367: MINISTERIO DE AGRICULTURA
B368: Información Estadística | E368: Unidad Administrativa Especial de Gestión de Restitución de Tierras Despojadas (URT)
B369: Interior | D369: Ambiente Y Desarrollo Sostenible | E369: Consolidado
E370: CODECHOCO
E371: MINISTERIO DE AMBIENTE
A372: COMPETITIVIDAD E INFRAESTRUCTURA ESTRATÉGICA | B372: Consolidado | D372: Ciencia y Tecnología | E372: COLCIENCIAS
B373: Ambiente Y Desarrollo Sostenible | D373: Comercio, Industria Y Turismo | E373: Consolidado
B374: Ciencia y Tecnología | E374: ARTESANIAS DE COLOMBIA
B375: Comunicaciones | E375: MINISTERIO DE COMERCIO, INDUSTRIA Y TURISMO
B376: Inclusión Social | D376: Comunicaciones | E376: Consolidado
B377: Interior | E377: ANTV
B378: Minas Y Energía | E378: MINISTERIO DE LAS TIC
B379: Transporte | D379: Cultura | E379: Consolidado
B380: Comercio, Industria Y Turismo | E380: ICANH
E381: MINISTERIO DE CULTURA
A382: CRECIMIENTO VERDE | B382: Consolidado | D382: Deporte Y Recreación | E382: COLDEPORTES
B383: Ambiente Y Desarrollo Sostenible | D383: Educación | E383: MINISTERIO DE EDUCACIÓN
B384: Cultura | D384: Hacienda | E384: MINISTERIO DE HACIENDA
B385: Información Estadística | D385: Inclusión Social | E385: APC
B386: Interior | E386: Consolidado
E387: DANE
A388: Inversiones adicionales | B388: Consolidado | E388: ICBF
E389: MINISTERIO DEL INTERIOR
B390: Agropecuario | E390: MINISTERIO DE HACIENDA
B391: Ambiente Y Desarrollo Sostenible | D391: Información Estadística | E391: Consolidado
B392: Comercio, Industria Y Turismo | E392: DANE
B393: Comunicaciones | E393: IGAC
B394: Cultura | D394: Interior | E394: MINISTERIO DEL INTERIOR
B395: Educación | D395: Justicia Y Del Derecho | E395: MINISTERIO DE JUSTICIA
B396: Inclusión Social | D396: Minas Y Energía | E396: Consolidado
B397: Interior | E397: ANM
B398: Justicia Y Del Derecho | E398: MINISTERIO DE MINAS Y ENERGÍA
B399: Minas Y Energía | D399: Presidencia | E399: Consolidado
B400: Registraduria | E400: ACR
B401: Trabajo | E401: APC
B402: Transporte | E402: PRESIDENCIA
D403: Rama Judicial | E403: Consejo Superior de la Judicatura
A404: MOVILIDAD SOCIAL | B404: Consolidado | D404: Registraduria | E404: Registraduría General de la Nación
B405: Agropecuario | D405: Relaciones exteriores | E405: MINISTERIO DE RELACIONES EXTERIORES
B406: Comunicaciones | D406: Saludy Protección Social | E406: MINISTERIO DE SALUD
B407: Cultura | D407: Trabajo | E407: Consolidado
B408: Deporte Y Recreación | E408: MINISTERIO DE TRABAJO
B409: Educación | E409: SENA
B410: Inclusión Social | D410: Transporte | E410: Consolidado
B411: Relaciones exteriores | E411: INVIAS
B412: Saludy Protección Social | E412: MINISTERIO DE TRANSPORTE
B413: Trabajo | D413: Vivienda, ciudad y territorio | E413: MINISTERIO DE VIVIENDA
B414: Comercio, Industria Y Turismo | D414: Planeación | E414: Departamento Nacional de Planeación
B415: Planeación | D415: Defensa | E415: MINISTERIO DE DEFENSA
A416: SEGURIDAD, JUSTICIA Y DEMOCRACIA PARA LA CONSTRUCCIÓN DE PAZ | B416: Ambiente Y Desarrollo Sostenible
B417: Ciencia y Tecnología
B418: Comercio, Industria Y Turismo
B419: Comunicaciones
B420: Consolidado
B421: Inclusión Social
B422: Interior
B423: Minas Y Energía
B424: Transporte
A426: TRANSFORMACIÓN DEL CAMPO | B426: Consolidado
B427: Agropecuario
B428: Cultura
B429: Interior
B430: Presidencia
B431: Trabajo
B432: Vivienda, ciudad y territorio
A437: EJE - ESTRATEGIA | B437: Sector
A438: BUEN GOBIERNO | B438: INFORMACIÓN ESTADÍSTICA
B439: RELACIONES EXTERIORES
A440: COMPETITIVIDAD E INFRAESTRUCTURA ESTRATÉGICAS | B440: COMERCIO, INDUSTRIA Y TURISMO
B441: COMUNICACIONES
B442: MINAS Y ENERGÍA
B443: TRANSPORTE
A444: CRECIMIENTO VERDE | B444: AMBIENTE Y DESARROLLO SOSTENIBLE
B445: INTERIOR
A446: MOVILIDAD SOCIAL | B446: CULTURA
B447: DEPORTE Y RECREACIÓN
B448: EDUCACIÓN
... 110 more rows

Sheet PUEBLO RROM
B2: INFORME DE SEGUIMIENTO CUMPLIMIENTO DE COMPROMISOS DE CONSULTA PREVIA AL PND 2014 - 2018 - PUEBLO RROM VIGENCIA 2015
A3: DEPARTAMENTO NACIONAL DE PLANEACIÓN
A6: GRUPO ÉTNICO | B6: PUEBLO RROM
A7: FUENTE DE FINANCIACIÓN | B7: RECURSOS PGN
A8: REGIÓN DE INCIDENCIA
A9: DEPARTAMENTO
A10: EJE DEL PLAN NACIONAL DE DESARROLLO
A11: SECTOR DEL GOBIERNO NACIONAL
A12: ENTIDAD DEL GOBIERNO NACIONAL
A13: ANALISIS DE LA INFORMACION | B13: =+IF('analisis-RROM'!A12="0","",'analisis-RROM'!A12) -> 
A15: INFORMACIÓN PRESUPUESTAL PUEBLO RROM 2015
A35: =+IF(B6="","","RECURSOS TOTALES EJECUTADOS PUEBLO RROM:") -> RECURSOS TOTALES EJECUTADOS PUEBLO RROM: | B35: =+IF(A35="","", IF((OR(AND(B6="Consolidado",B7="Consolidado"),AND(B6="Consolidado",B7="Recursos SGP"),AND(B6="Pueblo Indígena",B7="Recursos SGP"),AND(B6="Pueblo Indígena",B7="Consolidado"))), IFERROR((VLOOKUP($B6,'Tab Pres RROM'!$A$62:$E$66,5,0)+B40+B42+B43),0),IFERROR(VLOOKUP($B6,'Tab Pres RROM'!$A$62:$E$66,5,0),0))) -> 2501968000 | D35: =+IF(A148="","","GRÁFICA 1. INVERSIÓN 2015 PUEBLO RROM POR FUENTE DE FINANCIACIÓN PGN") -> GRÁFICA 1. INVERSIÓN 2015 PUEBLO RROM POR FUENTE DE FINANCIACIÓN PGN
D36: =+IF(OR(AND(ct=""),AND(cd<>"",ct="",B9="",B10="",B11=""),AND(cd<>"",ct<>"",B9="",B10="",B11=""),AND(cd<>"",ct<>"",B9<>"",B10="",B11=""),AND(cd<>"",ct<>"",B9<>"",B10<>"",B11="")),"", IF(B7=E139,"GRÁFICA 2. PARTICIPACIÓN DE LO INVERTIDO EN EL EJE CON RESPECTO AL RESTO DE LA INVERSIÓN DE PGN",IF(B7=E140,"GRÁFICA 2. PARTICIPACIÓN DE LA ASIGNACIÓN EN LA REGIÓN CON RESPECTO AL RESTO DEL PAÍS POR SGP","GRÁFICA 2. PARTICIPACIÓN DE LA ASIGNACIÓN EN LA REGIÓN CON RESPECTO AL RESTO DEL PAÍS POR SGR"))) -> 
A37: =+IF(B7="RECURSOS SGR","RECURSOS TOTALES EJECUTADOS POR SGR-REGION", IF(B7="RECURSOS SGP","RECURSOS TOTALES EJECUTADOS POR SGP-REGION", IF(B6&B7=B309&B314,"RECURSOS SGR",IF(B8="","",IF(OR(B7=B316,B7="CONSOLIDADO"),"RECURSOS TOTALES EJECUTADOS POR SGP-AESGPRI",IF(B7=B317,"ASIGNACIÓN SGR A LA REGIÓN",IF(B10="","","INVERSIÓN TOTAL - EJE DEL PND"))))))) ->  | B37: =+IF(B7="Consolidado",'Tab Pres RROM'!E35, IF(A37="Asignación SGR a la región",(VLOOKUP('PUEBLO RROM'!B8,'Tab Pres RROM'!$B$528:$C$534,2,0)), IF(A37="","",IF(A37="Recursos SGR",'Tab Pres RROM'!F395,IF(B7=B316,VLOOKUP(B8,'Tab Pres RROM'!$B$439:$C$444,2,0),IF(B7=B317,VLOOKUP(B8,'Tab Pres RROM'!$B$528:$C$534,2,0),(IF(B6=B309,VLOOKUP(B7&B10&"Consolidado"&"Consolidado",'Tab Pres RROM'!$E$246:$F$395,2,0),IFERROR(VLOOKUP(B6&B7&B10&B314&B314,'Tab Pres RROM'!$F$70:$G$240,2,0),0))))))))) ->  | D37: =+IF(B7=B317,"GRÁFICA 3. PARTICIPACIÓN DE LA ASIGNACIÓN EN EN EL DEPARTAMENTO CON RESPECTO AL RESTO DE LA REGIÓN POR SGR", IF(B7=B316,"GRÁFICA 3. PARTICIPACIÓN DEL DEPARTAMENTO EN LA REGION", IF(A159="","",IF(A159=E142,"GRÁFICA 3. PARTICIPACIÓN DEL SECTOR EN LA INVERSIÓN REALIZADA EN EL EJE","GRÁFICA 3. PARTICIPACIÓN DE LA ASIGNACIÓN EN EN EL DEPARTAMENTO CON RESPECTO AL RESTO DE LA REGIÓN POR SGP")))) -> 
A38: =++IF(B7="RECURSOS SGR","RECURSOS TOTALES EJECUTADOS POR SGR-DEPARTAMENTO", IF(B7="RECURSOS SGP","RECURSOS TOTALES EJECUTADOS POR SGP-DEPARTAMENTO", IF(B7="CONSOLIDADO","RECURSOS TOTALES EJECUTADOS POR SGR", IF(B7=B317,"ASIGNACIÓN SGR AL DEPARTAMENTO", IF(B6&B7=B309&B314,"RECURSOS SGP",IF(B9="","",IF(A41=E139,"",IF(B8=PGN,IF(B9="","",IF(B11="","",IF(B10="","","INVERSIÓN TOTAL - SECTOR"))),"SGP-AESGPGRI AL DEPARTAMENTO")))))))) ->  | B38: =+IF(B7="Consolidado",'Tab Pres RROM'!E61, IFERROR(( IF(B7=E143,VLOOKUP(B9,'Tab Pres RROM'!A490:C522,3,0),IF(A38="","",IF(A38="Recursos SGP",'Tab Pres RROM'!E61,IFERROR(IF(B6&B7=B309&B315,VLOOKUP(B7&B10&B11&"Consolidado",'Tab Pres RROM'!$E$246:$F$399,2,0),IF(A38=E142,SUMIF('Tab Pres RROM'!F224:F240,B6&B7&B10&B11&"Consolidado",'Tab Pres RROM'!G224:G240),VLOOKUP($B$9,'Tab Pres RROM'!$A$403:$C$435,3,0))),0))))),"")) ->  | D38: =+IF(OR(AND(ct=""),AND(cd<>"",ct="",B9="",B10="",B11="",B12=""),AND(cd<>"",ct<>"",B9="",B10="",B11="",B12=""),AND(cd<>"",ct<>"",B9<>"",B10="",B11="",B12=""),AND(cd<>"",ct<>"",B9<>"",B10<>"",B11="",B12=""),AND(cd<>"",ct<>"",B9<>"",B10<>"",B11<>"",B12="")),"", IF(B7=B316,"", IF(B7=B317,"", IF(A160="","","GRÁFICA 4. PARTICIPACIÓN DE LA ENTIDAD EN LA INVERSIÓN REALIZADA POR EL SECTOR")))) -> 
A39: =+IF(B7="RECURSOS SGP","", IF(AND(B6="PUEBLO INDÍGENA",B7="CONSOLIDADO"),"", IF(AND(B6="CONSOLIDADO",B7="CONSOLIDADO"),"", IF(B7=B317,"", IF(B12="","",IF(A38="ASIGNACIÓN SGP AL DEPARTAMENTO","","INVERSIÓN TOTAL - ENTIDAD")))))) ->  | B39: =+IF(AND(B7="Recursos PGN",B11="Consolidado"),SUMIF('Tab Pres RROM'!E69:E223,'PUEBLO RROM'!B12,'Tab Pres RROM'!G69:G223), IF(A39="","",IFERROR(IF(B6&B7=B309&B315,VLOOKUP(B7&B10&B11&B12,'Tab Pres RROM'!$E$246:$F$395,2,0),IF(A37="Inversión total - Eje del PND",VLOOKUP(B6&B7&B10&B11&B12,'Tab Pres RROM'!$F$70:$G$240,2,0),VLOOKUP($B$8,'Tab Pres RROM'!$C$6:$E$35,3,0))),0))) ->  | D39: =+IF(A1="","",IF(B7=B317,"", IF(A171="","","Gráfica 5. Comparación invertido en el 2015 con respecto al piso del PND."))) -> 
A40: =+IF(OR(B7="Recursos SGP",B7="consolidado"),"Recursos ejecutados SGP SALUD","") ->  | B40: =+IF(A40="","",D40) ->  | D40: 699667000000
A41: =+IF(B7="RECURSOS SGR","RECURSOS TOTALES EJECUTADOS POR SGR", IF(B7="RECURSOS SGP","RECURSOS TOTALES EJECUTADOS POR SGP", IF(B7="CONSOLIDADO","RECURSOS TOTALES EJECUTADOS POR PGN", IF(B7="","",IF(B6&B7=B309&B314,"RECURSOS PGN","RECURSOS TOTALES EJECUTADOS POR PGN:"))))) -> RECURSOS TOTALES EJECUTADOS POR PGN: | B41: =+IF(B7="Consolidado",'Tab Pres RROM'!E5, IF(A41="","",IF(A41="Recursos PGN",'Tab Pres RROM'!F391,VLOOKUP(B6&B7,$D$308:$E$315,2,0)))) -> 2501968000
A42: =+IF(OR(B7="Recursos SGP",B7="consolidado"),"Recursos ejecutados SGP EDUCACION","") ->  | B42: =+IF(A42="","",D42) ->  | D42: 325599000000
A43: =+IF(OR(B7="Recursos SGP",B7="consolidado"),"Recursos ejecutados SGP APSB","") ->  | D43: 38299000000
A45: =IF(OR(B7="Consolidado",B7="Recursos SGP"),"TOTAL Recursos SGP","") ->  | B45: =IF(OR(B7="Consolidado",B7="Recursos SGP"),B43+B42+B40+B41,"") -> 
A46: AVANCE EN LOS INDICADORES
A47: =+IF(B6=B311,"","Nota: Los indicadores con los pueblos indígenas están en proceso de concertación") -> 
A49: =+IF(B6=B310,"",IF(B7=B316,"",IF(B12="","Nota indicadores pueblo rrom: Seleccione entidad para ver indicadores de pueblos rrom","Indicadores pueblos rrom"))) -> Nota indicadores pueblo rrom: Seleccione entidad para ver indicadores de pueblos rrom
A50: EJE DEL PLAN NACIONAL DE DESARROLLO | D50: SELECCIONE PARAMETROS DE CONSULTA Y PARAMETRICE TODAS LAS CELDAS
A51: SECTOR DEL GOBIERNO NACIONAL
A52: ENTIDAD DEL GOBIERNO NACIONAL
A53: INDICADOR:
A54: =+IF(B53="","","META 2015:") ->  | B54: =+IF(OR(AND(z=""),AND(,x="",y=""),AND(y="",B53=0),B53=""),"",VLOOKUP(B53,'Indicadores Rrom'!F3:AF20,12,0)) ->  | E54: INDICADOR DE LA ENTIDAD
A55: =+IF(B53="","","META CUATRIENIO:") ->  | B55: =+IF(OR(AND(z=""),AND(,x="",y=""),AND(y="",B53=0),B53=""),"",VLOOKUP(B53,'Indicadores Rrom'!F3:AF20,16,0)) ->  | C55: =100-B57 ->  | E55: =+A55 ->  | F55: =+B55 -> 
A56: =+IF(B53="","","AVANCE ANUAL:") ->  | B56: =+IF(OR(AND(z=""),AND(,x="",y=""),AND(y="",B53=0),B53=""),"",VLOOKUP(B53,'Indicadores Rrom'!F3:AF20,16,0)) ->  | E56: =+A56 ->  | F56: =+B57 -> 
A57: =+IF(B53="","","PORCENTAJE AVANCE CUATRIENIO:") ->  | B57: =+IF(OR(AND(z=""),AND(,x="",y=""),AND(y="",B53=0),B53=""),"",VLOOKUP(B53,'Indicadores Rrom'!F3:AF20,20,0)) -> 
A58: =+IF(B53="","","AVANCE CUALITATIVO:") ->  | B58: =+IF(OR(AND(z=""),AND(,x="",y=""),AND(y="",B53=0),B53=""),"",VLOOKUP(B53,'Indicadores Rrom'!F3:AF20,23,0)) -> 
A135: =+IF(B53="","","Porcentaje de avance en el cuatrienio") -> 
A139: =+A35 -> RECURSOS TOTALES EJECUTADOS PUEBLO RROM: | B139: 2501968000 | D139: A | E139: Recursos PGN
A140: =+A41 -> RECURSOS TOTALES EJECUTADOS POR PGN: | B140: =+B41 -> 2501968000 | D140: B | E140: RECURSOS SGP
D141: C | E141: INVERSIÓN TOTAL - EJE DEL PND | F141: ASIGNACIÓN A LA REGIÓN
D142: D | E142: INVERSIÓN TOTAL - SECTOR | F142: ASIGNACIÓN AL DEPARTAMENTO
D143: E | E143: RECURSOS SGR
A146: Grafico 1 - Consolidado
A148: =IF(B7="","","RECURSOS PGN") -> RECURSOS PGN | B148: =IF(B6="Pueblo Rrom",B139,IF(A148="","",'Tab Pres RROM'!F391)) -> 2501968000 | C148: =+IF(OR(D148="",D148=0),"",A148) -> RECURSOS PGN | D148: =+IF(OR(B148="",B148=0),"",B148/SUM($B$148:$B$150)) -> 1 | E148: =+IF(AND((OR(D148="",D148=0)),(OR(D149="",D149=0)),(OR(D150="",D150=0))),"",D35) -> GRÁFICA 1. INVERSIÓN 2015 PUEBLO RROM POR FUENTE DE FINANCIACIÓN PGN | F148: =C148 -> RECURSOS PGN | G148: =+IF(OR(B148="",B148=0),"",B148) -> 2501968000 | H148: =+D148 -> 1
A149: =IF(B6="Pueblo Rrom","",IF(B7="","","Recursos SGP")) ->  | B149: =+IF((OR(AND(B6="Consolidado",B7="Consolidado"),AND(B6="Consolidado",B7="Recursos SGP"),AND(B6="Pueblo Indígena",B7="Recursos SGP"),AND(B6="Pueblo Indígena",B7="Consolidado"))),'Tab Pres RROM'!F395+B40+B42+B43, IF(A149="","",'Tab Pres RROM'!F395)) ->  | C149: =+IF(OR(D149="",D149=0),"",A149) ->  | D149: =+IF(OR(B149="",B149=0),"",B149/SUM($B$148:$B$150)) ->  | G149: =+IF(OR(B149="",B149=0),"",B149) ->  | H149: =+D149 -> 
A150: =IF(B6="Pueblo Rrom","",IF(B7="","","Recursos SGR")) ->  | B150: =+IF(A149="","",'Tab Pres RROM'!F399) ->  | G150: =+IF(OR(B150="",B150=0),"",B150) -> 
A152: Grafico 2 - Eje / Región
A154: =+IF(OR(B7=E140,B7=E143),"INVERSIÓN EN LA REGIÓN", IF(A141="","",IF(A141=E140,"",IF(A141=F141,"ASIGNADO A LA REGIÓN",E141)))) ->  | B154: =+IF(A154="","",B142) ->  | C154: =+IF(cd&ct&B9&B10&B11&B12=B567,"",IF(OR(D154="",D154=0),"",A154)) ->  | D154: =+IF(cd&ct&B9&B10&B11&B12=B567,"",IF(OR(B154="",B154=0),"",B154/SUM($B$154:$B$155))) ->  | E154: =+IF(AND((OR(D154="",D154=0)),(OR(D155="",D155=0))),"",D36) ->  | F154: =C154 ->  | G154: =+IF(cd&ct&B9&B10&B11&B12=B567,"",IF(OR(B154="",B154=0),"",B154)) ->  | H154: =+D154 -> 
A155: =+IF(OR(B7=E140,B7=E143),"INVERSIÓN EN OTRAS REGIONES", IF(A154="","",IF(A141=F141,"INVERSIÓN RESTO DEL PAÍS","INVERSIÓN OTROS EJES DEL PND"))) ->  | B155: =+IF(A155="","",B140-B154) ->  | C155: =+IF(cd&ct&B9&B10&B11&B12=B567,"",IF(OR(D155="",D155=0),"",A155)) ->  | D155: =+IF(cd&ct&B9&B10&B11&B12=B567,"",IFERROR((IF(OR(B155="",B155=0),"",B155/SUM($B$154:$B$155))),"")) ->  | G155: =+IF(cd&ct&B9&B10&B11&B12=B567,"",IFERROR((IF(OR(B155="",B155=0),"",B155)),"")) ->  | H155: =+D155 -> 
A157: Grafico 3 - Sector / Departamento
A159: =+IF(AND(B6="CONSOLIDADO",B7="CONSOLIDADO"),"", IF(OR(B7=E140,B7=E143),"INVERSIÓN POR DEPARTAMENTO", IF(A142="","",IF(A142="RECURSOS SGR","",IF(A142=F142,"ASIGNADO AL DEPARTAMENTO",E142))))) ->  | B159: =+IF(A159="","",B142) ->  | C159: =+IF(cd&ct&B9&B10&B11&B12=B567,"",IF(OR(D159="",D159=0),"",A159)) ->  | D159: =+IF(cd&ct&B9&B10&B11&B12=B567,"",IFERROR((IF(OR(B159="",B159=0),"",B159/SUM($B$159:$B$161))),"")) ->  | E159: =+IF(AND((OR(D159="",D159=0)),(OR(D160="",D160=0))),"",D37) ->  | F159: =C159 ->  | G159: =+IF(cd&ct&B9&B10&B11&B12=B567,"",IFERROR((IF(OR(B159="",B159=0),"",B159)),"")) ->  | H159: =+D159 -> 
A160: =+IF(OR(B7=E140,B7=E143),"INVERSIÓN EN OTROS DEPARTAMENTOS", IF(A159="","",IF(A142=F142,"ASIGNADO A OTROS DEPARTAMENTOS EN LA REGIÓN","INVERSIÓN DE OTROS SECTORES"))) ->  | B160: =+IF(OR(A160="",B159=0),"",B141-B159) ->  | C160: =+IF(cd&ct&B9&B10&B11&B12=B567,"",IF(OR(D160="",D160=0,C159=""),"",A160)) ->  | D160: =+IF(cd&ct&B9&B10&B11&B12=B567,"",IFERROR((IF(OR(B160="",B160=0),"",B160/SUM($B$159:$B$161))),"")) ->  | G160: =+IF(cd&ct&B9&B10&B11&B12=B567,"",IFERROR((IF(OR(B160="",B160=0),"",B160)),"")) -> 
A163: Grafico 4 - Entidad
A165: =+IF(A154="","",IF(B159=0,"",IF(A39="","",IF(A39=B309,"","INVERTIDO POR LA ENTIDAD EN EL SECTOR")))) ->  | B165: =+IF(A165="","",B143) ->  | C165: =+IF(OR(D165="",D165=0),"",A165) ->  | D165: =+IFERROR((IF(OR(B165="",B165=0),"",B165/SUM($B$165:$B$166))),"") ->  | E165: =+IF(AND((OR(D165="",D165=0)),(OR(D166="",D166=0))),"",D38) ->  | F165: =C165 ->  | G165: =+IFERROR((IF(OR(B165="",B165=0),"",B165)),"") ->  | H165: =+D165 -> 
A166: =+IF(A165="","",IF(B159=0,"",IF(A39="","",IF(A39=B309,"","INVERTIDO POR OTRAS ENTIDADES EN EL SECTOR")))) ->  | B166: =+IF(A166="","",B142-B143) ->  | D166: =+IFERROR((IF(OR(B166="",B166=0),"",B166/SUM($B$165:$B$166))),"") ->  | G166: =+IFERROR((IF(OR(B166="",B166=0),"",B166)),"") ->  | L166: =+B171+B172 -> 
A167: ENTIDAD DEL GOBIERNO NACIONAL | B167: =+SUMIF('Tab Pres RROM'!E69:E223,'PUEBLO RROM'!B12,'Tab Pres RROM'!G69:G223) -> 0 | H167: 0
A169: Grafico 5 - Pueblos Indígenas
A171: =+IF(A165="","",IF(B6=B310,"Invertido en el eje","")) ->  | B171: =+IF(A171="","",B165) ->  | C171: =+IF(OR(D171="",D171=0),"",A171) ->  | D171: =+IFERROR((IF(OR(B171="",B171=0),"",B171/SUM($B$171:$B$173))),"") ->  | E171: =+IF(AND((OR(D171="",D171=0)),(OR(D172="",D172=0)),(OR(D173="",D173=0))),"",D39) ->  | F171: =C171 ->  | G171: =+IFERROR((IF(OR(B171="",B171=0),"",B171)),"") ->  | H171: =+D171 -> 
A172: =+IF(A171="","","Inversion 2015 PGN, SGP, SGR") ->  | B172: =+ IF(A172="","",B148+B149+B150+D40+D42+D43-B171) ->  | D172: =+IFERROR((IF(OR(B172="",B172=0),"",B172/SUM($B$171:$B$173))),"") ->  | G172: =+IFERROR((IF(OR(B172="",B172=0),"",B172)),"") -> 
A173: =+IF(A172="","","Por invertir 2016 -2018 (Piso PND)") ->  | B173: =+IF(A173="","",B178-B171-B172) ->  | D173: =+IFERROR((IF(OR(B173="",B173=0),"",B173/SUM($B$171:$B$173))),"") ->  | G173: =+IFERROR((IF(OR(B173="",B173=0),"",B173)),"") -> 
A178: Piso pND | B178: 8000000000000
A300: Recursos totales destinados al grupo étnico:
A301: Inversión total - Eje del PND
A302: Inversión total - Sector | F302: 1023975553741 | G302: =+E315 -> 2.227946861e+11
A303: Inversión total - Entidad | E303: 855749031784 | F303: =+F302+G302 -> 1.24677024e+12
E306: 858250999784
B307: NO APLICA
D308: =+B309&B317 -> ConsolidadoRECURSOS SGR | E308: 2.227946861e+11
A309: Grupo Étnico | B309: Consolidado | D309: =+B309&B315 -> ConsolidadoRECURSOS PGN | E309: 858250999784 | F309: 1050422352565
B310: Pueblo Indígena | D310: =+B309&B316 -> ConsolidadoRECURSOS SGP | E310: 165724553957
B311: Pueblo Rrom | D311: =+B310&B314 -> Pueblo IndígenaCONSOLIDADO | E311: 1244268271858 | F311: 1216146906522 | G311: No hay Rroom para el 2015.. Se quito.
D312: =+B310&B315 -> Pueblo IndígenaRECURSOS PGN | E312: 855749031784 | F312: =+E312+E314 -> 858250999784
D313: =+B310&B316 -> Pueblo IndígenaRECURSOS SGP | E313: 165724553957 | F313: 858250999784 | G313: Rrom y Pueblo indgena - SGP
A314: Fuente de financiación | B314: CONSOLIDADO | D314: =+B311&B315 -> Pueblo RromRECURSOS PGN | E314: 2501968000
B315: RECURSOS PGN | D315: =+B310&B317 -> Pueblo IndígenaRECURSOS SGR | E315: 2.227946861e+11 | F315: =+E313+E312 -> 1021473585741 | G315: Total de RROM+pi DE PUEBLOS INDIGENAS+ SGP-AESPGRI+SGR
B316: RECURSOS SGP | E316: =+E311-E314 -> 1241766303858 | F316: 2501968000 | G316: Ficha de Rrom - Seguimiento
B317: RECURSOS SGR | F317: 8.557490318e+11 | G317: Lo ejecutado como obligado en politica.
F318: 1021473585741
A319: Area de Incidencia | B319: CONSOLIDADO
B320: NIVEL NACIONAL
B321: TOTAL SGP
A322: CARIBE | B322: ATLÁNTICO | E322: CENTRO SUR
A323: CARIBE | B323: BOLIVAR | E323: CENTRO-ORIENTE
A324: CARIBE | B324: CESAR | E324: EJE CAFETERO
A325: CARIBE | B325: CÓRDOBA | E325: LLANOS
A326: CARIBE | B326: LA GUAJIRA | E326: PACÍFICO
A327: CARIBE | B327: MAGDALENA | E327: CARIBE
A328: CARIBE | B328: SAN ANDRÉS Y PROVIDENCIA | E328: =IF($B$7=$B$314,$B$307,IF($B$7=$B$315,$B$307,IF($B$8=$E$322,$B$322:$B$323,IF(B8=$E$323,$B$324:$B$328,IF(B8=E324,B329:B335,IF(B8=E325,B336:B342,IF(B8=E326,B343:B350,#REF!))))))) -> NO APLICA
A329: CARIBE | B329: SUCRE
A330: CENTRO SUR | B330: AMAZONAS
A331: CENTRO SUR | B331: CAQUETA
A332: CENTRO SUR | B332: PUTUMAYO
A333: CENTRO SUR | B333: HUILA
A334: CENTRO SUR | B334: TOLIMA
A335: CENTRO-ORIENTE | B335: BOGOTÁ
A336: CENTRO-ORIENTE | B336: BOYACA
A337: CENTRO-ORIENTE | B337: CUNDINAMARCA
A338: CENTRO-ORIENTE | B338: NORTE DE SANTANDER
A339: CENTRO-ORIENTE | B339: SANTANDER
A340: EJE CAFETERO | B340: ANTIOQUIA
A341: EJE CAFETERO | B341: CALDAS
A342: EJE CAFETERO | B342: QUINDIO
A343: EJE CAFETERO | B343: RISARALDA
A344: LLANOS | B344: ARAUCA
A345: LLANOS | B345: CASANARE
A346: LLANOS | B346: GUAINIA
A347: LLANOS | B347: GUAVIARE
A348: LLANOS | B348: META
A349: LLANOS | B349: VAUPES | E349: =IF(B11=B307,B307,IF(B11=B355,B355,IF(B11=D365,Agr,IF(B11=D369,Amb,IF(B11=D373,E373:E375,IF(B11=D379,Cul,IF(B11=D385,IS,IF(B11=D391,Info,IF(B11=D396,ME,IF(B11=D399,Pre,IF(B11=D407,Tbj,IF(B11=D410,Trp,IF(B11=D376,TIC,E350))))))))))))) -> 
A350: LLANOS | B350: VICHADA | E350: =+VLOOKUP($B11,$D$365:$E$415,2,0) -> 
A351: PACÍFICO | B351: CAUCA
A352: PACÍFICO | B352: CHOCO
A353: PACÍFICO | B353: NARIÑO
A354: PACÍFICO | B354: VALLE DEL CAUCA
A355: Eje del Plan Nacional de Desarrollo | B355: BUEN GOBIERNO | E355: Eje del Plan Nacional de Desarrollo | F355: Consolidado
A356: Pueblos indigenas | B356: COMPETITIVIDAD E INFRAESTRUCTURA ESTRATÉGICAS | E356: Pueblos rrom | F356: Movilidad Social
B357: CONSOLIDADO | F357: Buen Gobierno
B358: MOVILIDAD SOCIAL | F358: Competitividad E Infraestructura Estratégica
C361: =+UPPER(B361) -> 
E363: =IF($B$11=$B$307,$B$307,IF($B$11=B355,B355,IF($B$11=$D$365,Agr,IF($B$11=$D$369,Amb,IF($B$11=$D$372,$E$372,IF($B$11=$D$373,$E$373:$E$375,IF($B$11=$D$379,Cul,IF($B$11=$D$382,$E$382,IF($B$11=$D$383,$E$383,IF($B$11=$D$384,$E$384,IF($B$11=$D$385,IS,IF($B$11=D391,Info,IF($B$11=D394,E394,IF($B$11=D395,E395,IF($B$11=D396,ME,IF($B$11=D399,Pre,IF($B$11=D403,E403,IF($B$11=D404,E404,IF($B$11=D405,E405,IF($B$11=D406,E406,IF($B$11=D407,Tbj,IF($B$11=D410,Trp,IF($B$11=D376,TIC,E413))))))))))))))))))))))) -> MINISTERIO DE VIVIENDA
A364: Eje | B364: Sector | D364: Sector | E364: Entidad
A365: BUEN GOBIERNO | B365: Ambiente Y Desarrollo Sostenible | D365: Agropecuario | E365: Consolidado
B366: Consolidado | E366: INCODER
B367: Cultura | E367: MINISTERIO DE AGRICULTURA
B368: Información Estadística | E368: Unidad Administrativa Especial de Gestión de Restitución de Tierras Despojadas (URT)
B369: Interior | D369: Ambiente Y Desarrollo Sostenible | E369: Consolidado
E370: CODECHOCO
E371: MINISTERIO DE AMBIENTE
A372: COMPETITIVIDAD E INFRAESTRUCTURA ESTRATÉGICA | B372: Consolidado | D372: Ciencia y Tecnología | E372: COLCIENCIAS
B373: Ambiente Y Desarrollo Sostenible | D373: Comercio, Industria Y Turismo | E373: Consolidado
B374: Ciencia y Tecnología | E374: ARTESANIAS DE COLOMBIA
B375: Comunicaciones | E375: MINISTERIO DE COMERCIO, INDUSTRIA Y TURISMO
B376: Inclusión Social | D376: Comunicaciones | E376: Consolidado
B377: Interior | E377: ANTV
B378: Minas Y Energía | E378: MINISTERIO DE LAS TIC
B379: Transporte | D379: Cultura | E379: Consolidado
B380: Comercio, Industria Y Turismo | E380: ICANH
E381: MINISTERIO DE CULTURA
A382: CRECIMIENTO VERDE | B382: Consolidado | D382: Deporte Y Recreación | E382: COLDEPORTES
B383: Ambiente Y Desarrollo Sostenible | D383: Educación | E383: MINISTERIO DE EDUCACIÓN
B384: Cultura | D384: Hacienda | E384: MINISTERIO DE HACIENDA
B385: Información Estadística | D385: Inclusión Social | E385: APC
B386: Interior | E386: Consolidado
E387: DANE
A388: Inversiones adicionales | B388: Consolidado | E388: ICBF
E389: MINISTERIO DEL INTERIOR
B390: Agropecuario | E390: MINISTERIO DE HACIENDA
B391: Ambiente Y Desarrollo Sostenible | D391: Información Estadística | E391: Consolidado
B392: Comercio, Industria Y Turismo | E392: DANE
B393: Comunicaciones | E393: IGAC
B394: Cultura | D394: Interior | E394: MINISTERIO DEL INTERIOR
B395: Educación | D395: Justicia Y Del Derecho | E395: MINISTERIO DE JUSTICIA
B396: Inclusión Social | D396: Minas Y Energía | E396: Consolidado
B397: Interior | E397: ANM
B398: Justicia Y Del Derecho | E398: MINISTERIO DE MINAS Y ENERGÍA
B399: Minas Y Energía | D399: Presidencia | E399: Consolidado
B400: Registraduria | E400: ACR
B401: Trabajo | E401: APC
B402: Transporte | E402: PRESIDENCIA
D403: Rama Judicial | E403: Consejo Superior de la Judicatura
A404: MOVILIDAD SOCIAL | B404: Consolidado | D404: Registraduria | E404: Registraduría General de la Nación
B405: Agropecuario | D405: Relaciones exteriores | E405: MINISTERIO DE RELACIONES EXTERIORES
B406: Comunicaciones | D406: Saludy Protección Social | E406: MINISTERIO DE SALUD
B407: Cultura | D407: Trabajo | E407: Consolidado
B408: Deporte Y Recreación | E408: MINISTERIO DE TRABAJO
B409: Educación | E409: SENA
B410: Inclusión Social | D410: Transporte | E410: Consolidado
B411: Relaciones exteriores | E411: INVIAS
B412: Saludy Protección Social | E412: MINISTERIO DE TRANSPORTE
B413: Trabajo | D413: Vivienda, ciudad y territorio | E413: MINISTERIO DE VIVIENDA
B414: Comercio, Industria Y Turismo | D414: Planeación | E414: Departamento Nacional de Planeación
B415: Planeación | D415: Defensa | E415: MINISTERIO DE DEFENSA
A416: SEGURIDAD, JUSTICIA Y DEMOCRACIA PARA LA CONSTRUCCIÓN DE PAZ | B416: Ambiente Y Desarrollo Sostenible
B417: Ciencia y Tecnología
B418: Comercio, Industria Y Turismo
B419: Comunicaciones
B420: Consolidado
B421: Inclusión Social
B422: Interior
B423: Minas Y Energía
B424: Transporte
A426: TRANSFORMACIÓN DEL CAMPO | B426: Consolidado
B427: Agropecuario
B428: Cultura
B429: Interior
B430: Presidencia
B431: Trabajo
B432: Vivienda, ciudad y territorio
A436: EJE - ESTRATEGIA | B436: Sector
A437: BUEN GOBIERNO | B437: INFORMACIÓN ESTADÍSTICA
A439: COMPETITIVIDAD E INFRAESTRUCTURA ESTRATÉGICAS | B439: COMUNICACIONES
A441: CONSOLIDADO | B441: CONSOLIDADO
A442: MOVILIDAD SOCIAL | B442: COMERCIO, INDUSTRIA Y TURISMO
B443: CULTURA
B444: INCLUSIÓN SOCIAL Y RECONCILIACIÓN
B445: INTERIOR
D460: ANEXO 1
A461: Sector | B461: Entidad | D461: Entidad
D462: MINCOMERCIO
A463: Comercio, Industria Y Turismo | B463: MINCOMERCIO | D463: ANTV
D464: MINCULTURA
A465: Comunicaciones | B465: ANTV | D465: ICBF
D466: DANE
... 125 more rows

Sheet Indicadores Rrom (hidden)
F1: 1 | G1: =+F1+1 -> 2 | H1: =+G1+1 -> 3 | I1: 4 | J1: 5 | K1: 6 | L1: 7 | M1: 8 | N1: 9 | O1: 10 | P1: 11 | Q1: 12 | R1: 13 | S1: 14 | T1: 15 | U1: 16 | V1: 17 | W1: 18 | X1: 19 | Y1: 20 | Z1: 21 | AA1: 22 | AB1: 23 | AC1: 24 | AD1: 25 | AE1: 26 | AF1: 27 | AG1: 28 | AH1: 29
A2: Pilar | B2: Objetivo | C2: Sector | E2: Entidad | F2: Indicador | G2: Tipo Indicador | H2: Nivel Indicador | I2: Indicador Básico | J2: Departamentalizado | K2: Es Privado | L2: Vigente | M2: Unidad Medida | N2: Periodicidad | O2: Acumulación | P2: Línea Base | Q2: Meta 2015 | R2: Meta 2016 | S2: Meta 2017 | T2: Meta 2018 | U2: Meta Cuatrienio | V2: Avance Anual | W2: % Avance Anual | X2: Avance Cuatrienio | Y2: Porcentaje Avance Cuatrienio | Z2: Fecha Corte | AA2: Fecha Modificación | AB2: Avance Cualitativo | AC2: Fecha Corte Avance Cualitativo | AD2: Fecha Actualización Avance Cualitativo | AE2: Gerente de Meta | AF2: Correo Electrónico | AG2: Avance 2015 validado DSEPP | AH2: Avance Cualitativo 31/12/2015 | AI2: Avance Cualitativo 2016
A3: Todos por un Nuevo País | B3: Competitividad E Infraestructura Estratégica | C3: Comunicaciones | D3: RROM | E3: MINISTERIO DE LAS TIC | F3: Documento de Diagnóstico para identificar las necesidades de subsidios y terminales para el Pueblo Rrom elaborado | G3: Producto | H3: Sectorial | I3: NO | J3: NO | K3: NO | L3: SI | M3: Documento | N3: Semestral | O3: Acumulado | P3: 0 | Q3: 0 | R3: 1 | S3: 0 | T3: 0 | U3: 1 | V3: 0 | X3: 0 | Y3: 0 | Z3: 2015-06-30T05:00:00 | AA3: 2016-05-03T08:09:32.010 | AB3: Teniendo en cuenta que la construcción de este Diagnóstico depende en gran medida de la participación de las entidades que aportan información en esta materia en la vigencia 2015 el MinTIC solicito al Ministerio del Interior el Censo correspondiente a la Comunidad Rrom. Dicho Ministerio mediante radicado 682686 informo que el autocenso es un ejercicio autonomo que hacen los representantes Rom de cada Kumpania mediante lsitados censales y el alcance de los mismos es interno y que dicho Ministerio esta adelantando el proceso contractual para que producto de ello los representantes de las 9 Kumpany y 2 organizaciones Rrom, realicen la aplicación del formulario respectivo. Estos resulatdos seran la base para la construcción en el 2016 del diagnostico respectivo. En todo caso es de anotar si bien se puede contar con el diagnostico en el segundo semestre de 2016, la entrega de subsidios depende de la reglamentación que debe darse en el marco del Plan Nacional de Desarrollo 2014- 2018 “ | AC3: 2016-04-30T05:00:00 | AD3: 2016-05-03T08:09:32 | AE3: Adriana Correa Velásquez | AF3: acorrea@mintic.gov.co | AG3: 0 | AH3: Teniendo en cuenta que la construcción de este Diagnóstico depende en gran medida de la participación de las entidades que aportan información en esta materia en la vigencia 2015 el MinTIC solicito al Ministerio del Interior el Censo correspondiente a la Comunidad Rrom. Dicho Ministerio mediante radicado 682686 informo que el autocenso es un ejercicio autonomo que hacen los representantes Rom de cada Kumpania mediante lsitados censales y el alcance de los mismos es interno y que dicho Ministerio esta adelantando el proceso contractual para que producto de ello los representantes de las 9 Kumpany y 2 organizaciones Rrom, realicen la aplicación del formulario respectivo. Estos resulatdos seran la base para la construcción en el 2016 del diagnostico respectivo. En todo caso es de anotar si bien se puede contar con el diagnostico en el segundo semestre de 2016, la entrega de subsidios depende de la reglamentación que debe darse en el marco del Plan Nacional de Desarrollo 2014- 2018 “ | AI3: El pasado 23 de agosto se instaló en la ciudad de Bogotá la “Mesa de Concertación con la Comisión Nacional de Dialogo del Pueblo Rrom”, en la reunión además de las entidades presentar sus avances a compromisos, los delegados del Pueblo Rrom se comprometieron a realizar la validación respectiva del Censo que ya se realizó, para lo cual el Ministerio del Interior informo que hará llegar oportunamente a las entidades de Gobierno los listados censales respectivos.
A4: Todos por un Nuevo País | B4: Movilidad Social | C4: Saludy Protección Social | D4: RROM | E4: MINISTERIO DE SALUD | F4: Avance del Componente Rrom en la Construcción del Capítulo Étnico del Plan Decenal de Salud Pública 2012-2021 (Rrom) | G4: Producto | H4: Sectorial | I4: NO | J4: NO | K4: NO | L4: SI | M4: Porcentaje | N4: Semestral | O4: Capacidad | Q4: 40 | R4: 80 | S4: 100 | U4: 100 | V4: 30 | W4: 100 | X4: 30 | Y4: 30 | Z4: 2015-12-31T05:00:00 | AA4: 2016-05-10T10:20:48.727 | AB4: Avance contractual de estudios previos para el convenio que permita avanzar en las fases para la elaboracion del capitulo étnico - Análisis cualitativo Kumpania Sampués | AC4: 2016-04-30T05:00:00 | AD4: 2016-05-10T15:26:44.067 | AE4: Claudia Milena Cuellar Segura | AF4: ccuellar@minsalud.gov.co | AG4: 30 | AH4: Avance contractual de estudios previos para el convenio que permita avanzar en las fases para la elaboracion del capitulo étnico - Análisis cualitativo Kumpania Sampués | AI4: Se realizan los ajustes derivados de la revisión de contractual para el convenio con OIM, se apoya a la oficina de promoción con un documento técnico y una presentacion de los avances del capitulo étnico y la propuesta para 2017.
A5: Todos por un Nuevo País | B5: Seguridad, Justicia Y Democracia Para La Construcción De Paz | C5: Inclusión Social | D5: RROM | E5: UNIDAD DE VICTIMAS - UARIV | F5: Plan integral de reparación colectiva para el pueblo Rrom formulado e implementado | G5: Producto | H5: Sectorial | I5: SI | J5: NO | K5: NO | L5: SI | M5: Porcentaje | N5: Anual | O5: Capacidad | P5: 0 | Q5: 10 | R5: 30 | S5: 50 | T5: 100 | U5: 100 | V5: 10 | W5: 100 | X5: 10 | Y5: 10 | Z5: 2015-12-31T05:00:00 | AA5: 2016-03-09T17:22:21.227 | AB5: En el año 2015 se formuló y protocolizó el Plan de Reparación Colectiva Rrom con el concursos de todas las entidades del SNARIV y de la Comisión Nacional de Dialogo para su implementación en tres años, para en diciembre la Unidad, realizó la identificación de las medidas por competencias de las entidades nacionales y territoriales y frente a los nuevos mandatarios se construyó la estrategia de incidencia para la implementación de las medidas | AC5: 2016-03-31T05:00:00 | AD5: 2016-05-10T15:20:15.420 | AE5: Carolina Albornoz | AF5: carolina.albornoz@unidadvictimas.gov.co | AG5: 10 | AH5: En el año 2015 se formuló y protocolizó el Plan de Reparación Colectiva Rrom con el concursos de todas las entidades del SNARIV y de la Comisión Nacional de Dialogo para su implementación en tres años, para en diciembre la Unidad, realizó la identificación de las medidas por competencias de las entidades nacionales y territoriales y frente a los nuevos mandatarios se construyó la estrategia de incidencia para la implementación de las medidas | AI5: Durante este periodo no se avanzo en la implementación del PIRCPRK, toda vez que las acciones se deben adelantar de forma concertada con los representantes del Pueblo Rrom o la Comisión Nacional de Dialogo y las instituciones de manera integral y en este periodo no se adelantaron este tipo de acuerdos.
A6: Todos por un Nuevo País | B6: Seguridad, Justicia Y Democracia Para La Construcción De Paz | C6: Inclusión Social | D6: RROM | E6: UNIDAD DE VICTIMAS - UARIV | F6: Medida de reparación colectiva frente al daño a la itinerancia del Pueblo Rrom diseñada y en ejecución. | G6: Gestión | H6: Sectorial | I6: SI | J6: NO | K6: NO | L6: SI | M6: Porcentaje | N6: Anual | O6: Capacidad | P6: 0 | Q6: 10 | R6: 30 | S6: 40 | T6: 100 | U6: 100 | V6: 10 | W6: 100 | X6: 10 | Y6: 10 | Z6: 2015-12-31T05:00:00 | AA6: 2016-03-09T17:13:38.380 | AB6: Durante el año 2015 se formuló la medida frente al daño a la itinerancia del Pueblo Rrom como medida de Satisfacción y No repetición en la cual con el apoyo de Min Interior, Min Defensa y Unidad se promoverá el conocimiento y sensibilizaciòn a los funcionarios sobre la cultura del Pueblo Rrom, visibilizar en qué consiste sus actividades de comercio principales, y crear espacios de formación con la fuerza publica en territorio para que que proteja y permita la libre circulación con el concurso de todos los entes territoriales, especialmente se definió con el Ministerio del interior como cabeza de la política para la protección de los grupos étnicos en el país, construir una sola estrategia para incidir en el fortalecimiento de los municipios para el 2016 donde están asentadas las kumpany y con los nuevos mandatarios locales. | AC6: 2016-02-29T05:00:00 | AD6: 2016-05-10T15:24:46.147 | AE6: Carolina Albornoz | AF6: carolina.albornoz@unidadvictimas.gov.co | AG6: 10 | AH6: Durante el año 2015 se formuló la medida frente al daño a la itinerancia del Pueblo Rrom como medida de Satisfacción y No repetición en la cual con el apoyo de Min Interior, Min Defensa y Unidad se promoverá el conocimiento y sensibilizaciòn a los funcionarios sobre la cultura del Pueblo Rrom, visibilizar en qué consiste sus actividades de comercio principales, y crear espacios de formación con la fuerza publica en territorio para que que proteja y permita la libre circulación con el concurso de todos los entes territoriales, especialmente se definió con el Ministerio del interior como cabeza de la política para la protección de los grupos étnicos en el país, construir una sola estrategia para incidir en el fortalecimiento de los municipios para el 2016 donde están asentadas las kumpany y con los nuevos mandatarios locales. | AI6: Durante este periodo por parte de la Unidad para las Victimas no se ha adelanto ninguna acción frente a esta meta.
A7: Todos por un Nuevo País | B7: Buen Gobierno | C7: Planeación | D7: RROM | E7: Departamento Nacional de Planeación | F7: Recursos destinados para el fortalecimiento de las Kumpañy | G7: Producto | H7: Transversal | I7: SI | J7: NO | K7: NO | L7: SI | M7: Recursos | N7: Anual | O7: Acumulado | Q7: 200000000 | R7: 200000000 | S7: 200000000 | T7: 200000000 | U7: 800000000 | V7: 200000000 | W7: 100 | X7: 200000000 | Y7: 200000000 | Z7: 2015-12-31T05:00:00 | AA7: 2016-04-07T15:31:03.247 | AB7: Se adelanta y se cumple con el cronograma de trabajo con las las 9 Kumpañy y 2 organizaciones en todo el territorio nacional, realizando la asistencia técnica para la lectura de los planes de gobierno del nivel departamental y municipal y a partir de ellos, la elaboración de las propuestas para la inclusión en los planes de desarrollo del nivel territorial. | AC7: 2016-04-30T05:00:00 | AD7: 2016-05-12T10:33:58.510 | AE7: Jairo Antonio Munoz Moyano | AF7: jamoyano@dnp.gov.co | AG7: 200000000 | AH7: Se adelanta y se cumple con el cronograma de trabajo con las las 9 Kumpañy y 2 organizaciones en todo el territorio nacional, realizando la asistencia técnica para la lectura de los planes de gobierno del nivel departamental y municipal y a partir de ellos, la elaboración de las propuestas para la inclusión en los planes de desarrollo del nivel territorial. | AI7: Se realizaron dos (2) Mesas de Trabajo con el Ministerio de Comercio donde se elaboró la matriz de sistematización de contenidos tanto del nivel diagnóstico como del nivel propositivo, con base en las propuestas presentadas ante las 23 entidades territoriales en las cuales se encuentran las Kumpañy y Organizaciónes, así: Envigado, Pasto Unión rromaní, San Pelayo, Prorrom, Sabanalarga, Sahagún, Sampués y Tolima. La Matriz Sistematizada fue remitida a Mincomercio.
A8: Todos por un Nuevo País | B8: Buen Gobierno | C8: Planeación | D8: RROM | E8: Departamento Nacional de Planeación | F8: Proyecto de Ley Gitana formulado, consultado y presentado ante el Congreso de la República. | G8: Producto | H8: Transversal | I8: SI | J8: NO | K8: NO | L8: SI | M8: Porcentaje | N8: Anual | O8: Capacidad | Q8: 25 | R8: 50 | S8: 75 | T8: 100 | U8: 100 | V8: 25 | W8: 100 | X8: 25 | Y8: 25 | Z8: 2015-12-31T05:00:00 | AA8: 2016-04-07T17:44:35.853 | AB8: Se remite comunicación electrónica al Ministerio del Interior para formular cronograma de trabajo conjunto para la formulación de la ficha del indicador intersectorial.El avance del 25% corresponde a la articulación entre el Ministerio del Interior y el Departamento Nacional de Planeación. | AC8: 2016-04-30T05:00:00 | AD8: 2016-05-12T10:37:45.260 | AE8: Jairo Antonio Munoz Moyano | AF8: jamoyano@dnp.gov.co | AG8: 25 | AH8: Se remite comunicación electrónica al Ministerio del Interior para formular cronograma de trabajo conjunto para la formulación de la ficha del indicador intersectorial.El avance del 25% corresponde a la articulación entre el Ministerio del Interior y el Departamento Nacional de Planeación. | AI8: El Departamento Nacional de Planeación asistió a la convocatoria del Ministerio del Interior para la Comisión Nacional de Diálogo y se esta a la espera de la concertación de cronograma de trabajo.
A9: Todos por un Nuevo País | B9: Buen Gobierno | C9: Planeación | D9: RROM | E9: Departamento Nacional de Planeación | F9: Entidades territoriales con directriz expedida para incluir en sus planes de desarrollo la garantía de derechos del Pueblo Rrom | G9: Producto | H9: Transversal | I9: SI | J9: SI | K9: NO | L9: SI | M9: Número de entidades | N9: Anual | O9: Acumulado | Q9: 0 | R9: 10 | S9: 0 | T9: 0 | U9: 10 | V9: 10 | X9: 10 | Y9: 10 | Z9: 2015-12-31T05:00:00 | AA9: 2016-04-07T18:00:30.597 | AB9: Se desarrolla y se cumple el cronograma con la elaboración de las propuestas para los planes departamentales y municipales de desarrollo por parte de las 9 kumpañy y 2 organizaciones. Se elabora comunicación a las 10 entidades territoriales para remitirlas una vez se cuente con el documento de las propuestas por Kumpania como anexo a cada directriz. Las entidades territoriales donde existen Kumpañy son: Cúcuta, Girón, Ataco, Envigado, Sahagún, San Pelayo, Sampúes, Sabanalarga, Pasto y las 2 Organizaciones se encuentran Registradas en Bogotá | AC9: 2016-04-30T05:00:00 | AD9: 2016-05-12T10:36:42.893 | AE9: Jairo Antonio Munoz Moyano | AF9: jamoyano@dnp.gov.co | AG9: 10 | AH9: Se desarrolla y se cumple el cronograma con la elaboración de las propuestas para los planes departamentales y municipales de desarrollo por parte de las 9 kumpañy y 2 organizaciones. Se elabora comunicación a las 10 entidades territoriales para remitirlas una vez se cuente con el documento de las propuestas por Kumpania como anexo a cada directriz. Las entidades territoriales donde existen Kumpañy son: Cúcuta, Girón, Ataco, Envigado, Sahagún, San Pelayo, Sampúes, Sabanalarga, Pasto y las 2 Organizaciones se encuentran Registradas en Bogotá | AI9: Meta del cuatrienio reportada y cumplida.
A10: Todos por un Nuevo País | B10: Buen Gobierno | C10: Planeación | D10: RROM | E10: Departamento Nacional de Planeación | F10: Delegados del Pueblo Rrom en los Consejos Territoriales de Planeación incluidos. | G10: Gestión | H10: Transversal | I10: SI | J10: SI | K10: NO | L10: SI | M10: Número de delegados del pueblo rrom en los Consejos Territoriales de Planeación | N10: Anual | O10: Capacidad | Q10: 0 | R10: 0 | S10: 0 | T10: 11 | U10: 11 | V10: 0 | X10: 0 | Y10: 0 | Z10: 2015-12-31T05:00:00 | AA10: 2016-04-07T17:53:56.003 | AB10: Revisión por parte de la Subdirección de Finanzas e Inversiones Públicas de la propuesta de 10 comunicaciones dirigidas a las 10 entidades territoriales en las que actualmente se encuentran las 9 Kumpañy y 2 organizaciones del Pueblo Rrom, en el marco de la estrategia de nuevos mandatarios, dirigida a los nuevos alcaldes instando a vincular la participación de representantes del Pueblo Rrom en los Consejos Territoriales de Planeación. | AC10: 2016-04-30T05:00:00 | AD10: 2016-05-12T10:36:18.657 | AE10: Jairo Antonio Munoz Moyano | AF10: jamoyano@dnp.gov.co | AG10: 0 | AH10: Revisión por parte de la Subdirección de Finanzas e Inversiones Públicas de la propuesta de 10 comunicaciones dirigidas a las 10 entidades territoriales en las que actualmente se encuentran las 9 Kumpañy y 2 organizaciones del Pueblo Rrom, en el marco de la estrategia de nuevos mandatarios, dirigida a los nuevos alcaldes instando a vincular la participación de representantes del Pueblo Rrom en los Consejos Territoriales de Planeación. | AI10: De acuerdo con la Ficha del Indicador, la meta esta prevista para la vigencia 2018.
A11: Todos por un Nuevo País | B11: Buen Gobierno | C11: Planeación | D11: RROM | E11: Departamento Nacional de Planeación | F11: Solicitudes de apoyo técnico por parte de la Comisión nacional de Diálogo del Pueblo Rrom, atendidas por el Departamento Nacional de Planeación para la construcción de politicas publicas. | G11: Gestión | H11: Transversal | I11: SI | J11: NO | K11: NO | L11: SI | M11: Porcentaje | N11: Anual | O11: Stock | Q11: 100 | R11: 100 | S11: 100 | T11: 100 | U11: 100 | V11: 100 | W11: 100 | X11: 100 | Y11: 100 | Z11: 2015-12-31T05:00:00 | AA11: 2016-04-07T15:34:39.020 | AB11: Se brinda asistencia técnica por parte del DNP a las 9 Kumpañy y dos Organizaciones, para la elaboración del documento que contiene las propuestas así como elementos de diagnóstico y caracterización por Kumpania para brindar elementos claves para la toma de decisión en materia de enfoque diferencial para el Pueblo Rrom a nivel territorial. | AC11: 2016-04-30T05:00:00 | AD11: 2016-05-12T10:36:04.810 | AE11: Jairo Antonio Munoz Moyano | AF11: jamoyano@dnp.gov.co | AG11: 100 | AH11: Se brinda asistencia técnica por parte del DNP a las 9 Kumpañy y dos Organizaciones, para la elaboración del documento que contiene las propuestas así como elementos de diagnóstico y caracterización por Kumpania para brindar elementos claves para la toma de decisión en materia de enfoque diferencial para el Pueblo Rrom a nivel territorial. | AI11: Se recibió solicitud del señor Elkin Mendoza - representante del pueblo Rrom de Sahagún (Córdoba) sobre la asignación de recursos para esa étnia en dicho departamento y se envió respuesta vía correo electrónico.
A12: Todos por un Nuevo País | B12: Buen Gobierno | C12: Planeación | D12: RROM | E12: Departamento Nacional de Planeación | F12: Estrategia de asistencia técnica al Pueblo Rrom para la formulación de proyectos susceptibles de ser financiados con recursos del SGR dirigidas a las Kumpañy y Organizaciones registradas ante el Ministerio del Interior, diseñada e implementada. | G12: Producto | H12: Transversal | I12: SI | J12: NO | K12: NO | L12: SI | M12: Porcentaje de avance sobre el diseño, implementación y evaluación de la estrategia | N12: Anual | O12: Capacidad | Q12: 25 | R12: 50 | S12: 75 | T12: 100 | U12: 100 | V12: 25 | W12: 100 | X12: 25 | Y12: 25 | Z12: 2015-12-31T05:00:00 | AA12: 2016-04-07T17:44:03.150 | AB12: Meta por demanda. Para el periodo de corte no se recibieron solicitudes de asistencia técnica para proyectos nuevos, sin embargo, se brinda asistencia técnica para continuar con los ajustes al proyecto de vivienda elaborado por la Kumpania de Sabanalarga, a través del Convenio DNP 393-13, suscrito con FONADE y la OIM. | AC12: 2016-04-30T05:00:00 | AD12: 2016-05-12T10:35:49.470 | AE12: Jairo Antonio Munoz Moyano | AF12: jamoyano@dnp.gov.co | AG12: 25 | AH12: Meta por demanda. Para el periodo de corte no se recibieron solicitudes de asistencia técnica para proyectos nuevos, sin embargo, se brinda asistencia técnica para continuar con los ajustes al proyecto de vivienda elaborado por la Kumpania de Sabanalarga, a través del Convenio DNP 393-13, suscrito con FONADE y la OIM. | AI12: Dentro de la estrategia para la transferencia de conocimientos a las comunidades indígenas, Rrom, NARP en conceptos básicos de enfoque diferencial que sirvan como insumos para la formulación de proyectos de inversión de grupos étnicos susceptibles de financiación del SGR y otras fuentes, Para ello, el proceso con la Universidad Nacional de Colombia se encuentra en la oficina jurídica del DNP para ser llevadas a Comité de Contratación; el cual incluye un (1) dDiplomado Formador de Formadores en Enfoque Diferencial y Formulación de Proyectos. Duración 100 horas y tres (3) Diplomados con Grupos Étnicos en Enfoque Diferencial y Formulación de Proyectos. Duración 100 horas diplomados a impartir a las comunidades étnicas En la estrategia de Fortalecimiento de Capacidades en Estructuración de Proyectos a Grupos Étnicos, se encuentra en definición la línea de negocio a utilizar, para materializar el convenio con FONADE. La kumpania de Sahagún asistió al OCAD del municipio el 31/8/16.
A13: Todos por un Nuevo País | B13: Buen Gobierno | C13: Información Estadística | D13: RROM | E13: DANE | F13: Formulario censal desarrollado con la categoría Rrom incorporada | G13: Gestión | H13: Sectorial | I13: NO | J13: NO | K13: NO | L13: SI | M13: número | N13: Anual | O13: Acumulado | P13: 0 | Q13: 0 | R13: 1 | S13: 0 | T13: 0 | U13: 1 | V13: 1 | X13: 1 | Y13: 1 | Z13: 2015-12-31T05:00:00 | AA13: 2016-04-08T17:43:19.300 | AB13: Dentro de la estrategia del XVIII Censo Nacional de Población y VII de Vivienda para el componente Formulario censal desarrollado con la categoría ROM incorporada, para el mes de diciembre se realiza el diseño del proceso de consulta y concertación con los grupos étnicos incluyendo el pueblo Rom y gitano. Para la vigencia actual la ficha técnica no posee meta, sin embargo, se logró la inclusión de estos grupos etnicos dentro del formulario censal con lo cual se cumple la meta de una inclusión. | AC13: 2016-04-30T05:00:00 | AD13: 2016-05-04T16:58:57.940 | AE13: Eduardo Efraín Freire Delgado | AF13: eefreired@dane.gov.co | AG13: 1 | AH13: Dentro de la estrategia del XVIII Censo Nacional de Población y VII de Vivienda para el componente Formulario censal desarrollado con la categoría ROM incorporada, para el mes de diciembre se realiza el diseño del proceso de consulta y concertación con los grupos étnicos incluyendo el pueblo Rom y gitano. Para la vigencia actual la ficha técnica no posee meta, sin embargo, se logró la inclusión de estos grupos etnicos dentro del formulario censal con lo cual se cumple la meta de una inclusión. | AI13: Dentro de la estrategia del XVIII Censo Nacional de Población y VII de Vivienda para el componente Formulario censal, el Ministerio del Interior convoco a reunión a la Comisión Nacional de Dialogo con el pueblo Rrom, en la cual el DANE presento las respuestas a las solicitudes del pueblo Rrom sobre el contenido del cuestionario censal. Está pendiente la realización de una reunión con el Director del DANE para revisar la inclusión de “KUMPANIA” en la pregunta referente a la territorialidad étnica.
B14: Buen Gobierno | C14: Planeación | D14: RROM | E14: Departamento Nacional de Planeación | F14: Compromisos en el marco de la Consulta Previa socializados con el Pueblo Rrom. | M14: Número de eventos de solicialización realizados en entidades territoriales | N14: Anual | O14: Acumulado | P14: 0 | Q14: 10 | R14: 0 | S14: 0 | T14: 0 | U14: 10 | Y14: 11 | AB14: Se adelanta y se cumple con el cronograma de socialización de los 58 acuerdos de consulta previa al PND 2014 - 2018 con las 9 Kumpañy y 2 organizaciones en todo el territorio nacional. Las entidades territoriales donde existen Kumpañy son: Cúcuta, Girón, Ataco, Envigado, Sahagún, San Pelayo, Sampúes, Sabanalarga, Pasto y las 2 Organizaciones se encuentran Registradas en Bogotá
B15: Buen Gobierno | C15: Relaciones exteriores | D15: RROM | E15: MINISTERIO DE RELACIONES EXTERIORES | F15: Proyecto de fortalecimiento de desarrollo social y económico dirigido al pueblo Rrom con presencia en zona de frontera. | M15: Proyectos | N15: Anual | O15: Acumulado | P15: 0 | Q15: 0 | R15: 0 | S15: 1 | T15: 0 | U15: 1 | Y15: - | AB15: Esta meta se cumplirá en la vigencia 2017, de acuerdo con la ficha metodológica del indicador.
B16: Movilidad Social | C16: Educación | D16: RROM | E16: Ministerio de Educación | F16: Programa de formación para adultos del Pueblo Rrom en el marco de usos y costumbres diseñado e implementado | M16: Porcentaje | N16: Anual | O16: Capacidad | P16: 0 | Q16: 5 | R16: 30 | S16: 50 | T16: 100 | U16: 100 | Y16: 5 | AB16: Realización del análisis de la línea de base del pueblo rrom que permita la formulación del Programa de formación para adultos del Pueblo Rrom en el marco de los usos y costumbres.Las ETC donde se concentra la mayor parte de la población Rrom es Atlántico (Sabanalarga), Sucre (Sampues), Sahagún, Córdoba (San Pelayo), Cucutá, Girón, Envigado, Fusagasugá y Bogotá, Tolima e Ipiales de acuerdo a las estadísticas del DANE. Según SIMAT para el 2015 el total de población Rrom es de 169 NNAJ y se concentran principalmente en las ETC de Apartadó, Bogotá, Cauca.
B17: Competitividad E Infraestructura Estratégica | C17: Comunicaciones | D17: RROM | E17: AUTORIDAD NACIONAL DE TELEVISION | F17: Política Pública de TV Rrom formulada y concertada | M17: Porcentaje | N17: Anual | O17: Acumulado | P17: 0 | Q17: 100 | R17: 0 | S17: 0 | T17: 0 | U17: 100 | Y17: 100 | AB17: En el mes de Mayo se concertó la política pública de televisión para el Pueblo Rrom, con acuerdos en los siguientes ejes: Formación, Integridad étnica y cultural (visibilización y fortalecimiento de la Cultura Rrom), Inclusión y no discriminación (Modificación o derogatoria del Acuerdo 001 de 2005), Acceso (a través de la regulación que se expida). Por lo anterior se cumplió con el 100% de la meta del periodo en cuanto a este indicador.
B18: Seguridad, Justicia Y Democracia Para La Construcción De Paz | C18: Justicia | D18: RROM | E18: Ministerio de Justicia | F18: Encuentros realizados para el fortalecimiento de la justicia propia del pueblo Rrom | M18: Encuentros | N18: Anual | O18: Acumulado | Y18: - | AB18: La meta es compartida con el Ministerio del Interior para el caso del Ministerio de Justicia y del Derecho las actividades propuestas se desarrollarán en el año 2016. (1 protocolo) Se llevó a cabo una reunión con delegados de la ORGANIZACIÓN DEL PUEBLO GITANO DE COLOMBIA, UNION ROMANI DE COLOMBIA, y comunicación telefónica con la ORGANIZACIÓN PRORrOM, para conocer la estrategia organizativa para desarrollar las actividades propuestas en el indicador.
B19: Movilidad Social | C19: Educación | D19: RROM | E19: Ministerio de Educación | F19: Cupos en educación superior para la población del Pueblo Rrom | M19: Cupos | N19: Anual | O19: Acumulado | P19: 0 | Q19: 2 | R19: 4 | S19: 6 | T19: 8 | U19: 20 | Y19: - | AB19: Por parte del Min Interior se plantea la posibilidad de que los Censos estén consolidados finalizando el año 2015 , o iniciando 2016, por lo que no se pudo abrir convocatoria. Está pendiente la reunión para definir el calendario.
A20: Todos por un Nuevo País | B20: Buen Gobierno | C20: Relaciones exteriores | D20: RROM | E20: MINISTERIO DE RELACIONES EXTERIORES | F20: Porcentaje de sesiones de comisiones regionales en las que participaron representantes de la comunidad Rrom | G20: Producto | H20: Sectorial | I20: NO | J20: NO | K20: NO | L20: SI | M20: Porcentaje | N20: Semestral | O20: Capacidad | Q20: 100 | R20: 100 | S20: 100 | T20: 100 | U20: 100 | V20: 100 | W20: 100 | X20: 100 | Y20: 100 | Z20: 2015-12-31T05:00:00 | AA20: 2016-04-08T15:08:10.940 | AB20: Tal y como se mencionó el mes anterior, se llevó a cabo la sesión de la Comisión Regional para el Desarrollo de la Frontera con Venezuela en las ciudades de Cúcuta y Riohacha. En Cúcuta, participaron las principales autoridades y actores locales de la región con el fin de dar cuenta de los avances en la ejecución del Conpes así como de su impacto en la construcción del Plan Nacional de Desarrollo. La comunidad Rom que habita en el Área Metropolitana de Cúcuta no pudo asistir a esta sesión a pesar de la convocatoria extendida debido a compromisos fuera de la ciudad, sin embargo, remitieron una comunicación en la que además de excusarse por la ausencia, plantean algunos temas que consideran relevantes para tratar en el marco de la institucionalidad del Conpes. Estos temas estarán incluidos en el acta de la Comisión Regional, por cuanto se garantiza la participación de esta comunidad en este espacio regional. Con lo anterior se logra cumplir con la meta presupuesta para la presente vigenc | AC20: 2016-04-30T05:00:00 | AD20: 2016-05-11T10:22:36.617 | AE20: Jorge Humberto Guzmán González | AF20: jorge.guzman@cancilleria.gov.co | AG20: 100 | AH20: Tal y como se mencionó el mes anterior, se llevó a cabo la sesión de la Comisión Regional para el Desarrollo de la Frontera con Venezuela en las ciudades de Cúcuta y Riohacha. En Cúcuta, participaron las principales autoridades y actores locales de la región con el fin de dar cuenta de los avances en la ejecución del Conpes así como de su impacto en la construcción del Plan Nacional de Desarrollo. La comunidad Rom que habita en el Área Metropolitana de Cúcuta no pudo asistir a esta sesión a pesar de la convocatoria extendida debido a compromisos fuera de la ciudad, sin embargo, remitieron una comunicación en la que además de excusarse por la ausencia, plantean algunos temas que consideran relevantes para tratar en el marco de la institucionalidad del Conpes. Estos temas estarán incluidos en el acta de la Comisión Regional, por cuanto se garantiza la participación de esta comunidad en este espacio regional. Con lo anterior se logra cumplir con la meta presupuesta para la presente vigenc | AI20: En agosto se definieron las fechas de las sesiones de la institucionalidad del Conpes 3805. Entre los meses de septiembre y octubre se realizarán las comisiones regionales. Una vez se realice la de Norte de Santander, se extenderá la convocatoria a la comunidad Rom.
F21: Cupos asignados para formación para el trabajo y el emprendimiento para el Pueblo Rrom

Sheet COMNIDADES NARP
B2: INFORME DE SEGUIMIENTO CUMPLIMIENTO DE COMPROMISOS AL PND 2014 - 2018 - COMUNIDADES NARP 2015
A3: DEPARTAMENTO NACIONAL DE PLANEACIÓN
A6: GRUPO ÉTNICO | B6: COMUNIDADES NARP | K6: =+cd&ct -> RECURSOS PGN
A7: FUENTE DE FINANCIACIÓN | B7: RECURSOS PGN | K7: =+K6&B9 -> RECURSOS PGN
A8: REGIÓN DE INCIDENCIA | K8: =+K7&B10 -> RECURSOS PGN
A9: DEPARTAMENTO | K9: =+K8&B11 -> RECURSOS PGN
A10: EJE DEL PLAN NACIONAL DE DESARROLLO
A11: SECTOR DEL GOBIERNO NACIONAL
A12: ENTIDAD DEL GOBIERNO NACIONAL
A13: ANÁLISIS DE LA INFORMACIÓN | B13: =+'analisis-NARP'!A12 -> FALSE
A15: INFORMACIÓN PRESUPUESTAL PUEBLOS COMUNIDADES NARP 2015
G29: =+ IF(cd=con,"", IF(B7=E139,"GRÁFICA 2. PARTICIPACIÓN DE LO INVERTIDO EN EL EJE CON RESPECTO AL RESTO DE LA INVERSIÓN DE PGN",IF(B7=E140,"GRÁFICA 2. PARTICIPACIÓN DE LA ASIGNACIÓN AESGPRI EN LA REGIÓN CON RESPECTO AL RESTO DEL PAÍS POR SGP","GRÁFICA 2. PARTICIPACIÓN DE LA ASIGNACIÓN EN LA REGIÓN CON RESPECTO AL RESTO DEL PAÍS POR SGR"))) -> GRÁFICA 2. PARTICIPACIÓN DE LO INVERTIDO EN EL EJE CON RESPECTO AL RESTO DE LA INVERSIÓN DE PGN
G30: =+IF(cd=con,"", IF(B7=B317,"GRÁFICA 3. PARTICIPACIÓN DE LA ASIGNACIÓN EN EN EL DEPARTAMENTO CON RESPECTO AL RESTO DE LA REGIÓN POR SGR", IF(B7=B316,"GRÁFICA 3. PARTICIPACIÓN DE LA ASIGNACION SGR DEL DEPARTAMENTO EN LA REGION ", IF(A159="","",IF(A159=E142,"GRÁFICA 3. PARTICIPACIÓN DEL SECTOR EN LA INVERSIÓN REALIZADA EN EL EJE","GRÁFICA 3. PARTICIPACIÓN DE LA ASIGNACIÓN EN EN EL DEPARTAMENTO CON RESPECTO AL RESTO DE LA REGIÓN POR SGP"))))) -> 
A35: =+IF(B6="","","RECURSOS TOTALES EJECUTADOS COMUNIDADES NARP:") -> RECURSOS TOTALES EJECUTADOS COMUNIDADES NARP: | B35: =+IF(A35="","",'Tab Pres NARP'!G600 ) -> 7.718460824e+11 | D35: =+IF(A148="","","GRÁFICA 1. INVERSIÓN 2015 COMUNIDADES NARP POR FUENTE DE FINANCIACIÓN") -> GRÁFICA 1. INVERSIÓN 2015 COMUNIDADES NARP POR FUENTE DE FINANCIACIÓN
A36: =+IF(cd=con, ( IF(B7="RECURSOS SGR","RECURSOS TOTALES EJECUTADOS POR SGR", IF(B7="RECURSOS SGP","RECURSOS TOTALES EJECUTADOS POR SGP - AESGPRI", IF(B7="CONSOLIDADO","RECURSOS TOTALES EJECUTADOS POR PGN", IF(B7="","",IF(B6&B7=B309&B314,"RECURSOS PGN","RECURSOS TOTALES EJECUTADOS POR EL TIPO DE RECURSO SEÑALADO:"))))) ), ( IF(B7="RECURSOS SGR","RECURSOS TOTALES EJECUTADOS POR SGR-REGION", IF(B7="RECURSOS SGP","RECURSOS TOTALES EJECUTADOS POR SGP- AESGPRI / REGION", IF(B6&B7=B309&B314,"RECURSOS SGR",IF(B8="","",IF(OR(B7=B316,B7="CONSOLIDADO"),"RECURSOS TOTALES EJECUTADOS POR SGP-AESGPRI",IF(B7=B317,"ASIGNACIÓN SGR A LA REGIÓN",IF(B10="","","INVERSIÓN TOTAL - EJE DEL PND"))))))) ) ) ->  | B36: =+ IF(cd=RSGR,SUMIF('Tab Pres NARP'!B608:B623,'COMNIDADES NARP'!ct,'Tab Pres NARP'!C608:C623), IF(AND(cf="consolidado",cg="consolidado"),'Tab Pres NARP'!G595,IF(cd=con,'Tab Pres NARP'!G595,IF(cd=B565,VLOOKUP(cf,'Tab Pres NARP'!B642:C647,2,0))))) ->  | D36: =+IF(cd=B565,(IF(OR(AND(cd<>"",ct="",B9="",B10="",B11=""),AND(cd<>"",ct<>"",B9="",B10="",B11=""),AND(cd<>"",ct<>"",B9<>"",B10="",B11=""),AND(cd<>"",ct<>"",B9<>"",B10<>"",B11="")),"",G29)), IF(OR(cd=RSGP,cd=RSGR),(IF(OR(cd&ct=RSGP,cd&ct=RSGR),"",G29)), IF(cd=con,"", IF(B7=E139,"GRÁFICA 2. PARTICIPACIÓN DE LO INVERTIDO EN EL EJE CON RESPECTO AL RESTO DE LA INVERSIÓN DE PGN",IF(B7=E140,"GRÁFICA 2. PARTICIPACIÓN DE LA ASIGNACIÓN AESGPRI EN LA REGIÓN CON RESPECTO AL RESTO DEL PAÍS POR SGP","GRÁFICA 2. PARTICIPACIÓN DE LA ASIGNACIÓN EN LA REGIÓN CON RESPECTO AL RESTO DEL PAÍS POR SGR"))))) -> 
A37: =++IF(B7="RECURSOS SGR","RECURSOS TOTALES EJECUTADOS POR SGR-DEPARTAMENTO", IF(B7="RECURSOS SGP","RECURSOS TOTALES EJECUTADOS POR SGP- AESGPRI / DEPARTAMENTO", IF(B7="CONSOLIDADO","RECURSOS TOTALES EJECUTADOS POR SGR", IF(B7=B317,"ASIGNACIÓN SGR AL DEPARTAMENTO", IF(B6&B7=B309&B314,"RECURSOS SGP",IF(B9="","",IF(D40=E139,"",IF(B8=PGN,IF(B9="","",IF(B11="","",IF(B10="","","INVERSIÓN TOTAL - SECTOR"))),"SGP-AESGPGRI AL DEPARTAMENTO")))))))) ->  | B37: =+ IF(cd=con,'Tab Pres NARP'!G599, IF(cd=RSGR,VLOOKUP('COMNIDADES NARP'!ce,'Tab Pres NARP'!A608:C623,3,0), IF(cd=RPGN, IF(AND(cf="consolidado",cg="consolidado"),'Tab Pres NARP'!G595,IF(cd=RPGN,SUMIF('Tab Pres NARP'!A654:A677,'COMNIDADES NARP'!cf&'COMNIDADES NARP'!cg,'Tab Pres NARP'!E654:E677),""))))) -> 0 | D37: =+ IF(OR(cd=RSGP,cd=RSGR),(IF(ce="","",G30)), IF(cd=con,"", IF(B7=B317,"GRÁFICA 3. PARTICIPACIÓN DE LA ASIGNACIÓN EN EN EL DEPARTAMENTO CON RESPECTO AL RESTO DE LA REGIÓN POR SGR", IF(B7=B316,"GRÁFICA 3. PARTICIPACIÓN DE LA ASIGNACION SGR AL DEPARTAMENTO EN LA REGION ", IF(A159="","",IF(A159=E142,"GRÁFICA 3. PARTICIPACIÓN DEL SECTOR EN LA INVERSIÓN REALIZADA EN EL EJE","GRÁFICA 3. PARTICIPACIÓN DE LA ASIGNACIÓN EN EN EL DEPARTAMENTO CON RESPECTO AL RESTO DE LA REGIÓN POR SGP")))))) -> 
A38: =+ IF(cd=con,"", IF(cd=RSGR,"", IF(B7="Recursos SGP","", IF(AND(B6="Pueblo Indígena",B7="Consolidado"),"", IF(AND(B6="consolidado",B7="consolidado"),"", IF(B7=B317,"", IF(B12="","",IF(A37="ASIGNACIÓN SGP AL DEPARTAMENTO","","INVERSION TOTAL - ENTIDAD")))))))) ->  | B38: =+ IF(AND(cf="consolidado",cg="consolidado"),VLOOKUP(ch,'Tab Pres NARP'!D682:E706,2,0), IF(cd=RPGN,SUMIF('Tab Pres NARP'!A683:A706,'COMNIDADES NARP'!cf&'COMNIDADES NARP'!cg&'COMNIDADES NARP'!ch,'Tab Pres NARP'!E683:E706),"")) -> 0 | D38: =+ +IF(OR(AND(ct=""),AND(cd<>"",ct="",B9="",B10="",B11="",B12=""),AND(cd<>"",ct<>"",B9="",B10="",B11="",B12=""),AND(cd<>"",ct<>"",B9<>"",B10="",B11="",B12=""),AND(cd<>"",ct<>"",B9<>"",B10<>"",B11="",B12=""),AND(cd<>"",ct<>"",B9<>"",B10<>"",B11<>"",B12="")),"", +IF(cd=con,"", IF(B7=B316,"", IF(B7=B317,"", IF(A160="","","GRÁFICA 4. PARTICIPACIÓN DE LA ENTIDAD EN LA INVERSIÓN REALIZADA POR EL SECTOR"))))) -> 
D39: =+IF(A1="","",IF(B7=B317,"", IF(A171="","","GRÁFICA 5. COMPARACIÓN INVERTIDO EN EL 2015 CON RESPECTO AL PISO DEL PND."))) -> 
A40: =+IF(cd=RSGR,"RECURSOS TOTALES EJECUTADOS POR SGR","") ->  | B40: =+IF(cd=RSGR,'Tab Pres NARP'!G599,"") ->  | D40: =+IF(B7="Recursos SGR","Recursos Totales Ejecutados por SGR", IF(B7="Recursos SGP","Recursos Totales Ejecutados por SGP - AESGPRI", IF(B7="Consolidado","Recursos totales ejecutados por PGN", IF(B7="","",IF(B6&B7=B309&B314,"Recursos PGN","Recursos totales ejecutados por el tipo de recurso señalado:"))))) -> Recursos totales ejecutados por el tipo de recurso señalado: | E40: =+IF(B7="Consolidado",'Tab Pres NARP'!E5, IF(A36="","",IF(A36="Recursos PGN",'Tab Pres NARP'!F391,VLOOKUP(B6&B7,$D$308:$E$315,2,0)))) ->  | F40: =+IF(B7="Recursos SGR","Recursos Totales Ejecutados por SGR-Region", IF(B7="Recursos SGP","Recursos Totales Ejecutados por SGP- AESGPRI / Region", IF(B6&B7=B309&B314,"Recursos SGR",IF(B8="","",IF(OR(B7=B316,B7="Consolidado"),"Recursos totales ejecutados por SGP-AESGPRI",IF(B7=B317,"Asignación SGR a la región",IF(B10="","","Inversión total - Eje del PND"))))))) ->  | G40: =+IF(B7="Consolidado",'Tab Pres NARP'!E35, IF(A37="Asignación SGR a la región",(VLOOKUP('COMNIDADES NARP'!B8,'Tab Pres NARP'!$B$528:$C$534,2,0)), IF(A37="","",IF(A37="Recursos SGR",'Tab Pres NARP'!F395,IF(B7=B316,VLOOKUP(B8,'Tab Pres NARP'!$B$439:$C$444,2,0),IF(B7=B317,VLOOKUP(B8,'Tab Pres NARP'!$B$528:$C$534,2,0),(IF(B6=B309,VLOOKUP(B7&B10&"Consolidado"&"Consolidado",'Tab Pres NARP'!$E$246:$F$395,2,0),IFERROR(VLOOKUP(B6&B7&B10&B314&B314,'Tab Pres NARP'!$F$70:$G$240,2,0),0))))))))) -> 
A41: =+ IF(cd=con,"", IF(OR(B7="RECURSOS SGP",B7="CONSOLIDADO"),"RECURSOS EJECUTADOS SGP SALUD","")) ->  | B41: =+IF(A41="","",D41) ->  | D41: 699666609301
A42: =+ IF(cd=con,"", IF(OR(B7="RECURSOS SGP",B7="CONSOLIDADO"),"RECURSOS EJECUTADOS SGP EDUCACION","")) ->  | B42: =+IF(A42="","",D42) ->  | D42: 325599062358
A43: =+ IF(cd=con,"", IF(OR(B7="RECURSOS SGP",B7="CONSOLIDADO"),"RECURSOS EJECUTADOS SGP APSB","")) ->  | B43: =+IF(A43="","",D43) ->  | D43: 38299000000
A45: =IF(cd=con,"", IF(OR(B7="CONSOLIDADO",B7="RECURSOS SGP"),"TOTAL RECURSOS SGP","")) ->  | B45: =IF(cd=con,"", IF(OR(B7="Consolidado",B7="Recursos SGP"),B43+B42+B41+B40,"")) -> 
A46: AVANCE EN LOS INDICADORES
A47: =+IF(B6=B311,"","Nota: Los indicadores con los pueblos indígenas están en proceso de concertación") -> Nota: Los indicadores con los pueblos indígenas están en proceso de concertación
A49: =+IF(B6=B310,"",IF(B7=B316,"",IF(B12="","Nota indicadores pueblo rrom: Seleccione entidad para ver indicadores de pueblos rrom","Indicadores pueblos rrom "&B12))) -> Nota indicadores pueblo rrom: Seleccione entidad para ver indicadores de pueblos rrom
A51: =+IF(B6=B310,"",IF(B7=B316,"",IF(B12="","","Indicador:"))) ->  | B51: Proyectos para el fortalecimiento y visibilización de la identidad cultural de los pueblos indígenas financiados.
A52: =+IF(B51="","","Meta 2015:") -> Meta 2015: | B52: =++IF(B51="","",IFERROR(VLOOKUP(B$51,'Indicadores Rrom'!$E$3:$AA$20,12,0),0)) -> 0
A53: =+IF(B51="","","Meta Cuatrienio:") -> Meta Cuatrienio: | B53: =++IF(B51="","",IFERROR(VLOOKUP(B$51,'Indicadores Rrom'!$E$3:$AA$20,16,0),0)) -> 0
A54: =+IF(B51="","","Avance anual:") -> Avance anual: | B54: =+IF(B51="","",IFERROR(VLOOKUP(B$51,'Indicadores Rrom'!$E$3:$AA$20,17,0),0)) -> 0
A55: =+IF(B51="","","Porcentaje Avance Cuatrienio:") -> Porcentaje Avance Cuatrienio: | B55: =+IF(B51="","",IFERROR(VLOOKUP(B$51,'Indicadores Rrom'!$E$3:$AA$20,20,0),0)) -> 0 | C55: =100-B55 -> 100
A56: =+IF(B51="","","Avance Cualitativo:") -> Avance Cualitativo: | B56: =+IF(B51="","",IFERROR(VLOOKUP(B$51,'Indicadores Rrom'!$E$3:$AA$20,23,0),0)) -> 0
A59: Ver detalle del eje
A60: Ver detalle de la entidad
A135: =+IF(B51="","","Porcentaje de avance en el cuatrienio") -> Porcentaje de avance en el cuatrienio
A139: =+A35 -> RECURSOS TOTALES EJECUTADOS COMUNIDADES NARP: | B139: 7.718460824e+11 | D139: A | E139: Recursos PGN
A140: =+D40 -> Recursos totales ejecutados por el tipo de recurso señalado: | B140: =+'Tab Pres NARP'!G595 -> 6.879062872e+11 | D140: B | E140: Recursos SGP
A141: =+F40 ->  | B141: =+G40 ->  | D141: C | E141: Inversión total eje del PND | F141: Asignación a la región
A142: =+A37 ->  | B142: =+B37 -> 0 | D142: D | E142: Inversión total - Sector | F142: Asignación al departamento
A143: =+A38 ->  | B143: =+B38 -> 0 | D143: E | E143: Recursos SGR
A146: GRAFICO 1 - CONSOLIDADO
A148: =IF(B7="","","RECURSOS PGN") -> RECURSOS PGN | B148: =IF(A148="","",'Tab Pres NARP'!G595) -> 6.879062872e+11 | C148: =+IF(OR(D148="",D148=0),"",A148) -> RECURSOS PGN | D148: =+IF(OR(B148="",B148=0),"",B148/SUM($B$148:$B$150)) -> 0.8912480129 | E148: =+IF(AND((OR(D148="",D148=0)),(OR(D149="",D149=0))),"",D35) -> GRÁFICA 1. INVERSIÓN 2015 COMUNIDADES NARP POR FUENTE DE FINANCIACIÓN | F148: =C148 -> RECURSOS PGN | G148: =+IF(OR(B148="",B148=0),"",B148) -> 6.879062872e+11 | H148: =+D148 -> 0.8912480129
C149: =+IF(OR(D149="",D149=0),"",A150) -> RECURSOS SGR | D149: =+IF(OR(B150="",B150=0),"",B150/SUM($B$148:$B$150)) -> 0.1087519871
A150: =IF(B6="PUEBLO RROM","",IF(B7="","","RECURSOS SGR")) -> RECURSOS SGR | B150: =+'Tab Pres NARP'!G599 -> 8.393979519e+10 | F150: =C149 -> RECURSOS SGR | G150: =+IF(OR(B150="",B150=0),"",B150) -> 8.393979519e+10 | H150: =+D149 -> 0.1087519871
A152: GRAFICO 2 - EJE / REGIÓN
A154: =+IF(OR(B7=E140,B7=E143),"INVERSIÓN EN LA REGIÓN", IF(A141="","",IF(A141=E140,"",IF(A141=F141,"ASIGNADO A LA REGIÓN",E141)))) ->  | B154: =+B36 ->  | C154: =+ IFERROR(( IF(OR(cd&ct&B9&B10&B11&B12=B570,cd&ct=B571,cd&ct&B9=B572,cd&ct&B9&B10=B573,cd&ct&B9&B10&B11=B574),"",IF(OR(D154="",D154=0),"",A154))),"") ->  | D154: =+ IF(cg="","", IFERROR(( IF(OR(cd&ct&B9&B10&B11&B12=B570,cd&ct&B9&B10&B11&B12="Consolidado",cd&ct=B571,cd&ct&B9=B572,cd&ct&B9&B10=B573,cd&ct&B9&B10&B11=B574),"",IF(OR(B154="",B154=0),"",B154/SUM($B$154:$B$155)))),"")) ->  | E154: =+IF(AND((OR(D154="",D154=0)),(OR(D155="",D155=0))),"",D36) ->  | F154: =C154 ->  | G154: =+IF(OR(cd&ct&B9&B10&B11&B12=B570,cd&ct&B9&B10&B11&B12="Consolidado",cd&ct=B571,cd&ct&B9=B572,cd&ct&B9&B10=B573,cd&ct&B9&B10&B11=B574),"",IF(OR(B154="",B154=0),"",B154)) ->  | H154: =+D154 -> 
A155: =+IF(OR(B7=E140,B7=E143),"INVERSIÓN EN OTRAS REGIONES", IF(A154="","",IF(A141=F141,"INVERSIÓN RESTO DEL PAÍS","INVERSIÓN OTROS EJES DEL PND"))) ->  | B155: =+IFERROR(IF(A155="","",B140-B154),"") ->  | C155: =+IF(OR(cd&ct&B9&B10&B11&B12=B570,cd&ct=B571,cd&ct&B9=B572,cd&ct&B9&B10=B573,cd&ct&B9&B10&B11=B574),"",IF(OR(D155="",D155=0),"",A155)) ->  | D155: =+ IF(cg="","", IF(AND(cd="RECURSOS SGR",ct=""),"", IF(OR(cd&ct&B9&B10&B11&B12=B570,cd&ct&B9&B10&B11&B12="Consolidado",cd&ct=B571,cd&ct&B9=B572,cd&ct&B9&B10=B573,cd&ct&B9&B10&B11=B574),"",IFERROR((IF(OR(B155="",B155=0),"",B155/SUM($B$154:$B$155))),"")))) ->  | G155: =+ IF(AND(cd="RECURSOS SGR",ct=""),"", IF(OR(cd&ct&B9&B10&B11&B12=B570,cd&ct&B9&B10&B11&B12="Consolidado",cd&ct=B571,cd&ct&B9=B572,cd&ct&B9&B10=B573,cd&ct&B9&B10&B11=B574),"",IFERROR((IF(OR(B155="",B155=0),"",B155)),""))) ->  | H155: =+D155 -> 
A157: Grafico 3 - Sector / Departamento
A159: =+IF(AND(B6="CONSOLIDADO",B7="CONSOLIDADO"),"", IF(OR(B7=E140,B7=E143),"INVERSIÓN POR DEPARTAMENTO", IF(A142="","",IF(A142="RECURSOS SGR","",IF(A142=F142,"ASIGNADO AL DEPARTAMENTO",E142))))) ->  | B159: =+IF(A159="","",B142) ->  | C159: =+ IF(cd="CONSOLIDADO","", IF(AND(cd="CONSOLIDADO",ct=NA),"", A159)) ->  | D159: =+ IF(ch="","", IF(cd="CONSOLIDADO","", IF(AND(cd="CONSOLIDADO",ct=NA),"",B159/SUM($B$159:$B$160)))) ->  | E159: =IF(ch="","",D37) ->  | F159: =IF(AND(cd="RECURSOS SGR",ct=""),"",C159) ->  | G159: =+IF(OR(cd&ct&B9&B10&B11&B12=B570,cd&ct&B9&B10&B11&B12="Consolidado",cd&ct=B571,cd&ct&B9=B572,cd&ct&B9&B10=B573,cd&ct&B9&B10&B11=B574),"",IFERROR((IF(OR(B159="",B159=0),"",B159)),"")) ->  | H159: =+D159 -> 
A160: =+IF(OR(B7=E140,B7=E143),"INVERSIÓN EN OTROS DEPARTAMENTOS", IF(A159="","",IF(A142=F142,"ASIGNADO A OTROS DEPARTAMENTOS EN LA REGIÓN","INVERSIÓN DE OTROS SECTORES"))) ->  | B160: =+IF(OR(A160="",B159=0),"",B154-B159) ->  | C160: =+ IF(cd="CONSOLIDADO","", IF(AND(cd="CONSOLIDADO",ct=NA),"",A160)) ->  | D160: =IF(ch="","", IF(cd="CONSOLIDADO","", +IF(AND(cd="CONSOLIDADO",ct=NA),"",B160/SUM($B$159:$B$160)))) ->  | F160: =IF(AND(cd="RECURSOS SGR",ct=""),"",C160) ->  | G160: =+IF(OR(cd&ct&B9&B10&B11&B12=B570,cd&ct&B9&B10&B11&B12="Consolidado",cd&ct=B571,cd&ct&B9=B572,cd&ct&B9&B10=B573,cd&ct&B9&B10&B11=B574),"",IFERROR((IF(OR(B160="",B160=0),"",B160)),"")) -> 
A163: Grafico 4 - Entidad
A165: =+IF(cd=con,"",IF(A154="","",IF(B159=0,"",IF(A38="","",IF(A38=B309,"","INVERTIDO POR LA ENTIDAD EN EL EJE"))))) ->  | B165: =+IF(A165="","",B143) ->  | C165: =+IF(OR(D165="",D165=0),"",A165) ->  | D165: =+IFERROR((IF(OR(B165="",B165=0),"",B165/SUM($B$165:$B$166))),"") ->  | E165: =+IF(AND((OR(D165="",D165=0)),(OR(D166="",D166=0))),"",D38) ->  | F165: =C165 ->  | G165: =+IFERROR((IF(OR(B165="",B165=0),"",B165)),"") ->  | H165: =+D165 -> 
A166: =+IF(A165="","",IF(B159=0,"",IF(A38="","",IF(A38=B309,"","INVERTIDO POR OTRAS ENTIDADES EN EL EJE")))) ->  | B166: =+IF(A166="","",B142-B143) ->  | D166: =+IFERROR((IF(OR(B166="",B166=0),"",B166/SUM($B$165:$B$166))),"") ->  | G166: =+IFERROR((IF(OR(B166="",B166=0),"",B166)),"") ->  | L166: =+B171+B172 -> 
A167: Entidad del Gobierno Nacional | B167: =+SUMIF('Tab Pres NARP'!E69:E223,'COMNIDADES NARP'!B12,'Tab Pres NARP'!G69:G223) -> 0 | H167: 0
A169: Grafico 5 - Pueblos Indígenas
A171: =+IF(A165="","",IF(B6=B310,"Invertido en el eje","")) ->  | B171: =+IF(A171="","",B165) ->  | C171: =+IF(OR(D171="",D171=0),"",A171) ->  | D171: =+IFERROR((IF(OR(B171="",B171=0),"",B171/SUM($B$171:$B$173))),"") ->  | E171: =+IF(AND((OR(D171="",D171=0)),(OR(D172="",D172=0)),(OR(D173="",D173=0))),"",D39) ->  | F171: =C171 ->  | G171: =+IFERROR((IF(OR(B171="",B171=0),"",B171)),"") ->  | H171: =+D171 -> 
A172: =+IF(A171="","","Inversion 2015 PGN, SGP, SGR") ->  | B172: =+ IF(A172="","",B148+B149+B150+D41+D42+D43-B171) ->  | D172: =+IFERROR((IF(OR(B172="",B172=0),"",B172/SUM($B$171:$B$173))),"") ->  | G172: =+IFERROR((IF(OR(B172="",B172=0),"",B172)),"") -> 
A173: =+IF(A172="","","Por invertir 2016 -2018 (Piso PND)") ->  | B173: =+IF(A173="","",B178-B171-B172) ->  | D173: =+IFERROR((IF(OR(B173="",B173=0),"",B173/SUM($B$171:$B$173))),"") ->  | G173: =+IFERROR((IF(OR(B173="",B173=0),"",B173)),"") -> 
A178: Piso pND | B178: 8000000000000
A300: RECURSOS TOTALES DESTINADOS AL GRUPO ÉTNICO:
A301: INVERSIÓN TOTAL - EJE DEL PND
A302: INVERSIÓN TOTAL - SECTOR | F302: 1023975553741 | G302: =+E315 -> 2.227946861e+11
A303: INVERSIÓN TOTAL - ENTIDAD | E303: 855749031784 | F303: =+F302+G302 -> 1.24677024e+12
E306: 858250999784
B307: NO APLICA
D308: =+B309&B317 -> Consolidado | E308: 2.227946861e+11
A309: Grupo Étnico | B309: Consolidado | D309: =+B309&B315 -> ConsolidadoRECURSOS PGN | E309: 858250999784 | F309: 1050422352565
B310: Pueblo Indígena | D310: =+B309&B316 -> ConsolidadoRECURSOS SGR | E310: 165724553957
B311: Pueblo Rrom | D311: =+B310&B314 -> Pueblo IndígenaCONSOLIDADO | E311: 1244268271858 | F311: 1216146906522 | G311: No hay Rroom para el 2015.. Se quito.
D312: =+B310&B315 -> Pueblo IndígenaRECURSOS PGN | E312: 855749031784 | F312: =+E312+E314 -> 858250999784
D313: =+B310&B316 -> Pueblo IndígenaRECURSOS SGR | E313: 165724553957 | F313: 858250999784 | G313: Rrom y Pueblo indígena - SGP
A314: Fuente de financiación | B314: CONSOLIDADO | D314: =+B311&B315 -> Pueblo RromRECURSOS PGN | E314: 2501968000
B315: RECURSOS PGN | D315: =+B310&B317 -> Pueblo Indígena | E315: 2.227946861e+11 | F315: =+E313+E312 -> 1021473585741 | G315: Total de RROM+pi DE PUEBLOS INDIGENAS+ SGP-AESPGRI+SGR
B316: RECURSOS SGR | E316: =+E311-E314 -> 1241766303858 | F316: 2501968000 | G316: Ficha de Rrom - Seguimiento
F317: 8.557490318e+11 | G317: Lo ejecutado como obligado en política.
F318: 1021473585741
A319: Área de Incidencia | B319: CONSOLIDADO
B320: NIVEL NACIONAL
B321: TOTAL SGP
A322: CARIBE | B322: ATLÁNTICO | E322: CENTRO SUR
A323: CARIBE | B323: BOLIVAR | E323: CENTRO ORIENTE
A324: CARIBE | B324: CESAR | E324: EJE CAFETERO
A325: CARIBE | B325: CÓRDOBA | E325: LLANOS
A326: CARIBE | B326: LA GUAJIRA | E326: PACÍFICO
A327: CARIBE | B327: MAGDALENA | E327: CARIBE
A328: CARIBE | B328: SAN ANDRÉS Y PROVIDENCIA | E328: =IF($B$7=$B$314,$B$307,IF($B$7=$B$315,$B$307,IF($B$8=$E$322,$B$322:$B$323,IF(B8=$E$323,$B$324:$B$328,IF(B8=E324,B329:B335,IF(B8=E325,B336:B342,IF(B8=E326,B343:B350,#REF!))))))) -> NO APLICA
A329: CARIBE | B329: SUCRE
A330: CENTRO SUR | B330: AMAZONAS
A331: CENTRO SUR | B331: CAQUETA
A332: CENTRO SUR | B332: PUTUMAYO
A333: CENTRO SUR | B333: HUILA
A334: CENTRO SUR | B334: TOLIMA
A335: CENTRO ORIENTE | B335: BOGOTÁ
A336: CENTRO ORIENTE | B336: BOYACA
A337: CENTRO ORIENTE | B337: CUNDINAMARCA
A338: CENTRO ORIENTE | B338: NORTE DE SANTANDER
A339: CENTRO ORIENTE | B339: SANTANDER
A340: EJE CAFETERO | B340: ANTIOQUIA
A341: EJE CAFETERO | B341: CALDAS
A342: EJE CAFETERO | B342: QUINDIO
A343: EJE CAFETERO | B343: RISARALDA
A344: LLANOS | B344: ARAUCA
A345: LLANOS | B345: CASANARE
A346: LLANOS | B346: GUAINIA
A347: LLANOS | B347: GUAVIARE
A348: LLANOS | B348: META
A349: LLANOS | B349: VAUPES | E349: =IF(B11=B307,B307,IF(B11=B355,B355,IF(B11=D365,Agr,IF(B11=D369,Amb,IF(B11=D373,E373:E375,IF(B11=D379,Cul,IF(B11=D385,IS,IF(B11=D391,Info,IF(B11=D396,ME,IF(B11=D399,Pre,IF(B11=D407,Tbj,IF(B11=D410,Trp,IF(B11=D376,TIC,E350))))))))))))) -> 
A350: LLANOS | B350: VICHADA | E350: =+VLOOKUP($B11,$D$365:$E$415,2,0) -> 
A351: PACÍFICO | B351: CAUCA
A352: PACÍFICO | B352: CHOCO
A353: PACÍFICO | B353: NARIÑO
A354: PACÍFICO | B354: VALLE DEL CAUCA
A355: Eje del Plan Nacional de Desarrollo | B355: BUEN GOBIERNO | E355: Eje del Plan Nacional de Desarrollo | F355: Consolidado
A356: Pueblos indígenas | B356: COMPETITIVIDAD E INFRAESTRUCTURA ESTRATÉGICAS | E356: Pueblos rrom | F356: Movilidad Social
B357: Consolidado | F357: Buen Gobierno
B358: CRECIMIENTO VERDE | F358: Competitividad E Infraestructura Estratégica
B359: MOVILIDAD SOCIAL
B360: No aplica
B361: SEGURIDAD, JUSTICIA Y DEMOCRACIA | C361: =+UPPER(B361) -> SEGURIDAD, JUSTICIA Y DEMOCRACIA
B362: TRANSFORMACIÓN DEL CAMPO
E363: =IF($B$11=$B$307,$B$307,IF($B$11=B355,B355,IF($B$11=$D$365,Agr,IF($B$11=$D$369,Amb,IF($B$11=$D$372,$E$372,IF($B$11=$D$373,$E$373:$E$375,IF($B$11=$D$379,Cul,IF($B$11=$D$382,$E$382,IF($B$11=$D$383,$E$383,IF($B$11=$D$384,$E$384,IF($B$11=$D$385,IS,IF($B$11=D391,Info,IF($B$11=D394,E394,IF($B$11=D395,E395,IF($B$11=D396,ME,IF($B$11=D399,Pre,IF($B$11=D403,E403,IF($B$11=D404,E404,IF($B$11=D405,E405,IF($B$11=D406,E406,IF($B$11=D407,Tbj,IF($B$11=D410,Trp,IF($B$11=D376,TIC,E413))))))))))))))))))))))) -> MINISTERIO DE VIVIENDA
A364: Eje | B364: Sector | D364: Sector | E364: Entidad
A365: BUEN GOBIERNO | B365: Ambiente Y Desarrollo Sostenible | D365: Agropecuario | E365: Consolidado
B366: Consolidado | E366: INCODER
B367: Cultura | E367: MINISTERIO DE AGRICULTURA
B368: Información Estadística | E368: Unidad Administrativa Especial de Gestión de Restitución de Tierras Despojadas (URT)
B369: Interior | D369: Ambiente Y Desarrollo Sostenible | E369: Consolidado
E370: CODECHOCO
E371: MINISTERIO DE AMBIENTE
A372: COMPETITIVIDAD E INFRAESTRUCTURA ESTRATÉGICA | B372: Consolidado | D372: Ciencia y Tecnología | E372: COLCIENCIAS
B373: Ambiente Y Desarrollo Sostenible | D373: Comercio, Industria Y Turismo | E373: Consolidado
B374: Ciencia y Tecnología | E374: ARTESANIAS DE COLOMBIA
B375: Comunicaciones | E375: MINISTERIO DE COMERCIO, INDUSTRIA Y TURISMO
B376: Inclusión Social | D376: Comunicaciones | E376: Consolidado
B377: Interior | E377: ANTV
B378: Minas Y Energía | E378: MINISTERIO DE LAS TIC
B379: Transporte | D379: Cultura | E379: Consolidado
B380: Comercio, Industria Y Turismo | E380: ICANH
E381: MINISTERIO DE CULTURA
A382: CRECIMIENTO VERDE | B382: Consolidado | D382: Deporte Y Recreación | E382: COLDEPORTES
B383: Ambiente Y Desarrollo Sostenible | D383: Educación | E383: MINISTERIO DE EDUCACIÓN
B384: Cultura | D384: Hacienda | E384: MINISTERIO DE HACIENDA
B385: Información Estadística | D385: Inclusión Social | E385: APC
B386: Interior | E386: Consolidado
E387: DANE
A388: Inversiones adicionales | B388: Consolidado | E388: ICBF
E389: MINISTERIO DEL INTERIOR
B390: Agropecuario | E390: MINISTERIO DE HACIENDA
B391: Ambiente Y Desarrollo Sostenible | D391: Información Estadística | E391: Consolidado
B392: Comercio, Industria Y Turismo | E392: DANE
B393: Comunicaciones | E393: IGAC
B394: Cultura | D394: Interior | E394: MINISTERIO DEL INTERIOR
B395: Educación | D395: Justicia Y Del Derecho | E395: MINISTERIO DE JUSTICIA
B396: Inclusión Social | D396: Minas Y Energía | E396: Consolidado
B397: Interior | E397: ANM
B398: Justicia Y Del Derecho | E398: MINISTERIO DE MINAS Y ENERGÍA
B399: Minas Y Energía | D399: Presidencia | E399: Consolidado
B400: Registraduria | E400: ACR
B401: Trabajo | E401: APC
B402: Transporte | E402: PRESIDENCIA
D403: Rama Judicial | E403: Consejo Superior de la Judicatura
A404: MOVILIDAD SOCIAL | B404: Consolidado | D404: Registraduria | E404: Registraduría General de la Nación
B405: Agropecuario | D405: Relaciones exteriores | E405: MINISTERIO DE RELACIONES EXTERIORES
B406: Comunicaciones | D406: Saludy Protección Social | E406: MINISTERIO DE SALUD
B407: Cultura | D407: Trabajo | E407: Consolidado
B408: Deporte Y Recreación | E408: MINISTERIO DE TRABAJO
B409: Educación | E409: SENA
B410: Inclusión Social | D410: Transporte | E410: Consolidado
B411: Relaciones exteriores | E411: INVIAS
B412: Saludy Protección Social | E412: MINISTERIO DE TRANSPORTE
B413: Trabajo | D413: Vivienda, ciudad y territorio | E413: MINISTERIO DE VIVIENDA
B414: Comercio, Industria Y Turismo | D414: Planeación | E414: Departamento Nacional de Planeación
B415: Planeación | D415: Defensa | E415: MINISTERIO DE DEFENSA
A416: SEGURIDAD, JUSTICIA Y DEMOCRACIA PARA LA CONSTRUCCIÓN DE PAZ | B416: Ambiente Y Desarrollo Sostenible
B417: Ciencia y Tecnología
B418: Comercio, Industria Y Turismo
B419: Comunicaciones
B420: Consolidado
B421: Inclusión Social
B422: Interior
B423: Minas Y Energía
B424: Transporte
A426: TRANSFORMACIÓN DEL CAMPO | B426: Consolidado
B427: Agropecuario
B428: Cultura
B429: Interior
B430: Presidencia
B431: Trabajo
B432: Vivienda, ciudad y territorio
D465: =+E465&F465 -> MOVILIDAD SOCIALInclusión Social Y Reconciliación | E465: MOVILIDAD SOCIAL | F465: Inclusión Social Y Reconciliación | G465: ANSPE
G466: DPS
G467: ICBF
G468: UAE. PARA LA CONSOLIDACIÓN TERRITORIAL
D469: =+E469&F469 -> SEGURIDAD, JUSTICIA Y DEMOCRACIA Inclusión Social Y Reconciliación | E469: SEGURIDAD, JUSTICIA Y DEMOCRACIA | F469: Inclusión Social Y Reconciliación | G469: CENTRO DE MEMORIA HISTÓRICA
G470: DPS
G471: UNIDAD DE VÍCTIMAS
B497: =+VLOOKUP(B11,A465:B495,2,0) -> 
B498: Recursos PGNConsolidado
A500: TOTAL SGP
A502: Region | B502: Departamento
... 74 more rows

Sheet INSTRUCTIVO PUEBLO INDIGENA
K3: VOLVER AL CONTENIDO

Sheet INSTRUCTIVO PUEBLO RROM
L4: VOLVER AL CONTENIDO

Sheet INSTRUCTIVO COMUNIDADES NARP
L3: VOLVER AL CONTENIDO

Sheet analisis-RROM
B2: b7 | C2: b8 | D2: b9 | E2: b10 | F2: b11 | G2: b12
B3: FUENTE DE FINANCIACIÓN | C3: REGIÓN DE INCIDENCIA | D3: DEPARTAMENTO | E3: EJE DEL PLAN NACIONAL DE DESARROLLO | F3: SECTOR DEL GOBIERNO NACIONAL | G3: ENTIDAD DEL GOBIERNO NACIONAL
B4: Recursos PGN | C4: NIVEL NACIONAL | D4: No aplica | E4: Consolidado | F4: Consolidado | G4: Consolidado | H4: =+IF(AND([2]RROM!cd=B4,[2]RROM!ct=C4,[2]RROM!B9=D4,[2]RROM!B10=E4,[2]RROM!B11=F4,[2]RROM!B12=G4),I4&J4&K4&L4&M4&N4&O4&P4&Q4) -> FALSE | I4: En proyectos de inversión para Pueblo Rrom fueron ejecutados $ | J4: =+ROUNDDOWN([2]RROM!B35/1000000,0) -> 2501 | K4: millones de pesos con la fuente de financiación | L4: =+[2]RROM!cd -> RECURSOS PGN | M4: para la vigencia 2015.
B5: RECURSOS PGN | C5: NIVEL NACIONAL | D5: No aplica | H5: =+IF(AND(cd=B5,ct=C5,[2]RROM!B9=D5,[2]RROM!B10<>E4),I5&J5&K5&L5&M5&N5&O5&P5&Q5&R5&S5&T5&U5) -> FALSE | I5: Los proyectos de inversión para Pueblo Rrom fueron de $ | J5: =+ROUNDDOWN([2]RROM!B35/1000000,0) -> 2501 | K5: millones de pesos ejecutados con la fuente de financiación | L5: =+[2]RROM!cd -> RECURSOS PGN | M5: , evidenciando una participación en el sector | N5: =+[2]RROM!B11 -> COMUNICACIONES | O5: por valor de $ | P5: =+ROUNDUP([2]RROM!B38/1000000,0) -> 218 | Q5: millones de pesos y así mismo para la entidad | R5: =+[2]RROM!B12 -> ANTV | S5: una participación absoluta por valor de $ | T5: =+ROUNDUP([2]RROM!B39/1000000,0) -> 218 | U5: millones de pesos en la vigencia 2015.
A11: FALSE
A12: =+UPPER(A13) -> 0
A13: =+IF(H4<>$A$11,H4,IF(H5<>$A$11,H5,IF(H6<>$A$11,H6,IF(H7<>$A$11,H7,H8)))) -> 0

Sheet analisis-NARP (hidden)
B2: cd | C2: ct | D2: ce | E2: cf | F2: cg | G2: ch
B3: FUENTE DE FINANCIACIÓN | C3: REGIÓN DE INCIDENCIA | D3: DEPARTAMENTO | E3: EJE DEL PLAN NACIONAL DE DESARROLLO | F3: SECTOR DEL GOBIERNO NACIONAL | G3: ENTIDAD DEL GOBIERNO NACIONAL
A4: El presupuesto ejecutado en proyectos de inversión para pueblo indígena en la vigencia 2015 fue por un valor $ 2307833 millones de pesos. Dicha asignación se desagrega con las fuentes de financiación Recursos PGN por valor de $ 855749 millones de pesos, así mismo con Recursos SGP por valor de $ 1229286 millones de pesos y Recursos SGR con una participación absoluta de $ 2749 millones de pesos. | B4: Consolidado | C4: NO APLICA | D4: NO APLICA | E4: NO APLICA | F4: NO APLICA | G4: NO APLICA | H4: =+IF(AND('COMNIDADES NARP'!cd=B4,'COMNIDADES NARP'!ct=C4,'COMNIDADES NARP'!ce=D4,'COMNIDADES NARP'!cf=E4,'COMNIDADES NARP'!cg=F4,'COMNIDADES NARP'!ch=G4),I4&J4&K4&L4&M4&N4&O4&P4&Q4) -> FALSE | I4: EL PRESUPUESTO EJECUTADO EN PROYECTOS DE INVERSIÓN PARA COMUNIDADES NARP EN LA VIGENCIA 2015 FUE POR UN VALOR $ | J4: =+ROUNDDOWN('COMNIDADES NARP'!B35/1000000,0) -> 771846 | K4: MILLONES DE PESOS. DICHA ASIGNACIÓN SE DESAGREGA CON LAS FUENTES DE FINANCIACIÓN RECURSOS PGN POR VALOR DE $ | L4: =+ROUNDDOWN('COMNIDADES NARP'!B36/1000000,0) ->  | M4: MILLONES DE PESOS, ASÍ MISMO | O4: RECURSOS SGR CON UNA PARTICIPACIÓN ABSOLUTA DE $ | P4: =+ROUNDDOWN('Tab Pres NARP'!G599/1000000,0) -> 83939 | Q4: MILLONES DE PESOS.
A5: Los Recursos PGN ejecutados en proyectos de inversión para Pueblo indígena fueron de $ 855750 millones de pesos, con una inversión realizada por la entidad Icbf por valor de $ 149643 millones de pesos. | B5: Recursos PGN | C5: NIVEL NACIONAL | E5: Consolidado | F5: Consolidado | H5: =+IF(AND('COMNIDADES NARP'!cd=B5,'COMNIDADES NARP'!ct=C5,'COMNIDADES NARP'!cf=E5,'COMNIDADES NARP'!cg=F5),I5&J5&K5&L5&M5&N5&O5&P5&Q5) -> FALSE | I5: LOS | J5: =+'COMNIDADES NARP'!cd -> RECURSOS PGN | K5: EJECUTADOS EN PROYECTOS DE INVERSIÓN PARA COMUNIDADES NARP FUERON DE $ | L5: =+ROUNDDOWN('COMNIDADES NARP'!B36/1000000,0) ->  | M5: MILLONES DE PESOS, CON UNA INVERSIÓN REALIZADA POR LA ENTIDAD | N5: =+'COMNIDADES NARP'!ch -> 0 | O5: POR VALOR DE $ | P5: =+ROUNDDOWN('COMNIDADES NARP'!B38/1000000,0) -> 0 | Q5: MILLONES DE PESOS.
A6: Los Recursos PGN ejecutados en proyectos de inversión para Pueblo indígena fueron de $ 855750 millones de pesos con una participación en el sector Inclusión Social y Reconciliación por valor de $ 308462 millones de pesos y así mismo para la entidad Icbf una participación absoluta por valor de $ 149643 millones de pesos. | B6: RECURSOS PGN | C6: NIVEL NACIONAL | H6: =+IF(AND('COMNIDADES NARP'!cd=B6,'COMNIDADES NARP'!ct=C6,'COMNIDADES NARP'!cf<>con),I6&J6&K6&L6&M6&N6&O6&P6&Q6&R6&S6&T6&U6) -> FALSE | I6: LOS | J6: =+'COMNIDADES NARP'!cd -> RECURSOS PGN | K6: EJECUTADOS EN PROYECTOS DE INVERSIÓN PARA COMUNIDADES NARP FUERON DE $ | L6: =+ROUNDDOWN('Tab Pres NARP'!G595/1000000,0) -> 687906 | M6: MILLONES DE PESOS CON UNA PARTICIPACIÓN EN EL SECTOR | N6: =+'COMNIDADES NARP'!cg -> 0 | O6: POR VALOR DE $ | P6: =+ROUNDDOWN('COMNIDADES NARP'!B37/1000000,0) -> 0 | Q6: MILLONES DE PESOS Y ASÍ MISMO PARA LA ENTIDAD | R6: =+'COMNIDADES NARP'!ch -> 0 | S6: UNA PARTICIPACIÓN ABSOLUTA POR VALOR DE $ | T6: =+ROUNDDOWN('COMNIDADES NARP'!B38/1000000,0) -> 0 | U6: MILLONES DE PESOS.
A8: El presupuesto ejecutado en proyectos de inversión para pueblo indígena asignado con Recursos SGR fue por valor de $ 222794 millones de pesos EN LA VIGENCIA 2015, con una participación absoluta en la región EJE CAFETERO por valor $ 47390 millones de pesos y así mismo una ejecución en el departamento Antioquia por valor de $ 710 millones de pesos. | B8: RECURSOS SGR | H8: =+IF('COMNIDADES NARP'!cd=B8,I8&J8&K8&L8&M8&N8&O8&P8&Q8&R8&S8&T8&U8) -> FALSE | I8: EL PRESUPUESTO EJECUTADO EN PROYECTOS DE INVERSIÓN PARA COMUNIDADES NARP ASIGNADO CON | J8: =+'COMNIDADES NARP'!cd -> RECURSOS PGN | K8: FUE POR VALOR DE $ | L8: =+ROUNDDOWN('Tab Pres NARP'!G599/1000000,0) -> 83939 | M8: MILLONES DE PESOS EN LA VIGENCIA 2015, CON UNA PARTICIPACIÓN ABSOLUTA EN LA REGIÓN | N8: =+'COMNIDADES NARP'!ct -> 0 | O8: POR VALOR $ | P8: =+ROUNDDOWN('COMNIDADES NARP'!B36/1000000,0) ->  | Q8: MILLONES DE PESOS Y ASÍ MISMO UNA EJECUCIÓN EN EL DEPARTAMENTO | R8: =+'COMNIDADES NARP'!ce -> 0 | S8: POR VALOR DE $ | T8: =+ROUNDDOWN('COMNIDADES NARP'!B37/1000000,0) -> 0 | U8: MILLONES DE PESOS.
A11: FALSE
A12: =+IF(H4<>$A$11,H4,IF(H5<>$A$11,H5,IF(H6<>$A$11,H6,IF(H7<>$A$11,H7,H8)))) -> FALSE

Sheet Tab Pres NARP (hidden)
A2: Base para busqueda 1 | E2: ok
A3: Grupo étnico | B3: Fuente de financiación | C3: area de incidencia | E3: Total
A4: Pueblo indígena | B4: Recursos PGN | C4: Nivel Nacional | D4: =+A4&B4&C4 -> Pueblo indígenaRecursos PGNNivel Nacional | E4: 8.557490318e+11 | G4: 1050422352565 | H4: 8.557490318e+11
A5: Pueblo indígena | B5: Recursos PGN | C5: Consolidado | D5: =+A5&B5&C5 -> Pueblo indígenaRecursos PGNConsolidado | E5: 8.557490318e+11 | G5: 1050422352565
A6: Pueblo indígena | B6: Recursos SGP | C6: AMAZONAS | D6: Pueblo indígenaRecursos SGPAMAZONAS | E6: 9086379432 | F6: 4169231504 | G6: 9086379432
A7: Pueblo indígena | B7: Recursos SGP | C7: ANTIOQUIA | D7: Pueblo indígenaRecursos SGPANTIOQUIA | E7: 2866347189 | F7: 2866347189 | G7: 2866347189
A8: Pueblo indígena | B8: Recursos SGP | C8: ARAUCA | D8: Pueblo indígenaRecursos SGPARAUCA | E8: 630480993 | F8: 630480993 | G8: 630480993
A9: Pueblo indígena | B9: Recursos SGP | C9: Boyacá | D9: Pueblo indígenaRecursos SGPBoyacá | E9: 654498039 | F9: 654498039 | G9: 654498039
A10: Pueblo indígena | B10: Recursos SGP | C10: CALDAS | D10: Pueblo indígenaRecursos SGPCALDAS | E10: 6822585231 | F10: 6822585231 | G10: 6822585231
A11: Pueblo indígena | B11: Recursos SGP | C11: Caquetá | D11: Pueblo indígenaRecursos SGPCaquetá | E11: 1245263694 | F11: 1245263694 | G11: 1245263694
A12: Pueblo indígena | B12: Recursos SGP | C12: CASANARE | D12: Pueblo indígenaRecursos SGPCASANARE | E12: 967352231 | F12: 967352231 | G12: 967352231
A13: Pueblo indígena | B13: Recursos SGP | C13: CAUCA | D13: Pueblo indígenaRecursos SGPCAUCA | E13: 33240026504 | F13: 33240026504 | G13: 33240026504
A14: Pueblo indígena | B14: Recursos SGP | C14: CESAR | D14: Pueblo indígenaRecursos SGPCESAR | E14: 6118174675 | F14: 6118174675 | G14: 6118174675
A15: Pueblo indígena | B15: Recursos SGP | C15: CHOCO | D15: Pueblo indígenaRecursos SGPCHOCO | E15: 8018587220 | F15: 8018587220 | G15: 8018587220
A16: Pueblo indígena | B16: Recursos SGP | C16: CORDOBA | D16: Pueblo indígenaRecursos SGPCORDOBA | E16: 7757103239 | F16: 7757103239 | G16: 7757103239
A17: Pueblo indígena | B17: Recursos SGP | C17: CUNDINAMARCA | D17: Pueblo indígenaRecursos SGPCUNDINAMARCA | E17: 121829483 | F17: 121829483 | G17: 121829483
A18: Pueblo indígena | B18: Recursos SGP | C18: Guainía | D18: Pueblo indígenaRecursos SGPGuainía | E18: 5053111215 | F18: 2405749339 | G18: 5053111215
A19: Pueblo indígena | B19: Recursos SGP | C19: GUAVIARE | D19: Pueblo indígenaRecursos SGPGUAVIARE | E19: 1487446751 | F19: 1487446751 | G19: 1487446751
A20: Pueblo indígena | B20: Recursos SGP | C20: HUILA | D20: Pueblo indígenaRecursos SGPHUILA | E20: 951423861 | F20: 951423861 | G20: 951423861
A21: Pueblo indígena | B21: Recursos SGP | C21: LA GUAJIRA | D21: Pueblo indígenaRecursos SGPLA GUAJIRA | E21: 37709981904 | F21: 37709981904 | G21: 37709981904
A22: Pueblo indígena | B22: Recursos SGP | C22: MAGDALENA | D22: Pueblo indígenaRecursos SGPMAGDALENA | E22: 1281356349 | F22: 1281356349 | G22: 1281356349
A23: Pueblo indígena | B23: Recursos SGP | C23: META | D23: Pueblo indígenaRecursos SGPMETA | E23: 1593980463 | F23: 1593980463 | G23: 1593980463
A24: Pueblo indígena | B24: Recursos SGP | C24: N. DE SANTANDER | D24: Pueblo indígenaRecursos SGPN. DE SANTANDER | E24: 18221984903 | F24: 705483946 | G24: 18221984903
A25: Pueblo indígena | B25: Recursos SGP | C25: NARIÑO | D25: Pueblo indígenaRecursos SGPNARIÑO | E25: 705483946 | F25: 18221984903 | G25: 705483946
A26: Pueblo indígena | B26: Recursos SGP | C26: PUTUMAYO | D26: Pueblo indígenaRecursos SGPPUTUMAYO | E26: 4011249152 | F26: 4011249152 | G26: 4011249152
A27: Pueblo indígena | B27: Recursos SGP | C27: QUINDIO | D27: Pueblo indígenaRecursos SGPQUINDIO | E27: 31128238 | F27: 31128238 | G27: 31128238
A28: Pueblo indígena | B28: Recursos SGP | C28: RISARALDA | D28: Pueblo indígenaRecursos SGPRISARALDA | E28: 1473224366 | F28: 1473224366 | G28: 1473224366
A29: Pueblo indígena | B29: Recursos SGP | C29: SANTANDER | D29: Pueblo indígenaRecursos SGPSANTANDER | E29: 133905093 | F29: 133905093 | G29: 133905093
A30: Pueblo indígena | B30: Recursos SGP | C30: SUCRE | D30: Pueblo indígenaRecursos SGPSUCRE | E30: 2510385055 | F30: 2510385055 | G30: 2510385055
A31: Pueblo indígena | B31: Recursos SGP | C31: TOLIMA | D31: Pueblo indígenaRecursos SGPTOLIMA | E31: 3882174303 | F31: 3882174303 | G31: 3882174303
A32: Pueblo indígena | B32: Recursos SGP | C32: VALLE DEL CAUCA | D32: Pueblo indígenaRecursos SGPVALLE DEL CAUCA | E32: 1476589231 | F32: 1476589231 | G32: 1476589231
A33: Pueblo indígena | B33: Recursos SGP | C33: Vaupés | D33: Pueblo indígenaRecursos SGPVaupés | E33: 3268123870 | F33: 2790624862 | G33: 3268123870
A34: Pueblo indígena | B34: Recursos SGP | C34: VICHADA | D34: Pueblo indígenaRecursos SGPVICHADA | E34: 4404377327 | F34: 4404377327 | G34: 4404377327
A35: Pueblo indígena | B35: Recursos SGP | C35: Consolidado | D35: Pueblo indígenaRecursos SGPConsolidado | E35: 165724553957 | F35: =SUM(F6:F34) -> 157682545145 | G35: =SUM(G6:G34) -> 165724553957
A36: Pueblo indígena | B36: Recursos SGR | C36: AMAZONAS | D36: Pueblo indígenaRecursos SGRAMAZONAS | E36: 54226370235
A37: Pueblo indígena | B37: Recursos SGR | C37: ANTIOQUIA | D37: Pueblo indígenaRecursos SGRANTIOQUIA | E37: 1050218837
A38: Pueblo indígena | B38: Recursos SGR | C38: ARAUCA | D38: Pueblo indígenaRecursos SGRARAUCA | E38: 1412144495
A39: Pueblo indígena | B39: Recursos SGR | C39: Boyacá | D39: Pueblo indígenaRecursos SGRBoyacá | E39: 8315510
A40: Pueblo indígena | B40: Recursos SGR | C40: CALDAS | D40: Pueblo indígenaRecursos SGRCALDAS | E40: 800000000
A41: Pueblo indígena | B41: Recursos SGR | C41: Caquetá | D41: Pueblo indígenaRecursos SGRCaquetá | E41: 669231696.5
A42: Pueblo indígena | B42: Recursos SGR | C42: CASANARE | D42: Pueblo indígenaRecursos SGRCASANARE | E42: 8668269905
A43: Pueblo indígena | B43: Recursos SGR | C43: CAUCA | D43: Pueblo indígenaRecursos SGRCAUCA | E43: 30321248086
A44: Pueblo indígena | B44: Recursos SGR | C44: CESAR | D44: Pueblo indígenaRecursos SGRCESAR | E44: 304721230
A45: Pueblo indígena | B45: Recursos SGR | C45: CHOCO | D45: Pueblo indígenaRecursos SGRCHOCO | E45: 710651865
A46: Pueblo indígena | B46: Recursos SGR | C46: CORDOBA | D46: Pueblo indígenaRecursos SGRCORDOBA | E46: 3388677111
A47: Pueblo indígena | B47: Recursos SGR | C47: CORPORACIONES | D47: Pueblo indígenaRecursos SGRCORPORACIONES | E47: 2024176703
A48: Pueblo indígena | B48: Recursos SGR | C48: Guainía | D48: Pueblo indígenaRecursos SGRGuainía | E48: 16430718476
A49: Pueblo indígena | B49: Recursos SGR | C49: GUAVIARE | D49: Pueblo indígenaRecursos SGRGUAVIARE | E49: 6005911559
A50: Pueblo indígena | B50: Recursos SGR | C50: HUILA | D50: Pueblo indígenaRecursos SGRHUILA | E50: 1550159180
A51: Pueblo indígena | B51: Recursos SGR | C51: LA GUAJIRA | D51: Pueblo indígenaRecursos SGRLA GUAJIRA | E51: 4.088547838e+10
A52: Pueblo indígena | B52: Recursos SGR | C52: MAGDALENA | D52: Pueblo indígenaRecursos SGRMAGDALENA | E52: 1537620000
A53: Pueblo indígena | B53: Recursos SGR | C53: META | D53: Pueblo indígenaRecursos SGRMETA | E53: 2.535589681e+10
A54: Pueblo indígena | B54: Recursos SGR | C54: N. DE SANTANDER | D54: Pueblo indígenaRecursos SGRN. DE SANTANDER | E54: 449985432
A55: Pueblo indígena | B55: Recursos SGR | C55: NARIÑO | D55: Pueblo indígenaRecursos SGRNARIÑO | E55: 1.616618705e+10
A56: Pueblo indígena | B56: Recursos SGR | C56: PUTUMAYO | D56: Pueblo indígenaRecursos SGRPUTUMAYO | E56: 8515676742
A57: Pueblo indígena | B57: Recursos SGR | C57: RISARALDA | D57: Pueblo indígenaRecursos SGRRISARALDA | E57: 30826014.4
A58: Pueblo indígena | B58: Recursos SGR | C58: SUCRE | D58: Pueblo indígenaRecursos SGRSUCRE | E58: 1947662165
A59: Pueblo indígena | B59: Recursos SGR | C59: TOLIMA | D59: Pueblo indígenaRecursos SGRTOLIMA | E59: 141798876 | G59: =+E62+E61 -> 1.467062958e+12
A60: Pueblo indígena | B60: Recursos SGR | C60: VALLE DEL CAUCA | D60: Pueblo indígenaRecursos SGRVALLE DEL CAUCA | E60: 192739758
A61: Pueblo indígena | B61: Recursos SGR | C61: Consolidado | D61: Pueblo indígenaRecursos SGRConsolidado | E61: 2.227946861e+11 | G61: =+E61+E68 -> 1.244268272e+12 | H61: =+E62+E63 -> 1244268271858
A62: Pueblo Indígena | B62: Consolidado | C62: Consolidado | D62: Pueblo IndígenaConsolidadoConsolidado | E62: 1244268271858 | F62: =+E35+E4 -> 1.021473586e+12 | G62: =+mas sgr -> 
F66: =+E62+E65 -> 1244268271858 | G66: =+E66+E65 -> 0
F67: =+E66+E61 -> 2.227946861e+11
A68: Base para busqueda 2 | E68: 1021473585741 | H68: =+G80+G103+G118+G180+G199+G213 -> 855749028784
A69: Grupo étnico | B69: Fuente de financiación | C69: Eje | D69: Sector | E69: Entidad | G69: Total
A70: Pueblo indígena | B70: Recursos PGN | C70: BUEN GOBIERNO | D70: Hacienda | E70: MINISTERIO DE HACIENDA | F70: =+A70&B70&C70&D70&E70 -> Pueblo indígenaRecursos PGNBUEN GOBIERNOHaciendaMINISTERIO DE HACIENDA | G70: 0
A71: Pueblo indígena | B71: Recursos PGN | C71: BUEN GOBIERNO | D71: Hacienda | E71: Consolidado | F71: =+A71&B71&C71&D71&E71 -> Pueblo indígenaRecursos PGNBUEN GOBIERNOHaciendaConsolidado | G71: 0
A72: Pueblo indígena | B72: Recursos PGN | C72: BUEN GOBIERNO | D72: Inclusión Social Y Reconciliación | E72: ICBF | F72: Pueblo indígenaRecursos PGNBUEN GOBIERNOInclusión Social Y ReconciliaciónICBF | G72: 0
A73: Pueblo indígena | B73: Recursos PGN | C73: BUEN GOBIERNO | D73: Inclusión Social Y Reconciliación | E73: Consolidado | F73: Pueblo indígenaRecursos PGNBUEN GOBIERNOInclusión Social Y ReconciliaciónConsolidado | G73: 0
A74: Pueblo indígena | B74: Recursos PGN | C74: BUEN GOBIERNO | D74: Información Estadística | E74: DANE | F74: Pueblo indígenaRecursos PGNBUEN GOBIERNOInformación EstadísticaDANE | G74: 900000000 | H74: 900000000
A75: Pueblo indígena | B75: Recursos PGN | C75: BUEN GOBIERNO | D75: Información Estadística | E75: Consolidado | F75: Pueblo indígenaRecursos PGNBUEN GOBIERNOInformación EstadísticaConsolidado | G75: 900000000 | H75: 900000000
A76: Pueblo indígena | B76: Recursos PGN | C76: BUEN GOBIERNO | D76: Interior | E76: MININTERIOR | F76: Pueblo indígenaRecursos PGNBUEN GOBIERNOInteriorMININTERIOR | G76: 0
A77: Pueblo indígena | B77: Recursos PGN | C77: BUEN GOBIERNO | D77: Interior | E77: Consolidado | F77: Pueblo indígenaRecursos PGNBUEN GOBIERNOInteriorConsolidado | G77: 0
A78: Pueblo indígena | B78: Recursos PGN | C78: BUEN GOBIERNO | D78: Relaciones exteriores | E78: FONRELACIONES | F78: Pueblo indígenaRecursos PGNBUEN GOBIERNORelaciones exterioresFONRELACIONES | G78: 1570250868 | H78: 1570250868
A79: Pueblo indígena | B79: Recursos PGN | C79: BUEN GOBIERNO | D79: Relaciones exteriores | E79: Consolidado | F79: Pueblo indígenaRecursos PGNBUEN GOBIERNORelaciones exterioresConsolidado | G79: 1570250868 | H79: 1570250868
A80: Pueblo indígena | B80: Recursos PGN | C80: BUEN GOBIERNO | D80: Consolidado | E80: Consolidado | F80: Pueblo indígenaRecursos PGNBUEN GOBIERNOConsolidadoConsolidado | G80: 2470250868 | H80: 2470250868 | I80: =+H79+H75 -> 2470250868
A81: Pueblo indígena | B81: Recursos PGN | C81: Competitividad e infraestructura estratégicas | D81: Ambiente Y Desarrollo Sostenible | E81: MINISTERIO DE AMBIENTE | F81: Pueblo indígenaRecursos PGNCompetitividad e infraestructura estratégicasAmbiente Y Desarrollo SostenibleMINISTERIO DE AMBIENTE | G81: 0
A82: Pueblo indígena | B82: Recursos PGN | C82: Competitividad e infraestructura estratégicas | D82: Ambiente Y Desarrollo Sostenible | E82: Consolidado | F82: Pueblo indígenaRecursos PGNCompetitividad e infraestructura estratégicasAmbiente Y Desarrollo SostenibleConsolidado | G82: 0
A83: Pueblo indígena | B83: Recursos PGN | C83: Competitividad e infraestructura estratégicas | D83: Ciencia y Tecnología | E83: COLCIENCIAS | F83: Pueblo indígenaRecursos PGNCompetitividad e infraestructura estratégicasCiencia y TecnologíaCOLCIENCIAS | G83: 0
A84: Pueblo indígena | B84: Recursos PGN | C84: Competitividad e infraestructura estratégicas | D84: Ciencia y Tecnología | E84: Consolidado | F84: Pueblo indígenaRecursos PGNCompetitividad e infraestructura estratégicasCiencia y TecnologíaConsolidado | G84: 0
A85: Pueblo indígena | B85: Recursos PGN | C85: Competitividad e infraestructura estratégicas | D85: Comercio, Industria Y Turismo | E85: MINCOMERCIO | F85: Pueblo indígenaRecursos PGNCompetitividad e infraestructura estratégicasComercio, Industria Y TurismoMINCOMERCIO | G85: 1380000000 | H85: 1380000000
A86: Pueblo indígena | B86: Recursos PGN | C86: Competitividad e infraestructura estratégicas | D86: Comercio, Industria Y Turismo | E86: Consolidado | F86: Pueblo indígenaRecursos PGNCompetitividad e infraestructura estratégicasComercio, Industria Y TurismoConsolidado | G86: 1380000000 | H86: 1380000000
A87: Pueblo indígena | B87: Recursos PGN | C87: Competitividad e infraestructura estratégicas | D87: Comunicaciones | E87: FONDO DE TECNOLOGIAS DE LA INFO. Y LAS COMUN. - FONTIC | F87: Pueblo indígenaRecursos PGNCompetitividad e infraestructura estratégicasComunicacionesFONDO DE TECNOLOGIAS DE LA INFO. Y LAS COMUN. - FONTIC | G87: 34362170897 | H87: 34362170897
A88: Pueblo indígena | B88: Recursos PGN | C88: Competitividad e infraestructura estratégicas | D88: Comunicaciones | E88: Consolidado | F88: Pueblo indígenaRecursos PGNCompetitividad e infraestructura estratégicasComunicacionesConsolidado | G88: 34362170897 | H88: 34362170897
A89: Pueblo indígena | B89: Recursos PGN | C89: Competitividad e infraestructura estratégicas | D89: Inclusión Social Y Reconciliación | E89: DPS | F89: Pueblo indígenaRecursos PGNCompetitividad e infraestructura estratégicasInclusión Social Y ReconciliaciónDPS | G89: 0
A90: Pueblo indígena | B90: Recursos PGN | C90: Competitividad e infraestructura estratégicas | D90: Inclusión Social Y Reconciliación | E90: Consolidado | F90: Pueblo indígenaRecursos PGNCompetitividad e infraestructura estratégicasInclusión Social Y ReconciliaciónConsolidado | G90: 0
A91: Pueblo indígena | B91: Recursos PGN | C91: Competitividad e infraestructura estratégicas | D91: Interior | E91: MININTERIOR | F91: Pueblo indígenaRecursos PGNCompetitividad e infraestructura estratégicasInteriorMININTERIOR | G91: 0
A92: Pueblo indígena | B92: Recursos PGN | C92: Competitividad e infraestructura estratégicas | D92: Interior | E92: Consolidado | F92: Pueblo indígenaRecursos PGNCompetitividad e infraestructura estratégicasInteriorConsolidado | G92: 0
A93: Pueblo indígena | B93: Recursos PGN | C93: Competitividad e infraestructura estratégicas | D93: Minas Y Energía | E93: MinMinas | F93: Pueblo indígenaRecursos PGNCompetitividad e infraestructura estratégicasMinas Y EnergíaMinMinas | G93: 1520000000 | H93: 1520000000
A94: Pueblo indígena | B94: Recursos PGN | C94: Competitividad e infraestructura estratégicas | D94: Minas Y Energía | E94: Consolidado | F94: Pueblo indígenaRecursos PGNCompetitividad e infraestructura estratégicasMinas Y EnergíaConsolidado | G94: 1520000000 | H94: 1520000000
A95: Pueblo indígena | B95: Recursos PGN | C95: Competitividad e infraestructura estratégicas | D95: Transporte | E95: MINISTERIO DE TRANSPORTE | F95: Pueblo indígenaRecursos PGNCompetitividad e infraestructura estratégicasTransporteMINISTERIO DE TRANSPORTE | G95: 0
A96: Pueblo indígena | B96: Recursos PGN | C96: Competitividad e infraestructura estratégicas | D96: Transporte | E96: Consolidado | F96: Pueblo indígenaRecursos PGNCompetitividad e infraestructura estratégicasTransporteConsolidado | G96: 0
A97: Pueblo indígena | B97: Recursos PGN | C97: Competitividad e infraestructura estratégicas | D97: Minas Y Energía | E97: AGENCIA NACIONAL DE MINERIA | F97: Pueblo indígenaRecursos PGNCompetitividad e infraestructura estratégicasMinas Y EnergíaAGENCIA NACIONAL DE MINERIA | G97: 65161376 | H97: 65161376
A98: Pueblo indígena | B98: Recursos PGN | C98: Competitividad e infraestructura estratégicas | D98: Minas Y Energía | E98: Consolidado | F98: Pueblo indígenaRecursos PGNCompetitividad e infraestructura estratégicasMinas Y EnergíaConsolidado | G98: 65161376 | H98: 65161376
A99: Pueblo indígena | B99: Recursos PGN | C99: Competitividad e infraestructura estratégicas | D99: Transporte | E99: INVIAS | F99: Pueblo indígenaRecursos PGNCompetitividad e infraestructura estratégicasTransporteINVIAS | G99: 129546303882 | H99: 129546303882
A100: Pueblo indígena | B100: Recursos PGN | C100: Competitividad e infraestructura estratégicas | D100: Transporte | E100: Consolidado | F100: Pueblo indígenaRecursos PGNCompetitividad e infraestructura estratégicasTransporteConsolidado | G100: 129546303882 | H100: 129546303882
A101: Pueblo indígena | B101: Recursos PGN | C101: Competitividad e infraestructura estratégicas | D101: Comercio, Industria Y Turismo | E101: ARTESANIAS DE COLOMBIA | F101: Pueblo indígenaRecursos PGNCompetitividad e infraestructura estratégicasComercio, Industria Y TurismoARTESANIAS DE COLOMBIA | G101: 25758560 | H101: 25758560
A102: Pueblo indígena | B102: Recursos PGN | C102: Competitividad e infraestructura estratégicas | D102: Comercio, Industria Y Turismo | E102: Consolidado | F102: Pueblo indígenaRecursos PGNCompetitividad e infraestructura estratégicasComercio, Industria Y TurismoConsolidado | G102: 25758560 | H102: 25758560
A103: Pueblo indígena | B103: Recursos PGN | C103: Competitividad e infraestructura estratégicas | D103: Consolidado | E103: Consolidado | F103: Pueblo indígenaRecursos PGNCompetitividad e infraestructura estratégicasConsolidadoConsolidado | G103: 166899394715 | H103: =+H102+H100+H98+H94++H88+H86 -> 166899394715
G104: 0
G105: 0
A106: Pueblo indígena | B106: Recursos PGN | C106: CRECIMIENTO VERDE | D106: Cultura | E106: MINCULTURA | F106: Pueblo indígenaRecursos PGNCRECIMIENTO VERDECulturaMINCULTURA | G106: 0
A107: Pueblo indígena | B107: Recursos PGN | C107: CRECIMIENTO VERDE | D107: Cultura | E107: Consolidado | F107: Pueblo indígenaRecursos PGNCRECIMIENTO VERDECulturaConsolidado | G107: 0
A108: Pueblo indígena | B108: Recursos PGN | C108: CRECIMIENTO VERDE | D108: Información Estadística | E108: IGAC | F108: Pueblo indígenaRecursos PGNCRECIMIENTO VERDEInformación EstadísticaIGAC | G108: 0
A109: Pueblo indígena | B109: Recursos PGN | C109: CRECIMIENTO VERDE | D109: Información Estadística | E109: Consolidado | F109: Pueblo indígenaRecursos PGNCRECIMIENTO VERDEInformación EstadísticaConsolidado | G109: 0
A110: Pueblo indígena | B110: Recursos PGN | C110: CRECIMIENTO VERDE | D110: Interior | E110: MININTERIOR | F110: Pueblo indígenaRecursos PGNCRECIMIENTO VERDEInteriorMININTERIOR | G110: 0
A111: Pueblo indígena | B111: Recursos PGN | C111: CRECIMIENTO VERDE | D111: Interior | E111: Consolidado | F111: Pueblo indígenaRecursos PGNCRECIMIENTO VERDEInteriorConsolidado | G111: 0
A112: Pueblo indígena | B112: Recursos PGN | C112: CRECIMIENTO VERDE | D112: Ambiente Y Desarrollo Sostenible | E112: CORPOR. AUTONOMA REGIONAL PARA EL DES. CHOCO - CODECHOCO | F112: Pueblo indígenaRecursos PGNCRECIMIENTO VERDEAmbiente Y Desarrollo SostenibleCORPOR. AUTONOMA REGIONAL PARA EL DES. CHOCO - CODECHOCO | G112: 50000000 | I112: 50000000
A113: Pueblo indígena | B113: Recursos PGN | C113: CRECIMIENTO VERDE | D113: Ambiente Y Desarrollo Sostenible | E113: Consolidado | F113: Pueblo indígenaRecursos PGNCRECIMIENTO VERDEAmbiente Y Desarrollo SostenibleConsolidado | G113: 50000000
A114: Pueblo indígena | B114: Recursos PGN | C114: CRECIMIENTO VERDE | D114: Interior | E114: NASA KI WE | F114: Pueblo indígenaRecursos PGNCRECIMIENTO VERDEInteriorNASA KI WE | G114: 9781920283 | H114: =+G116+G112 -> 2324444971 | I114: 9781920283
A115: Pueblo indígena | B115: Recursos PGN | C115: CRECIMIENTO VERDE | D115: Interior | E115: Consolidado | F115: Pueblo indígenaRecursos PGNCRECIMIENTO VERDEInteriorConsolidado | G115: 9781920283
A116: Pueblo indígena | B116: Recursos PGN | C116: CRECIMIENTO VERDE | D116: Ambiente Y Desarrollo Sostenible | E116: UAE. Sistema de Parques Nal Naturales | F116: Pueblo indígenaRecursos PGNCRECIMIENTO VERDEAmbiente Y Desarrollo SostenibleUAE. Sistema de Parques Nal Naturales | G116: 2274444971 | I116: 2274444971
A117: Pueblo indígena | B117: Recursos PGN | C117: CRECIMIENTO VERDE | D117: Ambiente Y Desarrollo Sostenible | E117: Consolidado | F117: Pueblo indígenaRecursos PGNCRECIMIENTO VERDEAmbiente Y Desarrollo SostenibleConsolidado | G117: 2274444971
A118: Pueblo indígena | B118: Recursos PGN | C118: CRECIMIENTO VERDE | D118: Consolidado | E118: Consolidado | F118: Pueblo indígenaRecursos PGNCRECIMIENTO VERDEConsolidadoConsolidado | G118: 12106365254 | H118: =+G116+G114+G112 -> 12106365254
A119: Pueblo indígena | B119: Recursos PGN | C119: Inversiones adicionales | D119: Agropecuario | E119: INCODER | F119: Pueblo indígenaRecursos PGNInversiones adicionalesAgropecuarioINCODER | G119: 0
A120: Pueblo indígena | B120: Recursos PGN | C120: Inversiones adicionales | D120: Agropecuario | E120: MinAgricultura | F120: Pueblo indígenaRecursos PGNInversiones adicionalesAgropecuarioMinAgricultura | G120: 0
A121: Pueblo indígena | B121: Recursos PGN | C121: Inversiones adicionales | D121: Agropecuario | E121: Consolidado | F121: Pueblo indígenaRecursos PGNInversiones adicionalesAgropecuarioConsolidado | G121: 0
A122: Pueblo indígena | B122: Recursos PGN | C122: Inversiones adicionales | D122: Ambiente Y Desarrollo Sostenible | E122: CODECHOCO | F122: Pueblo indígenaRecursos PGNInversiones adicionalesAmbiente Y Desarrollo SostenibleCODECHOCO | G122: 0
A123: Pueblo indígena | B123: Recursos PGN | C123: Inversiones adicionales | D123: Ambiente Y Desarrollo Sostenible | E123: MINISTERIO DE AMBIENTE | F123: Pueblo indígenaRecursos PGNInversiones adicionalesAmbiente Y Desarrollo SostenibleMINISTERIO DE AMBIENTE | G123: 0
A124: Pueblo indígena | B124: Recursos PGN | C124: Inversiones adicionales | D124: Ambiente Y Desarrollo Sostenible | E124: Consolidado | F124: Pueblo indígenaRecursos PGNInversiones adicionalesAmbiente Y Desarrollo SostenibleConsolidado | G124: 0
A125: Pueblo indígena | B125: Recursos PGN | C125: Inversiones adicionales | D125: Comercio, Industria Y Turismo | E125: ARTESANIAS DE COLOMBIA | F125: Pueblo indígenaRecursos PGNInversiones adicionalesComercio, Industria Y TurismoARTESANIAS DE COLOMBIA | G125: 0
A126: Pueblo indígena | B126: Recursos PGN | C126: Inversiones adicionales | D126: Comercio, Industria Y Turismo | E126: Consolidado | F126: Pueblo indígenaRecursos PGNInversiones adicionalesComercio, Industria Y TurismoConsolidado | G126: 0
A127: Pueblo indígena | B127: Recursos PGN | C127: Inversiones adicionales | D127: Comunicaciones | E127: MINISTERIO DE LAS TIC | F127: Pueblo indígenaRecursos PGNInversiones adicionalesComunicacionesMINISTERIO DE LAS TIC | G127: 0
A128: Pueblo indígena | B128: Recursos PGN | C128: Inversiones adicionales | D128: Comunicaciones | E128: Consolidado | F128: Pueblo indígenaRecursos PGNInversiones adicionalesComunicacionesConsolidado | G128: 0
A129: Pueblo indígena | B129: Recursos PGN | C129: Inversiones adicionales | D129: Cultura | E129: MINCULTURA | F129: Pueblo indígenaRecursos PGNInversiones adicionalesCulturaMINCULTURA | G129: 0
A130: Pueblo indígena | B130: Recursos PGN | C130: Inversiones adicionales | D130: Cultura | E130: Consolidado | F130: Pueblo indígenaRecursos PGNInversiones adicionalesCulturaConsolidado | G130: 0
A131: Pueblo indígena | B131: Recursos PGN | C131: Inversiones adicionales | D131: Educación | E131: MinEducación | F131: Pueblo indígenaRecursos PGNInversiones adicionalesEducaciónMinEducación | G131: 0
A132: Pueblo indígena | B132: Recursos PGN | C132: Inversiones adicionales | D132: Educación | E132: Consolidado | F132: Pueblo indígenaRecursos PGNInversiones adicionalesEducaciónConsolidado | G132: 0
A133: Pueblo indígena | B133: Recursos PGN | C133: Inversiones adicionales | D133: Inclusión Social Y Reconciliación | E133: DPS | F133: Pueblo indígenaRecursos PGNInversiones adicionalesInclusión Social Y ReconciliaciónDPS | G133: 0
A134: Pueblo indígena | B134: Recursos PGN | C134: Inversiones adicionales | D134: Inclusión Social Y Reconciliación | E134: ICBF | F134: Pueblo indígenaRecursos PGNInversiones adicionalesInclusión Social Y ReconciliaciónICBF | G134: 0
A135: Pueblo indígena | B135: Recursos PGN | C135: Inversiones adicionales | D135: Inclusión Social Y Reconciliación | E135: UNIDAD DE VÍCTIMAS | F135: Pueblo indígenaRecursos PGNInversiones adicionalesInclusión Social Y ReconciliaciónUNIDAD DE VÍCTIMAS | G135: 0
A136: Pueblo indígena | B136: Recursos PGN | C136: Inversiones adicionales | D136: Inclusión Social Y Reconciliación | E136: Consolidado | F136: Pueblo indígenaRecursos PGNInversiones adicionalesInclusión Social Y ReconciliaciónConsolidado | G136: 0
A137: Pueblo indígena | B137: Recursos PGN | C137: Inversiones adicionales | D137: Interior | E137: MININTERIOR | F137: Pueblo indígenaRecursos PGNInversiones adicionalesInteriorMININTERIOR | G137: 0
A138: Pueblo indígena | B138: Recursos PGN | C138: Inversiones adicionales | D138: Interior | E138: Consolidado | F138: Pueblo indígenaRecursos PGNInversiones adicionalesInteriorConsolidado | G138: 0
A139: Pueblo indígena | B139: Recursos PGN | C139: Inversiones adicionales | D139: Justicia Y Del Derecho | E139: MinJusticia | F139: Pueblo indígenaRecursos PGNInversiones adicionalesJusticia Y Del DerechoMinJusticia | G139: 0
A140: Pueblo indígena | B140: Recursos PGN | C140: Inversiones adicionales | D140: Justicia Y Del Derecho | E140: Consolidado | F140: Pueblo indígenaRecursos PGNInversiones adicionalesJusticia Y Del DerechoConsolidado | G140: 0
A141: Pueblo indígena | B141: Recursos PGN | C141: Inversiones adicionales | D141: Minas Y Energía | E141: AGENCIA NACIONAL DE MINERIA | F141: Pueblo indígenaRecursos PGNInversiones adicionalesMinas Y EnergíaAGENCIA NACIONAL DE MINERIA | G141: 0
A142: Pueblo indígena | B142: Recursos PGN | C142: Inversiones adicionales | D142: Minas Y Energía | E142: MinMinas | F142: Pueblo indígenaRecursos PGNInversiones adicionalesMinas Y EnergíaMinMinas | G142: 0
A143: Pueblo indígena | B143: Recursos PGN | C143: Inversiones adicionales | D143: Minas Y Energía | E143: Consolidado | F143: Pueblo indígenaRecursos PGNInversiones adicionalesMinas Y EnergíaConsolidado | G143: 0
A144: Pueblo indígena | B144: Recursos PGN | C144: Inversiones adicionales | D144: Registraduria | E144: Registraduría General de la Nación | F144: Pueblo indígenaRecursos PGNInversiones adicionalesRegistraduriaRegistraduría General de la Nación | G144: 0
A145: Pueblo indígena | B145: Recursos PGN | C145: Inversiones adicionales | D145: Registraduria | E145: Consolidado | F145: Pueblo indígenaRecursos PGNInversiones adicionalesRegistraduriaConsolidado | G145: 0
A146: Pueblo indígena | B146: Recursos PGN | C146: Inversiones adicionales | D146: Trabajo | E146: MINTRABAJO | F146: Pueblo indígenaRecursos PGNInversiones adicionalesTrabajoMINTRABAJO | G146: 0
A147: Pueblo indígena | B147: Recursos PGN | C147: Inversiones adicionales | D147: Trabajo | E147: Consolidado | F147: =+A147&B147&C147&D147&E147 -> Pueblo indígenaRecursos PGNInversiones adicionalesTrabajoConsolidado | G147: 0
A148: Pueblo indígena | B148: Recursos PGN | C148: Inversiones adicionales | D148: Transporte | E148: INVIAS | F148: Pueblo indígenaRecursos PGNInversiones adicionalesTransporteINVIAS | G148: 0
A149: Pueblo indígena | B149: Recursos PGN | C149: Inversiones adicionales | D149: Transporte | E149: Consolidado | F149: Pueblo indígenaRecursos PGNInversiones adicionalesTransporteConsolidado | G149: 0
A150: Pueblo indígena | B150: Recursos PGN | C150: Inversiones adicionales | D150: Consolidado | E150: Consolidado | F150: Pueblo indígenaRecursos PGNInversiones adicionalesConsolidadoConsolidado | G150: 0
A151: Pueblo indígena | B151: Recursos PGN | C151: MOVILIDAD SOCIAL | D151: Deporte Y Recreación | E151: INCODER | F151: Pueblo indígenaRecursos PGNMOVILIDAD SOCIALDeporte Y RecreaciónINCODER | G151: 0 | H151: 1702358891 | I151: 1702358891 | J151: COLDEPORTES
A152: Pueblo indígena | B152: Recursos PGN | C152: MOVILIDAD SOCIAL | D152: Deporte Y Recreación | E152: Consolidado | F152: Pueblo indígenaRecursos PGNMOVILIDAD SOCIALDeporte Y RecreaciónConsolidado | G152: 0 | H152: 1702358891 | I152: 1702358891 | J152: Consolidado
A153: Pueblo indígena | B153: Recursos PGN | C153: MOVILIDAD SOCIAL | D153: Comunicaciones | E153: ANTV | F153: Pueblo indígenaRecursos PGNMOVILIDAD SOCIALComunicacionesANTV | G153: 0 | H153: 0 | I153: 0 | J153: ANTV
A154: Pueblo indígena | B154: Recursos PGN | C154: MOVILIDAD SOCIAL | D154: Comunicaciones | E154: MINISTERIO DE LAS TIC | F154: Pueblo indígenaRecursos PGNMOVILIDAD SOCIALComunicacionesMINISTERIO DE LAS TIC | G154: 0 | H154: 0 | I154: 0 | J154: MINISTERIO DE LAS TIC
A155: Pueblo indígena | B155: Recursos PGN | C155: MOVILIDAD SOCIAL | D155: Comunicaciones | E155: Consolidado | F155: Pueblo indígenaRecursos PGNMOVILIDAD SOCIALComunicacionesConsolidado | G155: 0 | H155: 0 | I155: 0 | J155: Consolidado
A156: Pueblo indígena | B156: Recursos PGN | C156: MOVILIDAD SOCIAL | D156: Cultura | E156: MINCULTURA | F156: Pueblo indígenaRecursos PGNMOVILIDAD SOCIALCulturaMINCULTURA | G156: 9295537598 | H156: 9295537598 | I156: 9295537598 | J156: MINCULTURA
A157: Pueblo indígena | B157: Recursos PGN | C157: MOVILIDAD SOCIAL | D157: Cultura | E157: Consolidado | F157: Pueblo indígenaRecursos PGNMOVILIDAD SOCIALCulturaConsolidado | G157: 9295537598 | H157: 9295537598 | I157: 9295537598 | J157: Consolidado
A158: Pueblo indígena | B158: Recursos PGN | C158: MOVILIDAD SOCIAL | D158: Deporte Y Recreación | E158: COLDEPORTES | F158: Pueblo indígenaRecursos PGNMOVILIDAD SOCIALDeporte Y RecreaciónCOLDEPORTES | G158: 1702358891 | H158: 0 | I158: 0 | J158: COLDEPORTES
A159: Pueblo indígena | B159: Recursos PGN | C159: MOVILIDAD SOCIAL | D159: Deporte Y Recreación | E159: Consolidado | F159: Pueblo indígenaRecursos PGNMOVILIDAD SOCIALDeporte Y RecreaciónConsolidado | G159: 1702358891 | H159: 0 | I159: 0 | J159: Consolidado
A160: Pueblo indígena | B160: Recursos PGN | C160: MOVILIDAD SOCIAL | D160: Educación | E160: MinEducación | F160: Pueblo indígenaRecursos PGNMOVILIDAD SOCIALEducaciónMinEducación | G160: 62301264053 | H160: 62301264053 | I160: 62301264053 | J160: MinEducación
A161: Pueblo indígena | B161: Recursos PGN | C161: MOVILIDAD SOCIAL | D161: Educación | E161: Consolidado | F161: Pueblo indígenaRecursos PGNMOVILIDAD SOCIALEducaciónConsolidado | G161: 62301264053 | H161: 62301264053 | I161: 62301264053 | J161: Consolidado
A162: Pueblo indígena | B162: Recursos PGN | C162: MOVILIDAD SOCIAL | D162: Inclusión Social Y Reconciliación | E162: DPS | F162: Pueblo indígenaRecursos PGNMOVILIDAD SOCIALInclusión Social Y ReconciliaciónDPS | G162: 141315292863 | H162: 141315292863 | I162: 141315292863 | J162: DPS
A163: Pueblo indígena | B163: Recursos PGN | C163: MOVILIDAD SOCIAL | D163: Inclusión Social Y Reconciliación | E163: ICBF | F163: Pueblo indígenaRecursos PGNMOVILIDAD SOCIALInclusión Social Y ReconciliaciónICBF | G163: 149643221205
A164: Pueblo indígena | B164: Recursos PGN | C164: MOVILIDAD SOCIAL | D164: Inclusión Social Y Reconciliación | E164: ANSPE | F164: Pueblo indígenaRecursos PGNMOVILIDAD SOCIALInclusión Social Y ReconciliaciónANSPE | G164: 15481298463 | H164: 15481298463 | I164: 15481298463 | J164: ANSPE
A165: Pueblo indígena | B165: Recursos PGN | C165: MOVILIDAD SOCIAL | D165: Inclusión Social Y Reconciliación | E165: UNIDAD DE VÍCTIMAS | F165: Pueblo indígenaRecursos PGNMOVILIDAD SOCIALInclusión Social Y ReconciliaciónUNIDAD DE VÍCTIMAS | G165: 0
A166: Pueblo indígena | B166: Recursos PGN | C166: MOVILIDAD SOCIAL | D166: Inclusión Social Y Reconciliación | E166: UAE. PARA LA CONSOLIDACIÓN TERRITORIAL | F166: Pueblo indígenaRecursos PGNMOVILIDAD SOCIALInclusión Social Y ReconciliaciónUAE. PARA LA CONSOLIDACIÓN TERRITORIAL | G166: 2022570576 | H166: 2022570576 | I166: 2022570576 | J166: UAE. PARA LA CONSOLIDACIÓN TERRITORIAL
A167: Pueblo indígena | B167: Recursos PGN | C167: MOVILIDAD SOCIAL | D167: Inclusión Social Y Reconciliación | E167: Consolidado | F167: Pueblo indígenaRecursos PGNMOVILIDAD SOCIALInclusión Social Y ReconciliaciónConsolidado | G167: 308462383107 | H167: 158819161902 | I167: =+I166+I164+I162 -> 158819161902 | J167: Consolidado
A168: Pueblo indígena | B168: Recursos PGN | C168: MOVILIDAD SOCIAL | D168: Relaciones exteriores | E168: MINISTERIO DE RELACIONES EXTERIORES | F168: Pueblo indígenaRecursos PGNMOVILIDAD SOCIALRelaciones exterioresMINISTERIO DE RELACIONES EXTERIORES | G168: 0
A169: Pueblo indígena | B169: Recursos PGN | C169: MOVILIDAD SOCIAL | D169: Relaciones exteriores | E169: Consolidado | F169: Pueblo indígenaRecursos PGNMOVILIDAD SOCIALRelaciones exterioresConsolidado | G169: 0
A170: Pueblo indígena | B170: Recursos PGN | C170: MOVILIDAD SOCIAL | D170: Saludy Protección Social | E170: MINISTERIO DE SALUD | F170: Pueblo indígenaRecursos PGNMOVILIDAD SOCIALSaludy Protección SocialMINISTERIO DE SALUD | G170: 0
A171: Pueblo indígena | B171: Recursos PGN | C171: MOVILIDAD SOCIAL | D171: Saludy Protección Social | E171: Consolidado | F171: Pueblo indígenaRecursos PGNMOVILIDAD SOCIALSaludy Protección SocialConsolidado | G171: 0
A172: Pueblo indígena | B172: Recursos PGN | C172: MOVILIDAD SOCIAL | D172: Cultura | E172: ARCHIVO GENERAL DE LA NACIÓN | F172: Pueblo indígenaRecursos PGNMOVILIDAD SOCIALCulturaARCHIVO GENERAL DE LA NACIÓN | G172: 124725955 | H172: 124725955 | I172: 124725955 | J172: ARCHIVO GENERAL DE LA NACIÓN
A173: Pueblo indígena | B173: Recursos PGN | C173: MOVILIDAD SOCIAL | D173: Cultura | E173: INSTITUTO CARO Y CUERVO | F173: Pueblo indígenaRecursos PGNMOVILIDAD SOCIALCulturaINSTITUTO CARO Y CUERVO | G173: 180250000
A174: Pueblo indígena | B174: Recursos PGN | C174: MOVILIDAD SOCIAL | D174: Cultura | E174: Consolidado | F174: Pueblo indígenaRecursos PGNMOVILIDAD SOCIALCulturaConsolidado | G174: 304975955 | H174: 124725955 | I174: 124725955 | J174: Consolidado
A175: Pueblo indígena | B175: Recursos PGN | C175: MOVILIDAD SOCIAL | D175: Educación | E175: INSOR | F175: Pueblo indígenaRecursos PGNMOVILIDAD SOCIALEducaciónINSOR | G175: 16900000 | H175: 16900000 | I175: 16900000 | J175: INSOR
A176: Pueblo indígena | B176: Recursos PGN | C176: MOVILIDAD SOCIAL | D176: Educación | E176: Consolidado | F176: Pueblo indígenaRecursos PGNMOVILIDAD SOCIALEducaciónConsolidado | G176: 16900000 | H176: 16900000 | I176: 16900000 | J176: Consolidado
A177: Pueblo indígena | B177: Recursos PGN | C177: MOVILIDAD SOCIAL | D177: Trabajo | E177: MINTRABAJO | F177: Pueblo indígenaRecursos PGNMOVILIDAD SOCIALTrabajoMINTRABAJO | G177: 2.566053173e+10 | H177: 2.566053173e+10 | I177: 2.566053173e+10 | J177: MINTRABAJO
A178: Pueblo indígena | B178: Recursos PGN | C178: MOVILIDAD SOCIAL | D178: Trabajo | E178: SENA | F178: Pueblo indígenaRecursos PGNMOVILIDAD SOCIALTrabajoSENA | G178: 0
A179: Pueblo indígena | B179: Recursos PGN | C179: MOVILIDAD SOCIAL | D179: Trabajo | E179: Consolidado | F179: Pueblo indígenaRecursos PGNMOVILIDAD SOCIALTrabajoConsolidado | G179: 25660531728 | H179: 2.566053173e+10 | I179: 2.566053173e+10 | J179: Consolidado
A180: Pueblo indígena | B180: Recursos PGN | C180: MOVILIDAD SOCIAL | D180: Consolidado | E180: Consolidado | F180: Pueblo indígenaRecursos PGNMOVILIDAD SOCIALConsolidadoConsolidado | G180: 407743951332
A181: Pueblo indígena | B181: Recursos PGN | C181: SEGURIDAD, JUSTICIA Y DEMOCRACIA | D181: Agropecuario | E181: MinAgricultura | F181: Pueblo indígenaRecursos PGNSEGURIDAD, JUSTICIA Y DEMOCRACIA AgropecuarioMinAgricultura | G181: 0 | H181: 0 | J181: INSOR
A182: Pueblo indígena | B182: Recursos PGN | C182: SEGURIDAD, JUSTICIA Y DEMOCRACIA | D182: Agropecuario | E182: Unidad Administrativa Especial de Gestión de Restitución de Tierras Despojadas (URT) | F182: Pueblo indígenaRecursos PGNSEGURIDAD, JUSTICIA Y DEMOCRACIA AgropecuarioUnidad Administrativa Especial de Gestión de Restitución de Tierras Despojadas (URT) | G182: 0 | H182: 0 | J182: Consolidado
A183: Pueblo indígena | B183: Recursos PGN | C183: SEGURIDAD, JUSTICIA Y DEMOCRACIA | D183: Agropecuario | E183: Consolidado | F183: Pueblo indígenaRecursos PGNSEGURIDAD, JUSTICIA Y DEMOCRACIA AgropecuarioConsolidado | G183: 0 | H183: 0 | J183: INSTITUTO CARO Y CUERVO
A184: Pueblo indígena | B184: Recursos PGN | C184: SEGURIDAD, JUSTICIA Y DEMOCRACIA | D184: Comunicaciones | E184: MINISTERIO DE LAS TIC | F184: Pueblo indígenaRecursos PGNSEGURIDAD, JUSTICIA Y DEMOCRACIA ComunicacionesMINISTERIO DE LAS TIC | G184: 0 | H184: 0 | J184: Consolidado
A185: Pueblo indígena | B185: Recursos PGN | C185: SEGURIDAD, JUSTICIA Y DEMOCRACIA | D185: Comunicaciones | E185: Consolidado | F185: Pueblo indígenaRecursos PGNSEGURIDAD, JUSTICIA Y DEMOCRACIA ComunicacionesConsolidado | G185: 0 | H185: 0 | J185: ICBF
A186: Pueblo indígena | B186: Recursos PGN | C186: SEGURIDAD, JUSTICIA Y DEMOCRACIA | D186: Inclusión Social Y Reconciliación | E186: CENTRO DE MEMORIA HISTÓRICA | F186: Pueblo indígenaRecursos PGNSEGURIDAD, JUSTICIA Y DEMOCRACIA Inclusión Social Y ReconciliaciónCENTRO DE MEMORIA HISTÓRICA | G186: 419896207 | H186: 419896207 | J186: Consolidado
A187: Pueblo indígena | B187: Recursos PGN | C187: SEGURIDAD, JUSTICIA Y DEMOCRACIA | D187: Inclusión Social Y Reconciliación | E187: DPS | F187: Pueblo indígenaRecursos PGNSEGURIDAD, JUSTICIA Y DEMOCRACIA Inclusión Social Y ReconciliaciónDPS | G187: 21782213940 | H187: 21782213940 | J187: MININTERIOR
A188: Pueblo indígena | B188: Recursos PGN | C188: SEGURIDAD, JUSTICIA Y DEMOCRACIA | D188: Inclusión Social Y Reconciliación | E188: UNIDAD DE VÍCTIMAS | F188: Pueblo indígenaRecursos PGNSEGURIDAD, JUSTICIA Y DEMOCRACIA Inclusión Social Y ReconciliaciónUNIDAD DE VÍCTIMAS | G188: 23531317663 | H188: 23531317663 | J188: Consolidado
A189: Pueblo indígena | B189: Recursos PGN | C189: SEGURIDAD, JUSTICIA Y DEMOCRACIA | D189: Inclusión Social Y Reconciliación | E189: Consolidado | F189: Pueblo indígenaRecursos PGNSEGURIDAD, JUSTICIA Y DEMOCRACIA Inclusión Social Y ReconciliaciónConsolidado | G189: 45733427810 | H189: =+H188+H187+H186 -> 45733427810
A190: Pueblo indígena | B190: Recursos PGN | C190: SEGURIDAD, JUSTICIA Y DEMOCRACIA | D190: Interior | E190: MININTERIOR | F190: Pueblo indígenaRecursos PGNSEGURIDAD, JUSTICIA Y DEMOCRACIA InteriorMININTERIOR | G190: 3790999010 | H190: 3790999010
A191: Pueblo indígena | B191: Recursos PGN | C191: SEGURIDAD, JUSTICIA Y DEMOCRACIA | D191: Interior | E191: Consolidado | F191: Pueblo indígenaRecursos PGNSEGURIDAD, JUSTICIA Y DEMOCRACIA InteriorConsolidado | G191: 3790999010 | H191: 3790999010
A192: Pueblo indígena | B192: Recursos PGN | C192: SEGURIDAD, JUSTICIA Y DEMOCRACIA | D192: Justicia Y Del Derecho | E192: MinJusticia | F192: Pueblo indígenaRecursos PGNSEGURIDAD, JUSTICIA Y DEMOCRACIA Justicia Y Del DerechoMinJusticia | G192: 223186137 | H192: 223186137
A193: Pueblo indígena | B193: Recursos PGN | C193: SEGURIDAD, JUSTICIA Y DEMOCRACIA | D193: Justicia Y Del Derecho | E193: Consolidado | F193: Pueblo indígenaRecursos PGNSEGURIDAD, JUSTICIA Y DEMOCRACIA Justicia Y Del DerechoConsolidado | G193: 223186137 | H193: 223186137
A194: Pueblo indígena | B194: Recursos PGN | C194: SEGURIDAD, JUSTICIA Y DEMOCRACIA | D194: Justicia Y Del Derecho | E194: ACR | F194: Pueblo indígenaRecursos PGNSEGURIDAD, JUSTICIA Y DEMOCRACIA Justicia Y Del DerechoACR | G194: 0 | H194: 0
A195: Pueblo indígena | B195: Recursos PGN | C195: SEGURIDAD, JUSTICIA Y DEMOCRACIA | D195: Presidencia De La Republica | E195: PRESIDENCIA | F195: Pueblo indígenaRecursos PGNSEGURIDAD, JUSTICIA Y DEMOCRACIA Presidencia De La RepublicaPRESIDENCIA | G195: 120000000 | H195: 120000000
A196: Pueblo indígena | B196: Recursos PGN | C196: SEGURIDAD, JUSTICIA Y DEMOCRACIA | D196: Presidencia De La Republica | E196: Consolidado | F196: Pueblo indígenaRecursos PGNSEGURIDAD, JUSTICIA Y DEMOCRACIA Presidencia De La RepublicaConsolidado | G196: 120000000 | H196: 120000000
A197: Pueblo indígena | B197: Recursos PGN | C197: SEGURIDAD, JUSTICIA Y DEMOCRACIA | D197: Rama Judicial | E197: Consejo Superior de la Judicatura | F197: Pueblo indígenaRecursos PGNSEGURIDAD, JUSTICIA Y DEMOCRACIA Rama JudicialConsejo Superior de la Judicatura | G197: 0 | H197: 0
A198: Pueblo indígena | B198: Recursos PGN | C198: SEGURIDAD, JUSTICIA Y DEMOCRACIA | D198: Rama Judicial | E198: Consolidado | F198: Pueblo indígenaRecursos PGNSEGURIDAD, JUSTICIA Y DEMOCRACIA Rama JudicialConsolidado | G198: 0 | H198: 0
A199: Pueblo indígena | B199: Recursos PGN | C199: SEGURIDAD, JUSTICIA Y DEMOCRACIA | D199: Consolidado | E199: Consolidado | F199: Pueblo indígenaRecursos PGNSEGURIDAD, JUSTICIA Y DEMOCRACIA ConsolidadoConsolidado | G199: 49867612957 | H199: 49867612957
A200: Pueblo indígena | B200: Recursos PGN | C200: TRANSFORMACIÓN DEL CAMPO | D200: Agropecuario | E200: INCODER | F200: Pueblo indígenaRecursos PGNTRANSFORMACIÓN DEL CAMPOAgropecuarioINCODER | G200: 39776716812 | H200: 39776716812
A201: Pueblo indígena | B201: Recursos PGN | C201: TRANSFORMACIÓN DEL CAMPO | D201: Agropecuario | E201: MinAgricultura | F201: Pueblo indígenaRecursos PGNTRANSFORMACIÓN DEL CAMPOAgropecuarioMinAgricultura | G201: 176884736846 | H201: 176884736846
A202: Pueblo indígena | B202: Recursos PGN | C202: TRANSFORMACIÓN DEL CAMPO | D202: Agropecuario | E202: Consolidado | F202: Pueblo indígenaRecursos PGNTRANSFORMACIÓN DEL CAMPOAgropecuarioConsolidado | G202: 216661453658 | H202: 216661453658
A203: Pueblo indígena | B203: Recursos PGN | C203: TRANSFORMACIÓN DEL CAMPO | D203: Comercio, Industria Y Turismo | E203: MINCOMERCIO | F203: Pueblo indígenaRecursos PGNTRANSFORMACIÓN DEL CAMPOComercio, Industria Y TurismoMINCOMERCIO | G203: 0 | H203: 0
A204: Pueblo indígena | B204: Recursos PGN | C204: TRANSFORMACIÓN DEL CAMPO | D204: Comercio, Industria Y Turismo | E204: Consolidado | F204: Pueblo indígenaRecursos PGNTRANSFORMACIÓN DEL CAMPOComercio, Industria Y TurismoConsolidado | G204: 0 | H204: 0
... 449 more rows

Sheet METODOLOGIA PUEBLOS INDIGENAS
M3: VOLVER AL CONTENIDO
L45: SD

Sheet INTRODUCCION (hidden)
M7: VOLVER AL CONTENIDO

Sheet METODLOGIA (hidden)
M6: VOLVER AL CONTENIDO

Sheet Tab Pres RROM (hidden)
A2: Base para busqueda 1 | E2: ok
A3: Grupo étnico | B3: Fuente de financiación | C3: area de incidencia | E3: Total
A4: Pueblo indígena | B4: Recursos PGN | C4: Nivel Nacional | D4: =+A4&B4&C4 -> Pueblo indígenaRecursos PGNNivel Nacional | E4: 8.557490318e+11 | G4: 1050422352565 | H4: 8.557490318e+11
A5: Pueblo indígena | B5: Recursos PGN | C5: Consolidado | D5: =+A5&B5&C5 -> Pueblo indígenaRecursos PGNConsolidado | E5: 8.557490318e+11 | G5: 1050422352565
A6: Pueblo indígena | B6: Recursos SGP | C6: AMAZONAS | D6: Pueblo indígenaRecursos SGPAMAZONAS | E6: 9086379432 | F6: 4169231504 | G6: 9086379432
A7: Pueblo indígena | B7: Recursos SGP | C7: ANTIOQUIA | D7: Pueblo indígenaRecursos SGPANTIOQUIA | E7: 2866347189 | F7: 2866347189 | G7: 2866347189
A8: Pueblo indígena | B8: Recursos SGP | C8: ARAUCA | D8: Pueblo indígenaRecursos SGPARAUCA | E8: 630480993 | F8: 630480993 | G8: 630480993
A9: Pueblo indígena | B9: Recursos SGP | C9: BOYACA | D9: Pueblo indígenaRecursos SGPBOYACA | E9: 654498039 | F9: 654498039 | G9: 654498039
A10: Pueblo indígena | B10: Recursos SGP | C10: CALDAS | D10: Pueblo indígenaRecursos SGPCALDAS | E10: 6822585231 | F10: 6822585231 | G10: 6822585231
A11: Pueblo indígena | B11: Recursos SGP | C11: CAQUETA | D11: Pueblo indígenaRecursos SGPCAQUETA | E11: 1245263694 | F11: 1245263694 | G11: 1245263694
A12: Pueblo indígena | B12: Recursos SGP | C12: CASANARE | D12: Pueblo indígenaRecursos SGPCASANARE | E12: 967352231 | F12: 967352231 | G12: 967352231
A13: Pueblo indígena | B13: Recursos SGP | C13: CAUCA | D13: Pueblo indígenaRecursos SGPCAUCA | E13: 33240026504 | F13: 33240026504 | G13: 33240026504
A14: Pueblo indígena | B14: Recursos SGP | C14: CESAR | D14: Pueblo indígenaRecursos SGPCESAR | E14: 6118174675 | F14: 6118174675 | G14: 6118174675
A15: Pueblo indígena | B15: Recursos SGP | C15: CHOCO | D15: Pueblo indígenaRecursos SGPCHOCO | E15: 8018587220 | F15: 8018587220 | G15: 8018587220
A16: Pueblo indígena | B16: Recursos SGP | C16: CORDOBA | D16: Pueblo indígenaRecursos SGPCORDOBA | E16: 7757103239 | F16: 7757103239 | G16: 7757103239
A17: Pueblo indígena | B17: Recursos SGP | C17: CUNDINAMARCA | D17: Pueblo indígenaRecursos SGPCUNDINAMARCA | E17: 121829483 | F17: 121829483 | G17: 121829483
A18: Pueblo indígena | B18: Recursos SGP | C18: GUAINIA | D18: Pueblo indígenaRecursos SGPGUAINIA | E18: 5053111215 | F18: 2405749339 | G18: 5053111215
A19: Pueblo indígena | B19: Recursos SGP | C19: GUAVIARE | D19: Pueblo indígenaRecursos SGPGUAVIARE | E19: 1487446751 | F19: 1487446751 | G19: 1487446751
A20: Pueblo indígena | B20: Recursos SGP | C20: HUILA | D20: Pueblo indígenaRecursos SGPHUILA | E20: 951423861 | F20: 951423861 | G20: 951423861
A21: Pueblo indígena | B21: Recursos SGP | C21: LA GUAJIRA | D21: Pueblo indígenaRecursos SGPLA GUAJIRA | E21: 37709981904 | F21: 37709981904 | G21: 37709981904
A22: Pueblo indígena | B22: Recursos SGP | C22: MAGDALENA | D22: Pueblo indígenaRecursos SGPMAGDALENA | E22: 1281356349 | F22: 1281356349 | G22: 1281356349
A23: Pueblo indígena | B23: Recursos SGP | C23: META | D23: Pueblo indígenaRecursos SGPMETA | E23: 1593980463 | F23: 1593980463 | G23: 1593980463
A24: Pueblo indígena | B24: Recursos SGP | C24: N. DE SANTANDER | D24: Pueblo indígenaRecursos SGPN. DE SANTANDER | E24: 18221984903 | F24: 705483946 | G24: 18221984903
A25: Pueblo indígena | B25: Recursos SGP | C25: NARIÑO | D25: Pueblo indígenaRecursos SGPNARIÑO | E25: 705483946 | F25: 18221984903 | G25: 705483946
A26: Pueblo indígena | B26: Recursos SGP | C26: PUTUMAYO | D26: Pueblo indígenaRecursos SGPPUTUMAYO | E26: 4011249152 | F26: 4011249152 | G26: 4011249152
A27: Pueblo indígena | B27: Recursos SGP | C27: QUINDIO | D27: Pueblo indígenaRecursos SGPQUINDIO | E27: 31128238 | F27: 31128238 | G27: 31128238
A28: Pueblo indígena | B28: Recursos SGP | C28: RISARALDA | D28: Pueblo indígenaRecursos SGPRISARALDA | E28: 1473224366 | F28: 1473224366 | G28: 1473224366
A29: Pueblo indígena | B29: Recursos SGP | C29: SANTANDER | D29: Pueblo indígenaRecursos SGPSANTANDER | E29: 133905093 | F29: 133905093 | G29: 133905093
A30: Pueblo indígena | B30: Recursos SGP | C30: SUCRE | D30: Pueblo indígenaRecursos SGPSUCRE | E30: 2510385055 | F30: 2510385055 | G30: 2510385055
A31: Pueblo indígena | B31: Recursos SGP | C31: TOLIMA | D31: Pueblo indígenaRecursos SGPTOLIMA | E31: 3882174303 | F31: 3882174303 | G31: 3882174303
A32: Pueblo indígena | B32: Recursos SGP | C32: VALLE DEL CAUCA | D32: Pueblo indígenaRecursos SGPVALLE DEL CAUCA | E32: 1476589231 | F32: 1476589231 | G32: 1476589231
A33: Pueblo indígena | B33: Recursos SGP | C33: VAUPES | D33: Pueblo indígenaRecursos SGPVAUPES | E33: 3268123870 | F33: 2790624862 | G33: 3268123870
A34: Pueblo indígena | B34: Recursos SGP | C34: VICHADA | D34: Pueblo indígenaRecursos SGPVICHADA | E34: 4404377327 | F34: 4404377327 | G34: 4404377327
A35: Pueblo indígena | B35: Recursos SGP | C35: Consolidado | D35: Pueblo indígenaRecursos SGPConsolidado | E35: 165724553957 | F35: =SUM(F6:F34) -> 157682545145 | G35: =SUM(G6:G34) -> 165724553957
A36: Pueblo indígena | B36: Recursos SGR | C36: AMAZONAS | D36: Pueblo indígenaRecursos SGRAMAZONAS | E36: 54226370235
A37: Pueblo indígena | B37: Recursos SGR | C37: ANTIOQUIA | D37: Pueblo indígenaRecursos SGRANTIOQUIA | E37: 1050218837
A38: Pueblo indígena | B38: Recursos SGR | C38: ARAUCA | D38: Pueblo indígenaRecursos SGRARAUCA | E38: 1412144495
A39: Pueblo indígena | B39: Recursos SGR | C39: BOYACA | D39: Pueblo indígenaRecursos SGRBOYACA | E39: 8315510
A40: Pueblo indígena | B40: Recursos SGR | C40: CALDAS | D40: Pueblo indígenaRecursos SGRCALDAS | E40: 800000000
A41: Pueblo indígena | B41: Recursos SGR | C41: CAQUETA | D41: Pueblo indígenaRecursos SGRCAQUETA | E41: 669231696.5
A42: Pueblo indígena | B42: Recursos SGR | C42: CASANARE | D42: Pueblo indígenaRecursos SGRCASANARE | E42: 8668269905
A43: Pueblo indígena | B43: Recursos SGR | C43: CAUCA | D43: Pueblo indígenaRecursos SGRCAUCA | E43: 30321248086
A44: Pueblo indígena | B44: Recursos SGR | C44: CESAR | D44: Pueblo indígenaRecursos SGRCESAR | E44: 304721230
A45: Pueblo indígena | B45: Recursos SGR | C45: CHOCO | D45: Pueblo indígenaRecursos SGRCHOCO | E45: 710651865
A46: Pueblo indígena | B46: Recursos SGR | C46: CORDOBA | D46: Pueblo indígenaRecursos SGRCORDOBA | E46: 3388677111
A47: Pueblo indígena | B47: Recursos SGR | C47: CORPORACIONES | D47: Pueblo indígenaRecursos SGRCORPORACIONES | E47: 2024176703
A48: Pueblo indígena | B48: Recursos SGR | C48: GUAINIA | D48: Pueblo indígenaRecursos SGRGUAINIA | E48: 16430718476
A49: Pueblo indígena | B49: Recursos SGR | C49: GUAVIARE | D49: Pueblo indígenaRecursos SGRGUAVIARE | E49: 6005911559
A50: Pueblo indígena | B50: Recursos SGR | C50: HUILA | D50: Pueblo indígenaRecursos SGRHUILA | E50: 1550159180
A51: Pueblo indígena | B51: Recursos SGR | C51: LA GUAJIRA | D51: Pueblo indígenaRecursos SGRLA GUAJIRA | E51: 4.088547838e+10
A52: Pueblo indígena | B52: Recursos SGR | C52: MAGDALENA | D52: Pueblo indígenaRecursos SGRMAGDALENA | E52: 1537620000
A53: Pueblo indígena | B53: Recursos SGR | C53: META | D53: Pueblo indígenaRecursos SGRMETA | E53: 2.535589681e+10
A54: Pueblo indígena | B54: Recursos SGR | C54: N. DE SANTANDER | D54: Pueblo indígenaRecursos SGRN. DE SANTANDER | E54: 449985432
A55: Pueblo indígena | B55: Recursos SGR | C55: NARIÑO | D55: Pueblo indígenaRecursos SGRNARIÑO | E55: 1.616618705e+10
A56: Pueblo indígena | B56: Recursos SGR | C56: PUTUMAYO | D56: Pueblo indígenaRecursos SGRPUTUMAYO | E56: 8515676742
A57: Pueblo indígena | B57: Recursos SGR | C57: RISARALDA | D57: Pueblo indígenaRecursos SGRRISARALDA | E57: 30826014.4
A58: Pueblo indígena | B58: Recursos SGR | C58: SUCRE | D58: Pueblo indígenaRecursos SGRSUCRE | E58: 1947662165
A59: Pueblo indígena | B59: Recursos SGR | C59: TOLIMA | D59: Pueblo indígenaRecursos SGRTOLIMA | E59: 141798876 | G59: =+E62+E61 -> 1.467062958e+12
A60: Pueblo indígena | B60: Recursos SGR | C60: VALLE DEL CAUCA | D60: Pueblo indígenaRecursos SGRVALLE DEL CAUCA | E60: 192739758
A61: Pueblo indígena | B61: Recursos SGR | C61: Consolidado | D61: Pueblo indígenaRecursos SGRConsolidado | E61: 2.227946861e+11 | G61: =+E61+E68 -> 1.244268272e+12 | H61: =+E62+E63 -> 1246770239858
A62: Pueblo Indígena | B62: Consolidado | C62: Consolidado | D62: Pueblo IndígenaConsolidadoConsolidado | E62: 1244268271858 | F62: =+E35+E4 -> 1.021473586e+12 | G62: =+mas sgr -> 
A63: Pueblo Rrom | B63: Recursos PGN | C63: Nivel Nacional | D63: Pueblo RromRecursos PGNNivel Nacional | E63: 2501968000
A64: Pueblo Rrom | B64: Recursos PGN | C64: Consolidado | D64: Pueblo RromRecursos PGNConsolidado | E64: 2501968000
A65: Pueblo Rrom | B65: Consolidado | C65: Consolidado | D65: Pueblo RromConsolidadoConsolidado | E65: 2501968000
A66: Pueblo Indígena | B66: Consolidado | C66: Consolidado | D66: =+A66&B66&C66 -> Pueblo IndígenaConsolidadoConsolidado | E66: 1244268271858 | F66: =+E62+E65 -> 1246770239858 | G66: =+E66+E65 -> 1246770239858
F67: =+E66+E61 -> 1.467062958e+12
A68: Base para busqueda 2 | E68: 1021473585741 | H68: =+G80+G103+G118+G180+G199+G213 -> 855749028784
A69: Grupo étnico | B69: Fuente de financiación | C69: Eje | D69: Sector | E69: Entidad | G69: Total
A70: Pueblo indígena | B70: Recursos PGN | C70: BUEN GOBIERNO | D70: Hacienda | E70: MINISTERIO DE HACIENDA | F70: =+A70&B70&C70&D70&E70 -> Pueblo indígenaRecursos PGNBUEN GOBIERNOHaciendaMINISTERIO DE HACIENDA | G70: 0
A71: Pueblo indígena | B71: Recursos PGN | C71: BUEN GOBIERNO | D71: Hacienda | E71: Consolidado | F71: =+A71&B71&C71&D71&E71 -> Pueblo indígenaRecursos PGNBUEN GOBIERNOHaciendaConsolidado | G71: 0
A72: Pueblo indígena | B72: Recursos PGN | C72: BUEN GOBIERNO | D72: Inclusión Social Y Reconciliación | E72: ICBF | F72: Pueblo indígenaRecursos PGNBUEN GOBIERNOInclusión Social Y ReconciliaciónICBF | G72: 0
A73: Pueblo indígena | B73: Recursos PGN | C73: BUEN GOBIERNO | D73: Inclusión Social Y Reconciliación | E73: Consolidado | F73: Pueblo indígenaRecursos PGNBUEN GOBIERNOInclusión Social Y ReconciliaciónConsolidado | G73: 0
A74: Pueblo indígena | B74: Recursos PGN | C74: BUEN GOBIERNO | D74: Información Estadística | E74: DANE | F74: Pueblo indígenaRecursos PGNBUEN GOBIERNOInformación EstadísticaDANE | G74: 900000000 | H74: 900000000
A75: Pueblo indígena | B75: Recursos PGN | C75: BUEN GOBIERNO | D75: Información Estadística | E75: Consolidado | F75: Pueblo indígenaRecursos PGNBUEN GOBIERNOInformación EstadísticaConsolidado | G75: 900000000 | H75: 900000000
A76: Pueblo indígena | B76: Recursos PGN | C76: BUEN GOBIERNO | D76: Interior | E76: MININTERIOR | F76: Pueblo indígenaRecursos PGNBUEN GOBIERNOInteriorMININTERIOR | G76: 0
A77: Pueblo indígena | B77: Recursos PGN | C77: BUEN GOBIERNO | D77: Interior | E77: Consolidado | F77: Pueblo indígenaRecursos PGNBUEN GOBIERNOInteriorConsolidado | G77: 0
A78: Pueblo indígena | B78: Recursos PGN | C78: BUEN GOBIERNO | D78: Relaciones exteriores | E78: FONRELACIONES | F78: Pueblo indígenaRecursos PGNBUEN GOBIERNORelaciones exterioresFONRELACIONES | G78: 1570250868 | H78: 1570250868
A79: Pueblo indígena | B79: Recursos PGN | C79: BUEN GOBIERNO | D79: Relaciones exteriores | E79: Consolidado | F79: Pueblo indígenaRecursos PGNBUEN GOBIERNORelaciones exterioresConsolidado | G79: 1570250868 | H79: 1570250868
A80: Pueblo indígena | B80: Recursos PGN | C80: BUEN GOBIERNO | D80: Consolidado | E80: Consolidado | F80: Pueblo indígenaRecursos PGNBUEN GOBIERNOConsolidadoConsolidado | G80: 2470250868 | H80: 2470250868 | I80: =+H79+H75 -> 2470250868
A81: Pueblo indígena | B81: Recursos PGN | C81: Competitividad e infraestructura estratégicas | D81: Ambiente Y Desarrollo Sostenible | E81: MINISTERIO DE AMBIENTE | F81: Pueblo indígenaRecursos PGNCompetitividad e infraestructura estratégicasAmbiente Y Desarrollo SostenibleMINISTERIO DE AMBIENTE | G81: 0
A82: Pueblo indígena | B82: Recursos PGN | C82: Competitividad e infraestructura estratégicas | D82: Ambiente Y Desarrollo Sostenible | E82: Consolidado | F82: Pueblo indígenaRecursos PGNCompetitividad e infraestructura estratégicasAmbiente Y Desarrollo SostenibleConsolidado | G82: 0
A83: Pueblo indígena | B83: Recursos PGN | C83: Competitividad e infraestructura estratégicas | D83: Ciencia y Tecnología | E83: COLCIENCIAS | F83: Pueblo indígenaRecursos PGNCompetitividad e infraestructura estratégicasCiencia y TecnologíaCOLCIENCIAS | G83: 0
A84: Pueblo indígena | B84: Recursos PGN | C84: Competitividad e infraestructura estratégicas | D84: Ciencia y Tecnología | E84: Consolidado | F84: Pueblo indígenaRecursos PGNCompetitividad e infraestructura estratégicasCiencia y TecnologíaConsolidado | G84: 0
A85: Pueblo indígena | B85: Recursos PGN | C85: Competitividad e infraestructura estratégicas | D85: Comercio, Industria Y Turismo | E85: MINCOMERCIO | F85: Pueblo indígenaRecursos PGNCompetitividad e infraestructura estratégicasComercio, Industria Y TurismoMINCOMERCIO | G85: 1380000000 | H85: 1380000000
A86: Pueblo indígena | B86: Recursos PGN | C86: Competitividad e infraestructura estratégicas | D86: Comercio, Industria Y Turismo | E86: Consolidado | F86: Pueblo indígenaRecursos PGNCompetitividad e infraestructura estratégicasComercio, Industria Y TurismoConsolidado | G86: 1380000000 | H86: 1380000000
A87: Pueblo indígena | B87: Recursos PGN | C87: Competitividad e infraestructura estratégicas | D87: Comunicaciones | E87: FONDO DE TECNOLOGIAS DE LA INFO. Y LAS COMUN. - FONTIC | F87: Pueblo indígenaRecursos PGNCompetitividad e infraestructura estratégicasComunicacionesFONDO DE TECNOLOGIAS DE LA INFO. Y LAS COMUN. - FONTIC | G87: 34362170897 | H87: 34362170897
A88: Pueblo indígena | B88: Recursos PGN | C88: Competitividad e infraestructura estratégicas | D88: Comunicaciones | E88: Consolidado | F88: Pueblo indígenaRecursos PGNCompetitividad e infraestructura estratégicasComunicacionesConsolidado | G88: 34362170897 | H88: 34362170897
A89: Pueblo indígena | B89: Recursos PGN | C89: Competitividad e infraestructura estratégicas | D89: Inclusión Social Y Reconciliación | E89: DPS | F89: Pueblo indígenaRecursos PGNCompetitividad e infraestructura estratégicasInclusión Social Y ReconciliaciónDPS | G89: 0
A90: Pueblo indígena | B90: Recursos PGN | C90: Competitividad e infraestructura estratégicas | D90: Inclusión Social Y Reconciliación | E90: Consolidado | F90: Pueblo indígenaRecursos PGNCompetitividad e infraestructura estratégicasInclusión Social Y ReconciliaciónConsolidado | G90: 0
A91: Pueblo indígena | B91: Recursos PGN | C91: Competitividad e infraestructura estratégicas | D91: Interior | E91: MININTERIOR | F91: Pueblo indígenaRecursos PGNCompetitividad e infraestructura estratégicasInteriorMININTERIOR | G91: 0
A92: Pueblo indígena | B92: Recursos PGN | C92: Competitividad e infraestructura estratégicas | D92: Interior | E92: Consolidado | F92: Pueblo indígenaRecursos PGNCompetitividad e infraestructura estratégicasInteriorConsolidado | G92: 0
A93: Pueblo indígena | B93: Recursos PGN | C93: Competitividad e infraestructura estratégicas | D93: Minas Y Energía | E93: MinMinas | F93: Pueblo indígenaRecursos PGNCompetitividad e infraestructura estratégicasMinas Y EnergíaMinMinas | G93: 1520000000 | H93: 1520000000
A94: Pueblo indígena | B94: Recursos PGN | C94: Competitividad e infraestructura estratégicas | D94: Minas Y Energía | E94: Consolidado | F94: Pueblo indígenaRecursos PGNCompetitividad e infraestructura estratégicasMinas Y EnergíaConsolidado | G94: 1520000000 | H94: 1520000000
A95: Pueblo indígena | B95: Recursos PGN | C95: Competitividad e infraestructura estratégicas | D95: Transporte | E95: MINISTERIO DE TRANSPORTE | F95: Pueblo indígenaRecursos PGNCompetitividad e infraestructura estratégicasTransporteMINISTERIO DE TRANSPORTE | G95: 0
A96: Pueblo indígena | B96: Recursos PGN | C96: Competitividad e infraestructura estratégicas | D96: Transporte | E96: Consolidado | F96: Pueblo indígenaRecursos PGNCompetitividad e infraestructura estratégicasTransporteConsolidado | G96: 0
A97: Pueblo indígena | B97: Recursos PGN | C97: Competitividad e infraestructura estratégicas | D97: Minas Y Energía | E97: AGENCIA NACIONAL DE MINERIA | F97: Pueblo indígenaRecursos PGNCompetitividad e infraestructura estratégicasMinas Y EnergíaAGENCIA NACIONAL DE MINERIA | G97: 65161376 | H97: 65161376
A98: Pueblo indígena | B98: Recursos PGN | C98: Competitividad e infraestructura estratégicas | D98: Minas Y Energía | E98: Consolidado | F98: Pueblo indígenaRecursos PGNCompetitividad e infraestructura estratégicasMinas Y EnergíaConsolidado | G98: 65161376 | H98: 65161376
A99: Pueblo indígena | B99: Recursos PGN | C99: Competitividad e infraestructura estratégicas | D99: Transporte | E99: INVIAS | F99: Pueblo indígenaRecursos PGNCompetitividad e infraestructura estratégicasTransporteINVIAS | G99: 129546303882 | H99: 129546303882
A100: Pueblo indígena | B100: Recursos PGN | C100: Competitividad e infraestructura estratégicas | D100: Transporte | E100: Consolidado | F100: Pueblo indígenaRecursos PGNCompetitividad e infraestructura estratégicasTransporteConsolidado | G100: 129546303882 | H100: 129546303882
A101: Pueblo indígena | B101: Recursos PGN | C101: Competitividad e infraestructura estratégicas | D101: Comercio, Industria Y Turismo | E101: ARTESANIAS DE COLOMBIA | F101: Pueblo indígenaRecursos PGNCompetitividad e infraestructura estratégicasComercio, Industria Y TurismoARTESANIAS DE COLOMBIA | G101: 25758560 | H101: 25758560
A102: Pueblo indígena | B102: Recursos PGN | C102: Competitividad e infraestructura estratégicas | D102: Comercio, Industria Y Turismo | E102: Consolidado | F102: Pueblo indígenaRecursos PGNCompetitividad e infraestructura estratégicasComercio, Industria Y TurismoConsolidado | G102: 25758560 | H102: 25758560
A103: Pueblo indígena | B103: Recursos PGN | C103: Competitividad e infraestructura estratégicas | D103: Consolidado | E103: Consolidado | F103: Pueblo indígenaRecursos PGNCompetitividad e infraestructura estratégicasConsolidadoConsolidado | G103: 166899394715 | H103: =+H102+H100+H98+H94++H88+H86 -> 166899394715
G104: 0
G105: 0
A106: Pueblo indígena | B106: Recursos PGN | C106: CRECIMIENTO VERDE | D106: Cultura | E106: MINCULTURA | F106: Pueblo indígenaRecursos PGNCRECIMIENTO VERDECulturaMINCULTURA | G106: 0
A107: Pueblo indígena | B107: Recursos PGN | C107: CRECIMIENTO VERDE | D107: Cultura | E107: Consolidado | F107: Pueblo indígenaRecursos PGNCRECIMIENTO VERDECulturaConsolidado | G107: 0
A108: Pueblo indígena | B108: Recursos PGN | C108: CRECIMIENTO VERDE | D108: Información Estadística | E108: IGAC | F108: Pueblo indígenaRecursos PGNCRECIMIENTO VERDEInformación EstadísticaIGAC | G108: 0
A109: Pueblo indígena | B109: Recursos PGN | C109: CRECIMIENTO VERDE | D109: Información Estadística | E109: Consolidado | F109: Pueblo indígenaRecursos PGNCRECIMIENTO VERDEInformación EstadísticaConsolidado | G109: 0
A110: Pueblo indígena | B110: Recursos PGN | C110: CRECIMIENTO VERDE | D110: Interior | E110: MININTERIOR | F110: Pueblo indígenaRecursos PGNCRECIMIENTO VERDEInteriorMININTERIOR | G110: 0
A111: Pueblo indígena | B111: Recursos PGN | C111: CRECIMIENTO VERDE | D111: Interior | E111: Consolidado | F111: Pueblo indígenaRecursos PGNCRECIMIENTO VERDEInteriorConsolidado | G111: 0
A112: Pueblo indígena | B112: Recursos PGN | C112: CRECIMIENTO VERDE | D112: Ambiente Y Desarrollo Sostenible | E112: CORPOR. AUTONOMA REGIONAL PARA EL DES. CHOCO - CODECHOCO | F112: Pueblo indígenaRecursos PGNCRECIMIENTO VERDEAmbiente Y Desarrollo SostenibleCORPOR. AUTONOMA REGIONAL PARA EL DES. CHOCO - CODECHOCO | G112: 50000000 | I112: 50000000
A113: Pueblo indígena | B113: Recursos PGN | C113: CRECIMIENTO VERDE | D113: Ambiente Y Desarrollo Sostenible | E113: Consolidado | F113: Pueblo indígenaRecursos PGNCRECIMIENTO VERDEAmbiente Y Desarrollo SostenibleConsolidado | G113: 50000000
A114: Pueblo indígena | B114: Recursos PGN | C114: CRECIMIENTO VERDE | D114: Interior | E114: NASA KI WE | F114: Pueblo indígenaRecursos PGNCRECIMIENTO VERDEInteriorNASA KI WE | G114: 9781920283 | H114: =+G116+G112 -> 2324444971 | I114: 9781920283
A115: Pueblo indígena | B115: Recursos PGN | C115: CRECIMIENTO VERDE | D115: Interior | E115: Consolidado | F115: Pueblo indígenaRecursos PGNCRECIMIENTO VERDEInteriorConsolidado | G115: 9781920283
A116: Pueblo indígena | B116: Recursos PGN | C116: CRECIMIENTO VERDE | D116: Ambiente Y Desarrollo Sostenible | E116: UAE. Sistema de Parques Nal Naturales | F116: Pueblo indígenaRecursos PGNCRECIMIENTO VERDEAmbiente Y Desarrollo SostenibleUAE. Sistema de Parques Nal Naturales | G116: 2274444971 | I116: 2274444971
A117: Pueblo indígena | B117: Recursos PGN | C117: CRECIMIENTO VERDE | D117: Ambiente Y Desarrollo Sostenible | E117: Consolidado | F117: Pueblo indígenaRecursos PGNCRECIMIENTO VERDEAmbiente Y Desarrollo SostenibleConsolidado | G117: 2274444971
A118: Pueblo indígena | B118: Recursos PGN | C118: CRECIMIENTO VERDE | D118: Consolidado | E118: Consolidado | F118: Pueblo indígenaRecursos PGNCRECIMIENTO VERDEConsolidadoConsolidado | G118: 12106365254 | H118: =+G116+G114+G112 -> 12106365254
A119: Pueblo indígena | B119: Recursos PGN | C119: Inversiones adicionales | D119: Agropecuario | E119: INCODER | F119: Pueblo indígenaRecursos PGNInversiones adicionalesAgropecuarioINCODER | G119: 0
A120: Pueblo indígena | B120: Recursos PGN | C120: Inversiones adicionales | D120: Agropecuario | E120: MinAgricultura | F120: Pueblo indígenaRecursos PGNInversiones adicionalesAgropecuarioMinAgricultura | G120: 0
A121: Pueblo indígena | B121: Recursos PGN | C121: Inversiones adicionales | D121: Agropecuario | E121: Consolidado | F121: Pueblo indígenaRecursos PGNInversiones adicionalesAgropecuarioConsolidado | G121: 0
A122: Pueblo indígena | B122: Recursos PGN | C122: Inversiones adicionales | D122: Ambiente Y Desarrollo Sostenible | E122: CODECHOCO | F122: Pueblo indígenaRecursos PGNInversiones adicionalesAmbiente Y Desarrollo SostenibleCODECHOCO | G122: 0
A123: Pueblo indígena | B123: Recursos PGN | C123: Inversiones adicionales | D123: Ambiente Y Desarrollo Sostenible | E123: MINISTERIO DE AMBIENTE | F123: Pueblo indígenaRecursos PGNInversiones adicionalesAmbiente Y Desarrollo SostenibleMINISTERIO DE AMBIENTE | G123: 0
A124: Pueblo indígena | B124: Recursos PGN | C124: Inversiones adicionales | D124: Ambiente Y Desarrollo Sostenible | E124: Consolidado | F124: Pueblo indígenaRecursos PGNInversiones adicionalesAmbiente Y Desarrollo SostenibleConsolidado | G124: 0
A125: Pueblo indígena | B125: Recursos PGN | C125: Inversiones adicionales | D125: Comercio, Industria Y Turismo | E125: ARTESANIAS DE COLOMBIA | F125: Pueblo indígenaRecursos PGNInversiones adicionalesComercio, Industria Y TurismoARTESANIAS DE COLOMBIA | G125: 0
A126: Pueblo indígena | B126: Recursos PGN | C126: Inversiones adicionales | D126: Comercio, Industria Y Turismo | E126: Consolidado | F126: Pueblo indígenaRecursos PGNInversiones adicionalesComercio, Industria Y TurismoConsolidado | G126: 0
A127: Pueblo indígena | B127: Recursos PGN | C127: Inversiones adicionales | D127: Comunicaciones | E127: MINISTERIO DE LAS TIC | F127: Pueblo indígenaRecursos PGNInversiones adicionalesComunicacionesMINISTERIO DE LAS TIC | G127: 0
A128: Pueblo indígena | B128: Recursos PGN | C128: Inversiones adicionales | D128: Comunicaciones | E128: Consolidado | F128: Pueblo indígenaRecursos PGNInversiones adicionalesComunicacionesConsolidado | G128: 0
A129: Pueblo indígena | B129: Recursos PGN | C129: Inversiones adicionales | D129: Cultura | E129: MINCULTURA | F129: Pueblo indígenaRecursos PGNInversiones adicionalesCulturaMINCULTURA | G129: 0
A130: Pueblo indígena | B130: Recursos PGN | C130: Inversiones adicionales | D130: Cultura | E130: Consolidado | F130: Pueblo indígenaRecursos PGNInversiones adicionalesCulturaConsolidado | G130: 0
A131: Pueblo indígena | B131: Recursos PGN | C131: Inversiones adicionales | D131: Educación | E131: MinEducación | F131: Pueblo indígenaRecursos PGNInversiones adicionalesEducaciónMinEducación | G131: 0
A132: Pueblo indígena | B132: Recursos PGN | C132: Inversiones adicionales | D132: Educación | E132: Consolidado | F132: Pueblo indígenaRecursos PGNInversiones adicionalesEducaciónConsolidado | G132: 0
A133: Pueblo indígena | B133: Recursos PGN | C133: Inversiones adicionales | D133: Inclusión Social Y Reconciliación | E133: DPS | F133: Pueblo indígenaRecursos PGNInversiones adicionalesInclusión Social Y ReconciliaciónDPS | G133: 0
A134: Pueblo indígena | B134: Recursos PGN | C134: Inversiones adicionales | D134: Inclusión Social Y Reconciliación | E134: ICBF | F134: Pueblo indígenaRecursos PGNInversiones adicionalesInclusión Social Y ReconciliaciónICBF | G134: 0
A135: Pueblo indígena | B135: Recursos PGN | C135: Inversiones adicionales | D135: Inclusión Social Y Reconciliación | E135: UNIDAD DE VÍCTIMAS | F135: Pueblo indígenaRecursos PGNInversiones adicionalesInclusión Social Y ReconciliaciónUNIDAD DE VÍCTIMAS | G135: 0
A136: Pueblo indígena | B136: Recursos PGN | C136: Inversiones adicionales | D136: Inclusión Social Y Reconciliación | E136: Consolidado | F136: Pueblo indígenaRecursos PGNInversiones adicionalesInclusión Social Y ReconciliaciónConsolidado | G136: 0
A137: Pueblo indígena | B137: Recursos PGN | C137: Inversiones adicionales | D137: Interior | E137: MININTERIOR | F137: Pueblo indígenaRecursos PGNInversiones adicionalesInteriorMININTERIOR | G137: 0
A138: Pueblo indígena | B138: Recursos PGN | C138: Inversiones adicionales | D138: Interior | E138: Consolidado | F138: Pueblo indígenaRecursos PGNInversiones adicionalesInteriorConsolidado | G138: 0
A139: Pueblo indígena | B139: Recursos PGN | C139: Inversiones adicionales | D139: Justicia Y Del Derecho | E139: MinJusticia | F139: Pueblo indígenaRecursos PGNInversiones adicionalesJusticia Y Del DerechoMinJusticia | G139: 0
A140: Pueblo indígena | B140: Recursos PGN | C140: Inversiones adicionales | D140: Justicia Y Del Derecho | E140: Consolidado | F140: Pueblo indígenaRecursos PGNInversiones adicionalesJusticia Y Del DerechoConsolidado | G140: 0
